"SERVICE_CODE","ORGANISATION_UNIT","EXPENDITURE_CATEGORY","EXPENDITURE_DESCRIPTION","EXPENDITURE_CODE","NARRATIVE","DATE","TRANSATION_CODE","NET_AMOUNT","SUPPLIER_CODE","SUPPLIER_NAME","FROM_DATE","TO_DATE","FINANCIAL_PERIOD_YEAR"
"P&V","POLICY & PERFORMANCE (L&E)","EMPLOYEES","TRAINING EXPENSES","1305","P110617-SERVICE-NVQ level 4 safety Paul Coates and jack Pring",31/1/2021 00:00:00,"244135",1450,"WA0296","WARD SAFETY",28/12/2020 00:00:00,31/1/2021 00:00:00,"P10-2021"
,"LEE VALLEY VELOPARK","EMPLOYEES","TRAINING EXPENSES","1305","P110357-SERVICE-Training Course",11/1/2021 00:00:00,"243475",175,"AS0404","ASTUTIS LIMITED",28/12/2020 00:00:00,31/1/2021 00:00:00,"P10-2021"
,"LEE VALLEY ICE CENTRE","EMPLOYEES","TRAINING EXPENSES","1305","P109328-SERVICE-Scissor lift training course Oct 2020",4/1/2021 00:00:00,"243016",260,"AF0464","AFI-UPLIFT LTD",28/12/2020 00:00:00,31/1/2021 00:00:00,"P10-2021"
,"LEE VALLEY WHITE WATER CENTRE","EMPLOYEES","TRAINING EXPENSES","1305","P110470-SERVICE-6 Candidates registration for NVQ level 4 spe",26/1/2021 00:00:00,"243909",8700,"WA0296","WARD SAFETY",28/12/2020 00:00:00,31/1/2021 00:00:00,"P10-2021"
"R&B","CORPORATE TRAINING","EMPLOYEES","TRAINING PANEL","1306","P110419-SERVICE-K AXFORD TRAINING PANEL",19/1/2021 00:00:00,"243532",540,"MI0459","MINDFULNESS IN SCHOOLS PROJECT",28/12/2020 00:00:00,31/1/2021 00:00:00,"P10-2021"
"R&B","NON DISTRIBUTED COSTS","EMPLOYEES","SUPERANNUATION ADDED YEARS","1310","LONDON PENSIONS FUND AUTHORITY",31/1/2021 00:00:00,"244139",5694.03,"LO0031","LONDON PENSIONS FUND AUTHORITY",28/12/2020 00:00:00,31/1/2021 00:00:00,"P10-2021"
,"LEE VALLEY MARINA STANSTEAD","EMPLOYEES","CRB CHECKS","1330","ADMIN FEE",12/1/2021 00:00:00,"243420",36,"DD0119","DUE DILIGENCE CHECKING LIMITED",28/12/2020 00:00:00,31/1/2021 00:00:00,"P10-2021"
,"LEE VALLEY MARINA STANSTEAD","EMPLOYEES","CRB CHECKS","1330","DBS CHECKS",12/1/2021 00:00:00,"243420",63,"DD0119","DUE DILIGENCE CHECKING LIMITED",28/12/2020 00:00:00,31/1/2021 00:00:00,"P10-2021"
,"LEE VALLEY CARAVAN PARK","EMPLOYEES","CRB CHECKS","1330","ADMIN FEE",12/1/2021 00:00:00,"243420",18,"DD0119","DUE DILIGENCE CHECKING LIMITED",28/12/2020 00:00:00,31/1/2021 00:00:00,"P10-2021"
,"LEE VALLEY CARAVAN PARK","EMPLOYEES","CRB CHECKS","1330","DBS CHECKS",12/1/2021 00:00:00,"243420",40,"DD0119","DUE DILIGENCE CHECKING LIMITED",28/12/2020 00:00:00,31/1/2021 00:00:00,"P10-2021"
,"LEE VALLEY VELOPARK","EMPLOYEES","CRB CHECKS","1330","ADMIN FEE",12/1/2021 00:00:00,"243420",54,"DD0119","DUE DILIGENCE CHECKING LIMITED",28/12/2020 00:00:00,31/1/2021 00:00:00,"P10-2021"
,"LEE VALLEY VELOPARK","EMPLOYEES","CRB CHECKS","1330","DBS CHECKS",12/1/2021 00:00:00,"243420",46,"DD0119","DUE DILIGENCE CHECKING LIMITED",28/12/2020 00:00:00,31/1/2021 00:00:00,"P10-2021"
,"LV HOCKEY AND TENNIS CENTRE","EMPLOYEES","CRB CHECKS","1330","ADMIN FEE",12/1/2021 00:00:00,"243420",18,"DD0119","DUE DILIGENCE CHECKING LIMITED",28/12/2020 00:00:00,31/1/2021 00:00:00,"P10-2021"
,"LV HOCKEY AND TENNIS CENTRE","EMPLOYEES","CRB CHECKS","1330","DBS CHECKS",12/1/2021 00:00:00,"243420",23,"DD0119","DUE DILIGENCE CHECKING LIMITED",28/12/2020 00:00:00,31/1/2021 00:00:00,"P10-2021"
,"LEE VALLEY RIDING CENTRE","EMPLOYEES","CRB CHECKS","1330","DBS CHECKS",12/1/2021 00:00:00,"243420",40,"DD0119","DUE DILIGENCE CHECKING LIMITED",28/12/2020 00:00:00,31/1/2021 00:00:00,"P10-2021"
,"LEE VALLEY RIDING CENTRE","EMPLOYEES","CRB CHECKS","1330","ADMIN FEE",12/1/2021 00:00:00,"243420",18,"DD0119","DUE DILIGENCE CHECKING LIMITED",28/12/2020 00:00:00,31/1/2021 00:00:00,"P10-2021"
,"LEE VALLEY ATHLETICS CENTRE","EMPLOYEES","CRB CHECKS","1330","DBS CHECKS",12/1/2021 00:00:00,"243420",23,"DD0119","DUE DILIGENCE CHECKING LIMITED",28/12/2020 00:00:00,31/1/2021 00:00:00,"P10-2021"
,"LEE VALLEY ATHLETICS CENTRE","EMPLOYEES","CRB CHECKS","1330","ADMIN FEE",12/1/2021 00:00:00,"243420",18,"DD0119","DUE DILIGENCE CHECKING LIMITED",28/12/2020 00:00:00,31/1/2021 00:00:00,"P10-2021"
,"LEE VALLEY WHITE WATER CENTRE","EMPLOYEES","CRB CHECKS","1330","ADMIN FEE",12/1/2021 00:00:00,"243420",18,"DD0119","DUE DILIGENCE CHECKING LIMITED",28/12/2020 00:00:00,31/1/2021 00:00:00,"P10-2021"
,"LEE VALLEY WHITE WATER CENTRE","EMPLOYEES","CRB CHECKS","1330","DBS CHECKS",12/1/2021 00:00:00,"243420",40,"DD0119","DUE DILIGENCE CHECKING LIMITED",28/12/2020 00:00:00,31/1/2021 00:00:00,"P10-2021"
"R&B","CORPORATE TRAINING","EMPLOYEES","APPRENTICE LEVY","1390","HMRC",31/1/2021 00:00:00,"243776",2054,"HM0368","HMRC",28/12/2020 00:00:00,31/1/2021 00:00:00,"P10-2021"
"CEO","LVLC SERVICE CHARGE","PREMISES RELATED EXPENDITURE","SCHEDULED GROUND MAINTENANCE","2111","GLENDALE GROUNDS MANAGEMENT LI",11/1/2021 00:00:00,"243284",1149.9,"GL0214","GLENDALE GROUNDS MANAGEMENT LIMITED",28/12/2020 00:00:00,31/1/2021 00:00:00,"P10-2021"
"CEO","LVLC SERVICE CHARGE","PREMISES RELATED EXPENDITURE","SCHEDULED GROUND MAINTENANCE","2111","GLENDALE GROUNDS MANAGEMENT LI",11/1/2021 00:00:00,"243284",50.68,"GL0214","GLENDALE GROUNDS MANAGEMENT LIMITED",28/12/2020 00:00:00,31/1/2021 00:00:00,"P10-2021"
"CEO","LVLC SERVICE CHARGE","PREMISES RELATED EXPENDITURE","SCHEDULED GROUND MAINTENANCE","2111","GLENDALE GROUNDS MANAGEMENT LI",11/1/2021 00:00:00,"243285",156.81,"GL0214","GLENDALE GROUNDS MANAGEMENT LIMITED",28/12/2020 00:00:00,31/1/2021 00:00:00,"P10-2021"
,"LEE VALLEY CAMPSITE","PREMISES RELATED EXPENDITURE","CONTRACT CLEANING","2120","P110338-SERVICE-Cleaning",11/1/2021 00:00:00,"243281",916.5,"LI0305","LIMPIAR CLEANING",28/12/2020 00:00:00,31/1/2021 00:00:00,"P10-2021"
,"LEE VALLEY CAMPSITE","PREMISES RELATED EXPENDITURE","CONTRACT CLEANING","2120","P110389-SERVICE-Skips",18/1/2021 00:00:00,"243442",1084.35,"CL0037","VEOLIA ES (UK) LTD",28/12/2020 00:00:00,31/1/2021 00:00:00,"P10-2021"
,"LEE VALLEY CARAVAN PARK","PREMISES RELATED EXPENDITURE","CONTRACT CLEANING","2120","P110307-SERVICE-Johnsons linen hire",4/1/2021 00:00:00,"243221",468.32,"JO0168","JOHNSON STALBRIDGE LINEN SERVICES",28/12/2020 00:00:00,31/1/2021 00:00:00,"P10-2021"
,"LEE VALLEY CARAVAN PARK","PREMISES RELATED EXPENDITURE","CONTRACT CLEANING","2120","P110306-SERVICE-December invoice cleaning",4/1/2021 00:00:00,"243244",631,"LI0305","LIMPIAR CLEANING",28/12/2020 00:00:00,31/1/2021 00:00:00,"P10-2021"
,"LEE VALLEY CARAVAN PARK","PREMISES RELATED EXPENDITURE","CONTRACT CLEANING","2120","P110348-SERVICE-Initial wash rooms",11/1/2021 00:00:00,"243280",90.39,"IN0012","INITIAL WASHROOM HYGIENE",28/12/2020 00:00:00,31/1/2021 00:00:00,"P10-2021"
"P&V","NORTH AREA RANGERS","PREMISES RELATED EXPENDITURE","CONTRACT CLEANING","2120","GLENDALE GROUNDS MANAGEMENT LI",11/1/2021 00:00:00,"243284",254.55,"GL0214","GLENDALE GROUNDS MANAGEMENT LIMITED",28/12/2020 00:00:00,31/1/2021 00:00:00,"P10-2021"
"P&V","GUNPOWDER PARK","PREMISES RELATED EXPENDITURE","CONTRACT CLEANING","2120","GLENDALE GROUNDS MANAGEMENT LI",11/1/2021 00:00:00,"243284",254.55,"GL0214","GLENDALE GROUNDS MANAGEMENT LIMITED",28/12/2020 00:00:00,31/1/2021 00:00:00,"P10-2021"
"P&V","RIVER LEE COUNTRY PARK","PREMISES RELATED EXPENDITURE","CONTRACT CLEANING","2120","GLENDALE GROUNDS MANAGEMENT LI",11/1/2021 00:00:00,"243284",509.09,"GL0214","GLENDALE GROUNDS MANAGEMENT LIMITED",28/12/2020 00:00:00,31/1/2021 00:00:00,"P10-2021"
,"LEE VALLEY RIDING CENTRE","PREMISES RELATED EXPENDITURE","CLEANING CONTRACT","2121","P110302-SERVICE-suspended cleaning fee December",4/1/2021 00:00:00,"243231",540.24,"MA0015","MAYFAIR CLEANING COMPANY LIMITED",28/12/2020 00:00:00,31/1/2021 00:00:00,"P10-2021"
,"LEE VALLEY WHITE WATER CENTRE","PREMISES RELATED EXPENDITURE","CLEANING CONTRACT","2121","P110215-SERVICE-Cleaner for Friday 18th December",11/1/2021 00:00:00,"243220",288,"BR0483","BRS CLEANING CONTRACTORS  LTD",28/12/2020 00:00:00,31/1/2021 00:00:00,"P10-2021"
,"LEE VALLEY MARINA STANSTEAD","PREMISES RELATED EXPENDITURE","GM MAIN CONTRACT SCHEDULED","2141","GLENDALE GROUNDS MANAGEMENT LI",11/1/2021 00:00:00,"243284",176.99,"GL0214","GLENDALE GROUNDS MANAGEMENT LIMITED",28/12/2020 00:00:00,31/1/2021 00:00:00,"P10-2021"
,"LEE VALLEY MARINA STANSTEAD","PREMISES RELATED EXPENDITURE","GM MAIN CONTRACT SCHEDULED","2141","GLENDALE GROUNDS MANAGEMENT LI",11/1/2021 00:00:00,"243285",131.05,"GL0214","GLENDALE GROUNDS MANAGEMENT LIMITED",28/12/2020 00:00:00,31/1/2021 00:00:00,"P10-2021"
,"LEE VALLEY WATERWORKS CENTRE","PREMISES RELATED EXPENDITURE","GM MAIN CONTRACT SCHEDULED","2141","GLENDALE GROUNDS MANAGEMENT LI",11/1/2021 00:00:00,"243284",87.49,"GL0214","GLENDALE GROUNDS MANAGEMENT LIMITED",28/12/2020 00:00:00,31/1/2021 00:00:00,"P10-2021"
,"LEE VALLEY WATERWORKS CENTRE","PREMISES RELATED EXPENDITURE","GM MAIN CONTRACT SCHEDULED","2141","GLENDALE GROUNDS MANAGEMENT LI",11/1/2021 00:00:00,"243284",201.72,"GL0214","GLENDALE GROUNDS MANAGEMENT LIMITED",28/12/2020 00:00:00,31/1/2021 00:00:00,"P10-2021"
,"LEE VALLEY WATERWORKS CENTRE","PREMISES RELATED EXPENDITURE","GM MAIN CONTRACT SCHEDULED","2141","GLENDALE GROUNDS MANAGEMENT LI",11/1/2021 00:00:00,"243285",131.87,"GL0214","GLENDALE GROUNDS MANAGEMENT LIMITED",28/12/2020 00:00:00,31/1/2021 00:00:00,"P10-2021"
,"LEE VALLEY FARM HAYES HILL","PREMISES RELATED EXPENDITURE","GM MAIN CONTRACT SCHEDULED","2141","GLENDALE GROUNDS MANAGEMENT LI",11/1/2021 00:00:00,"243284",421.41,"GL0214","GLENDALE GROUNDS MANAGEMENT LIMITED",28/12/2020 00:00:00,31/1/2021 00:00:00,"P10-2021"
,"LEE VALLEY FARM HAYES HILL","PREMISES RELATED EXPENDITURE","GM MAIN CONTRACT SCHEDULED","2141","GLENDALE GROUNDS MANAGEMENT LI",11/1/2021 00:00:00,"243285",225.78,"GL0214","GLENDALE GROUNDS MANAGEMENT LIMITED",28/12/2020 00:00:00,31/1/2021 00:00:00,"P10-2021"
"P&V","EAST INDIA DOCK AND BOW CREEK","PREMISES RELATED EXPENDITURE","GM MAIN CONTRACT SCHEDULED","2141","GLENDALE GROUNDS MANAGEMENT LI",11/1/2021 00:00:00,"243284",437.46,"GL0214","GLENDALE GROUNDS MANAGEMENT LIMITED",28/12/2020 00:00:00,31/1/2021 00:00:00,"P10-2021"
"P&V","EAST INDIA DOCK AND BOW CREEK","PREMISES RELATED EXPENDITURE","GM MAIN CONTRACT SCHEDULED","2141","GLENDALE GROUNDS MANAGEMENT LI",11/1/2021 00:00:00,"243284",358.21,"GL0214","GLENDALE GROUNDS MANAGEMENT LIMITED",28/12/2020 00:00:00,31/1/2021 00:00:00,"P10-2021"
"P&V","EAST INDIA DOCK AND BOW CREEK","PREMISES RELATED EXPENDITURE","GM MAIN CONTRACT SCHEDULED","2141","GLENDALE GROUNDS MANAGEMENT LI",11/1/2021 00:00:00,"243285",382.68,"GL0214","GLENDALE GROUNDS MANAGEMENT LIMITED",28/12/2020 00:00:00,31/1/2021 00:00:00,"P10-2021"
"P&V","NORTH AREA RANGERS","PREMISES RELATED EXPENDITURE","GM MAIN CONTRACT SCHEDULED","2141","GLENDALE GROUNDS MANAGEMENT LI",11/1/2021 00:00:00,"243284",2563.42,"GL0214","GLENDALE GROUNDS MANAGEMENT LIMITED",28/12/2020 00:00:00,31/1/2021 00:00:00,"P10-2021"
"P&V","NORTH AREA RANGERS","PREMISES RELATED EXPENDITURE","GM MAIN CONTRACT SCHEDULED","2141","GLENDALE GROUNDS MANAGEMENT LI",11/1/2021 00:00:00,"243285",995.25,"GL0214","GLENDALE GROUNDS MANAGEMENT LIMITED",28/12/2020 00:00:00,31/1/2021 00:00:00,"P10-2021"
"P&V","SOUTH AREA RANGERS","PREMISES RELATED EXPENDITURE","GM MAIN CONTRACT SCHEDULED","2141","GLENDALE GROUNDS MANAGEMENT LI",11/1/2021 00:00:00,"243284",174.98,"GL0214","GLENDALE GROUNDS MANAGEMENT LIMITED",28/12/2020 00:00:00,31/1/2021 00:00:00,"P10-2021"
"P&V","SOUTH AREA RANGERS","PREMISES RELATED EXPENDITURE","GM MAIN CONTRACT SCHEDULED","2141","GLENDALE GROUNDS MANAGEMENT LI",11/1/2021 00:00:00,"243284",5008.16,"GL0214","GLENDALE GROUNDS MANAGEMENT LIMITED",28/12/2020 00:00:00,31/1/2021 00:00:00,"P10-2021"
"P&V","SOUTH AREA RANGERS","PREMISES RELATED EXPENDITURE","GM MAIN CONTRACT SCHEDULED","2141","GLENDALE GROUNDS MANAGEMENT LI",11/1/2021 00:00:00,"243285",1479.48,"GL0214","GLENDALE GROUNDS MANAGEMENT LIMITED",28/12/2020 00:00:00,31/1/2021 00:00:00,"P10-2021"
"P&V","ABBEY GARDENS","PREMISES RELATED EXPENDITURE","GM MAIN CONTRACT SCHEDULED","2141","GLENDALE GROUNDS MANAGEMENT LI",11/1/2021 00:00:00,"243284",1331.73,"GL0214","GLENDALE GROUNDS MANAGEMENT LIMITED",28/12/2020 00:00:00,31/1/2021 00:00:00,"P10-2021"
"P&V","ABBEY GARDENS","PREMISES RELATED EXPENDITURE","GM MAIN CONTRACT SCHEDULED","2141","GLENDALE GROUNDS MANAGEMENT LI",11/1/2021 00:00:00,"243285",286.99,"GL0214","GLENDALE GROUNDS MANAGEMENT LIMITED",28/12/2020 00:00:00,31/1/2021 00:00:00,"P10-2021"
"P&V","GUNPOWDER PARK","PREMISES RELATED EXPENDITURE","GM MAIN CONTRACT SCHEDULED","2141","GLENDALE GROUNDS MANAGEMENT LI",11/1/2021 00:00:00,"243284",1514.42,"GL0214","GLENDALE GROUNDS MANAGEMENT LIMITED",28/12/2020 00:00:00,31/1/2021 00:00:00,"P10-2021"
"P&V","GUNPOWDER PARK","PREMISES RELATED EXPENDITURE","GM MAIN CONTRACT SCHEDULED","2141","GLENDALE GROUNDS MANAGEMENT LI",11/1/2021 00:00:00,"243285",605.09,"GL0214","GLENDALE GROUNDS MANAGEMENT LIMITED",28/12/2020 00:00:00,31/1/2021 00:00:00,"P10-2021"
"P&V","RIVER LEE COUNTRY PARK","PREMISES RELATED EXPENDITURE","GM MAIN CONTRACT SCHEDULED","2141","GLENDALE GROUNDS MANAGEMENT LI",11/1/2021 00:00:00,"243284",9017.99,"GL0214","GLENDALE GROUNDS MANAGEMENT LIMITED",28/12/2020 00:00:00,31/1/2021 00:00:00,"P10-2021"
"P&V","RIVER LEE COUNTRY PARK","PREMISES RELATED EXPENDITURE","GM MAIN CONTRACT SCHEDULED","2141","GLENDALE GROUNDS MANAGEMENT LI",11/1/2021 00:00:00,"243284",1049.89,"GL0214","GLENDALE GROUNDS MANAGEMENT LIMITED",28/12/2020 00:00:00,31/1/2021 00:00:00,"P10-2021"
"P&V","RIVER LEE COUNTRY PARK","PREMISES RELATED EXPENDITURE","GM MAIN CONTRACT SCHEDULED","2141","GLENDALE GROUNDS MANAGEMENT LI",11/1/2021 00:00:00,"243285",4255.48,"GL0214","GLENDALE GROUNDS MANAGEMENT LIMITED",28/12/2020 00:00:00,31/1/2021 00:00:00,"P10-2021"
,"LEE VALLEY VELOPARK","PREMISES RELATED EXPENDITURE","GM MAIN CONTRACT SCHEDULED","2141","GLENDALE GROUNDS MANAGEMENT LI",11/1/2021 00:00:00,"243284",846.1,"GL0214","GLENDALE GROUNDS MANAGEMENT LIMITED",28/12/2020 00:00:00,31/1/2021 00:00:00,"P10-2021"
,"LEE VALLEY VELOPARK","PREMISES RELATED EXPENDITURE","GM MAIN CONTRACT SCHEDULED","2141","GLENDALE GROUNDS MANAGEMENT LI",11/1/2021 00:00:00,"243285",143.24,"GL0214","GLENDALE GROUNDS MANAGEMENT LIMITED",28/12/2020 00:00:00,31/1/2021 00:00:00,"P10-2021"
,"LV HOCKEY AND TENNIS CENTRE","PREMISES RELATED EXPENDITURE","GM MAIN CONTRACT SCHEDULED","2141","GLENDALE GROUNDS MANAGEMENT LI",11/1/2021 00:00:00,"243284",1033.94,"GL0214","GLENDALE GROUNDS MANAGEMENT LIMITED",28/12/2020 00:00:00,31/1/2021 00:00:00,"P10-2021"
,"LV HOCKEY AND TENNIS CENTRE","PREMISES RELATED EXPENDITURE","GM MAIN CONTRACT SCHEDULED","2141","GLENDALE GROUNDS MANAGEMENT LI",11/1/2021 00:00:00,"243285",125.14,"GL0214","GLENDALE GROUNDS MANAGEMENT LIMITED",28/12/2020 00:00:00,31/1/2021 00:00:00,"P10-2021"
"P&V","THREE MILLS","PREMISES RELATED EXPENDITURE","GM MAIN CONTRACT SCHEDULED","2141","GLENDALE GROUNDS MANAGEMENT LI",11/1/2021 00:00:00,"243284",600.87,"GL0214","GLENDALE GROUNDS MANAGEMENT LIMITED",28/12/2020 00:00:00,31/1/2021 00:00:00,"P10-2021"
"P&V","THREE MILLS","PREMISES RELATED EXPENDITURE","GM MAIN CONTRACT SCHEDULED","2141","GLENDALE GROUNDS MANAGEMENT LI",11/1/2021 00:00:00,"243285",111.29,"GL0214","GLENDALE GROUNDS MANAGEMENT LIMITED",28/12/2020 00:00:00,31/1/2021 00:00:00,"P10-2021"
,"LEE VALLEY RIDING CENTRE","PREMISES RELATED EXPENDITURE","GM MAIN CONTRACT SCHEDULED","2141","GLENDALE GROUNDS MANAGEMENT LI",11/1/2021 00:00:00,"243284",197.22,"GL0214","GLENDALE GROUNDS MANAGEMENT LIMITED",28/12/2020 00:00:00,31/1/2021 00:00:00,"P10-2021"
,"LEE VALLEY RIDING CENTRE","PREMISES RELATED EXPENDITURE","GM MAIN CONTRACT SCHEDULED","2141","GLENDALE GROUNDS MANAGEMENT LI",11/1/2021 00:00:00,"243285",84.23,"GL0214","GLENDALE GROUNDS MANAGEMENT LIMITED",28/12/2020 00:00:00,31/1/2021 00:00:00,"P10-2021"
,"LEE VALLEY ICE CENTRE","PREMISES RELATED EXPENDITURE","GM MAIN CONTRACT SCHEDULED","2141","GLENDALE GROUNDS MANAGEMENT LI",11/1/2021 00:00:00,"243284",144.35,"GL0214","GLENDALE GROUNDS MANAGEMENT LIMITED",28/12/2020 00:00:00,31/1/2021 00:00:00,"P10-2021"
,"LEE VALLEY ICE CENTRE","PREMISES RELATED EXPENDITURE","GM MAIN CONTRACT SCHEDULED","2141","GLENDALE GROUNDS MANAGEMENT LI",11/1/2021 00:00:00,"243285",85.77,"GL0214","GLENDALE GROUNDS MANAGEMENT LIMITED",28/12/2020 00:00:00,31/1/2021 00:00:00,"P10-2021"
"P&V","FORMER LV LIDO SITE","PREMISES RELATED EXPENDITURE","GM MAIN CONTRACT SCHEDULED","2141","GLENDALE GROUNDS MANAGEMENT LI",11/1/2021 00:00:00,"243284",477.39,"GL0214","GLENDALE GROUNDS MANAGEMENT LIMITED",28/12/2020 00:00:00,31/1/2021 00:00:00,"P10-2021"
"P&V","FORMER LV LIDO SITE","PREMISES RELATED EXPENDITURE","GM MAIN CONTRACT SCHEDULED","2141","GLENDALE GROUNDS MANAGEMENT LI",11/1/2021 00:00:00,"243285",168.06,"GL0214","GLENDALE GROUNDS MANAGEMENT LIMITED",28/12/2020 00:00:00,31/1/2021 00:00:00,"P10-2021"
,"LEE VALLEY ATHLETICS CENTRE","PREMISES RELATED EXPENDITURE","GM MAIN CONTRACT SCHEDULED","2141","GLENDALE GROUNDS MANAGEMENT LI",11/1/2021 00:00:00,"243284",233.84,"GL0214","GLENDALE GROUNDS MANAGEMENT LIMITED",28/12/2020 00:00:00,31/1/2021 00:00:00,"P10-2021"
,"LEE VALLEY ATHLETICS CENTRE","PREMISES RELATED EXPENDITURE","GM MAIN CONTRACT SCHEDULED","2141","GLENDALE GROUNDS MANAGEMENT LI",11/1/2021 00:00:00,"243285",162.71,"GL0214","GLENDALE GROUNDS MANAGEMENT LIMITED",28/12/2020 00:00:00,31/1/2021 00:00:00,"P10-2021"
,"LEE VALLEY WHITE WATER CENTRE","PREMISES RELATED EXPENDITURE","GM MAIN CONTRACT SCHEDULED","2141","GLENDALE GROUNDS MANAGEMENT LI",11/1/2021 00:00:00,"243284",829.25,"GL0214","GLENDALE GROUNDS MANAGEMENT LIMITED",28/12/2020 00:00:00,31/1/2021 00:00:00,"P10-2021"
,"LEE VALLEY WHITE WATER CENTRE","PREMISES RELATED EXPENDITURE","GM MAIN CONTRACT SCHEDULED","2141","GLENDALE GROUNDS MANAGEMENT LI",11/1/2021 00:00:00,"243285",501.45,"GL0214","GLENDALE GROUNDS MANAGEMENT LIMITED",28/12/2020 00:00:00,31/1/2021 00:00:00,"P10-2021"
"P&V","NORTH AREA RANGERS","PREMISES RELATED EXPENDITURE","GM MAIN CONTRACT UNSCHEDULED","2142","P110256-SERVICE-Extra Waste Collections - Open Spaces",26/1/2021 00:00:00,"243791",1305,"GL0214","GLENDALE GROUNDS MANAGEMENT LIMITED",28/12/2020 00:00:00,31/1/2021 00:00:00,"P10-2021"
"P&V","SOUTH AREA RANGERS","PREMISES RELATED EXPENDITURE","GM MAIN CONTRACT UNSCHEDULED","2142","P109774-SERVICE-Cleaning WaterWorks Centre - December",5/1/2021 00:00:00,"243286",526.05,"GL0214","GLENDALE GROUNDS MANAGEMENT LIMITED",28/12/2020 00:00:00,31/1/2021 00:00:00,"P10-2021"
"P&V","SOUTH AREA RANGERS","PREMISES RELATED EXPENDITURE","GM MAIN CONTRACT UNSCHEDULED","2142","P110238-SERVICE-Deep Clean Ranger Office at WaterWorks",5/1/2021 00:00:00,"243287",609.57,"GL0214","GLENDALE GROUNDS MANAGEMENT LIMITED",28/12/2020 00:00:00,31/1/2021 00:00:00,"P10-2021"
"P&V","SOUTH AREA RANGERS","PREMISES RELATED EXPENDITURE","GM MAIN CONTRACT UNSCHEDULED","2142","P110256-SERVICE-Extra Waste Collections - Open Spaces",26/1/2021 00:00:00,"243791",1305,"GL0214","GLENDALE GROUNDS MANAGEMENT LIMITED",28/12/2020 00:00:00,31/1/2021 00:00:00,"P10-2021"
"P&V","SOUTH AREA RANGERS","PREMISES RELATED EXPENDITURE","GM MAIN CONTRACT UNSCHEDULED","2142","P110479-SERVICE-Replace Locks at WaterWorks Outbuildings",31/1/2021 00:00:00,"244134",545,"DE0013","DENNIS SECURITY CENTRE",28/12/2020 00:00:00,31/1/2021 00:00:00,"P10-2021"
,"LEE VALLEY WATERWORKS CENTRE","PREMISES RELATED EXPENDITURE","GM HORTICULTURE SCHEDULED","2143","GLENDALE GROUNDS MANAGEMENT LI",11/1/2021 00:00:00,"243284",77.81,"GL0214","GLENDALE GROUNDS MANAGEMENT LIMITED",28/12/2020 00:00:00,31/1/2021 00:00:00,"P10-2021"
"P&V","NORTH AREA RANGERS","PREMISES RELATED EXPENDITURE","GM HORTICULTURE SCHEDULED","2143","GLENDALE GROUNDS MANAGEMENT LI",11/1/2021 00:00:00,"243284",109.32,"GL0214","GLENDALE GROUNDS MANAGEMENT LIMITED",28/12/2020 00:00:00,31/1/2021 00:00:00,"P10-2021"
"P&V","SOUTH AREA RANGERS","PREMISES RELATED EXPENDITURE","GM HORTICULTURE SCHEDULED","2143","GLENDALE GROUNDS MANAGEMENT LI",11/1/2021 00:00:00,"243284",63.25,"GL0214","GLENDALE GROUNDS MANAGEMENT LIMITED",28/12/2020 00:00:00,31/1/2021 00:00:00,"P10-2021"
"P&V","ABBEY GARDENS","PREMISES RELATED EXPENDITURE","GM HORTICULTURE SCHEDULED","2143","GLENDALE GROUNDS MANAGEMENT LI",11/1/2021 00:00:00,"243284",909.91,"GL0214","GLENDALE GROUNDS MANAGEMENT LIMITED",28/12/2020 00:00:00,31/1/2021 00:00:00,"P10-2021"
"P&V","GUNPOWDER PARK","PREMISES RELATED EXPENDITURE","GM HORTICULTURE SCHEDULED","2143","GLENDALE GROUNDS MANAGEMENT LI",11/1/2021 00:00:00,"243284",119.1,"GL0214","GLENDALE GROUNDS MANAGEMENT LIMITED",28/12/2020 00:00:00,31/1/2021 00:00:00,"P10-2021"
"P&V","RIVER LEE COUNTRY PARK","PREMISES RELATED EXPENDITURE","GM HORTICULTURE SCHEDULED","2143","GLENDALE GROUNDS MANAGEMENT LI",11/1/2021 00:00:00,"243284",61.08,"GL0214","GLENDALE GROUNDS MANAGEMENT LIMITED",28/12/2020 00:00:00,31/1/2021 00:00:00,"P10-2021"
,"LEE VALLEY VELOPARK","PREMISES RELATED EXPENDITURE","GM HORTICULTURE SCHEDULED","2143","GLENDALE GROUNDS MANAGEMENT LI",11/1/2021 00:00:00,"243284",12.45,"GL0214","GLENDALE GROUNDS MANAGEMENT LIMITED",28/12/2020 00:00:00,31/1/2021 00:00:00,"P10-2021"
,"LV HOCKEY AND TENNIS CENTRE","PREMISES RELATED EXPENDITURE","GM HORTICULTURE SCHEDULED","2143","GLENDALE GROUNDS MANAGEMENT LI",11/1/2021 00:00:00,"243284",528.43,"GL0214","GLENDALE GROUNDS MANAGEMENT LIMITED",28/12/2020 00:00:00,31/1/2021 00:00:00,"P10-2021"
"P&V","THREE MILLS","PREMISES RELATED EXPENDITURE","GM HORTICULTURE SCHEDULED","2143","GLENDALE GROUNDS MANAGEMENT LI",11/1/2021 00:00:00,"243284",20,"GL0214","GLENDALE GROUNDS MANAGEMENT LIMITED",28/12/2020 00:00:00,31/1/2021 00:00:00,"P10-2021"
,"LEE VALLEY RIDING CENTRE","PREMISES RELATED EXPENDITURE","GM HORTICULTURE SCHEDULED","2143","GLENDALE GROUNDS MANAGEMENT LI",11/1/2021 00:00:00,"243284",6.19,"GL0214","GLENDALE GROUNDS MANAGEMENT LIMITED",28/12/2020 00:00:00,31/1/2021 00:00:00,"P10-2021"
,"LEE VALLEY WHITE WATER CENTRE","PREMISES RELATED EXPENDITURE","GM HORTICULTURE SCHEDULED","2143","GLENDALE GROUNDS MANAGEMENT LI",11/1/2021 00:00:00,"243284",2.87,"GL0214","GLENDALE GROUNDS MANAGEMENT LIMITED",28/12/2020 00:00:00,31/1/2021 00:00:00,"P10-2021"
"P&V","ABBEY GARDENS","PREMISES RELATED EXPENDITURE","GM ARBORICULTURE UNSCHEDULED","2146","P106516-SERVICE-Tree Works - Tree Park South",4/1/2021 00:00:00,"234660",4380,"MU0030","P J MUSK TREES",28/12/2020 00:00:00,31/1/2021 00:00:00,"P10-2021"
"P&V","ABBEY GARDENS","PREMISES RELATED EXPENDITURE","GM ARBORICULTURE UNSCHEDULED","2146","P106516-SERVICE-Tree Works - Tree Park South",4/1/2021 00:00:00,"243196",-4380,"MU0030","P J MUSK TREES",28/12/2020 00:00:00,31/1/2021 00:00:00,"P10-2021"
"P&V","NORTH AREA RANGERS","PREMISES RELATED EXPENDITURE","GM NON MAIN CONT UNSCHEDULED","2147","P110218-SERVICE-Ditch Works at Nursery Road",18/1/2021 00:00:00,"243720",1250,"BU0090","BUSH WHEELER SERVICES LTD",28/12/2020 00:00:00,31/1/2021 00:00:00,"P10-2021"
"P&V","SOUTH AREA RANGERS","PREMISES RELATED EXPENDITURE","GM NON MAIN CONT UNSCHEDULED","2147","P106913-SERVICE-Art Table Repiars at Coppermill 2020-004983",18/1/2021 00:00:00,"241106",305.89,"GL0214","GLENDALE GROUNDS MANAGEMENT LIMITED",28/12/2020 00:00:00,31/1/2021 00:00:00,"P10-2021"
"P&V","SOUTH AREA RANGERS","PREMISES RELATED EXPENDITURE","GM NON MAIN CONT UNSCHEDULED","2147","P109874-SERVICE-Clear Drains at Lea Bridge Road Underpass",28/12/2020 00:00:00,"243019",895,"AB0257","ABBEY DRAINS LTD",28/12/2020 00:00:00,31/1/2021 00:00:00,"P10-2021"
"P&V","SOUTH AREA RANGERS","PREMISES RELATED EXPENDITURE","GM NON MAIN CONT UNSCHEDULED","2147","P106913-SERVICE-Art Table Repiars at Coppermill 2020-004983",18/1/2021 00:00:00,"243729",-305.89,"GL0214","GLENDALE GROUNDS MANAGEMENT LIMITED",28/12/2020 00:00:00,31/1/2021 00:00:00,"P10-2021"
"P&V","THREE MILLS","PREMISES RELATED EXPENDITURE","GM NON MAIN CONT UNSCHEDULED","2147","P107830-SERVICE-Electrical Testing at Three Mills",31/1/2021 00:00:00,"244004",240,"BR0018","BRADSHAW ELECTRICAL LIMITED",28/12/2020 00:00:00,31/1/2021 00:00:00,"P10-2021"
"P&V","GUNPOWDER PARK","PREMISES RELATED EXPENDITURE","HABITAT MANAGEMENT WORKS","2149","P108620-SERVICE-Meadow Cuts at Rammey Marsh",19/1/2021 00:00:00,"239463",1200,"BU0090","BUSH WHEELER SERVICES LTD",28/12/2020 00:00:00,31/1/2021 00:00:00,"P10-2021"
,"LEE VALLEY FARM HAYES HILL","PREMISES RELATED EXPENDITURE","CESSPOOL EMPTYING","2210","P107375-SERVICE-Managed contract for sewage treatment",11/1/2021 00:00:00,"243205",-280,"KE0018","KEE SERVICES LIMITED",28/12/2020 00:00:00,31/1/2021 00:00:00,"P10-2021"
"P&V","RIVER LEE COUNTRY PARK","PREMISES RELATED EXPENDITURE","CESSPOOL EMPTYING","2210","P110297-SERVICE-Servicing of Pump at Fishers Green Toilets",11/1/2021 00:00:00,"243501",1100,"DE0176","DECKPRO",28/12/2020 00:00:00,31/1/2021 00:00:00,"P10-2021"
,"LEE VALLEY MARINA SPRINGFIELD","PREMISES RELATED EXPENDITURE","GENERAL WASTE","2211","P110089-SERVICE-General waste & Recycling collection Nov/Dec",11/1/2021 00:00:00,"243448",1191.41,"CL0037","VEOLIA ES (UK) LTD",28/12/2020 00:00:00,31/1/2021 00:00:00,"P10-2021"
,"LEE VALLEY MARINA STANSTEAD","PREMISES RELATED EXPENDITURE","GENERAL WASTE","2211","P107647-SERVICE-Weekly waste removal Stanstead Abbotts 20/21",11/1/2021 00:00:00,"243441",243.66,"CL0037","VEOLIA ES (UK) LTD",28/12/2020 00:00:00,31/1/2021 00:00:00,"P10-2021"
,"LEE VALLEY MARINA STANSTEAD","PREMISES RELATED EXPENDITURE","GENERAL WASTE","2211","P107647-SERVICE-Weekly waste removal Stanstead Abbotts 20/21",11/1/2021 00:00:00,"243444",743.82,"CL0037","VEOLIA ES (UK) LTD",28/12/2020 00:00:00,31/1/2021 00:00:00,"P10-2021"
,"LEE VALLEY WATERWORKS CENTRE","PREMISES RELATED EXPENDITURE","GENERAL WASTE","2211","P110248-SERVICE-Waterworks Recycling / Waste Rental",4/1/2021 00:00:00,"241370",166.02,"BY0049","BYWATERS (LEYTON) LTD",28/12/2020 00:00:00,31/1/2021 00:00:00,"P10-2021"
,"LEE VALLEY WATERWORKS CENTRE","PREMISES RELATED EXPENDITURE","GENERAL WASTE","2211","P110248-SERVICE-Waterworks Recycling / Waste Rental",11/1/2021 00:00:00,"242446",81.85,"BY0049","BYWATERS (LEYTON) LTD",28/12/2020 00:00:00,31/1/2021 00:00:00,"P10-2021"
,"LEE VALLEY WATERWORKS CENTRE","PREMISES RELATED EXPENDITURE","GENERAL WASTE","2211","P109106-SERVICE-Waterworks recycling/waste - June 2020",11/1/2021 00:00:00,"242446",103.59,"BY0049","BYWATERS (LEYTON) LTD",28/12/2020 00:00:00,31/1/2021 00:00:00,"P10-2021"
,"LEE VALLEY WATERWORKS CENTRE","PREMISES RELATED EXPENDITURE","GENERAL WASTE","2211","P110248-SERVICE-Waterworks Recycling / Waste Rental",4/1/2021 00:00:00,"242985",-138.12,"BY0049","BYWATERS (LEYTON) LTD",28/12/2020 00:00:00,31/1/2021 00:00:00,"P10-2021"
,"LEE VALLEY WATERWORKS CENTRE","PREMISES RELATED EXPENDITURE","GENERAL WASTE","2211","P110248-SERVICE-Waterworks Recycling / Waste Rental",11/1/2021 00:00:00,"243430",-152.33,"BY0049","BYWATERS (LEYTON) LTD",28/12/2020 00:00:00,31/1/2021 00:00:00,"P10-2021"
,"LEE VALLEY WATERWORKS CENTRE","PREMISES RELATED EXPENDITURE","GENERAL WASTE","2211","P110248-SERVICE-Waterworks Recycling / Waste Rental",11/1/2021 00:00:00,"243431",-158.44,"BY0049","BYWATERS (LEYTON) LTD",28/12/2020 00:00:00,31/1/2021 00:00:00,"P10-2021"
"P&V","LEE VALLEY FARM HOLYFIELDHALL","PREMISES RELATED EXPENDITURE","GENERAL WASTE","2211","P110426-SERVICE-Waste for Incineration",12/1/2021 00:00:00,"243317",171.71,"BY0049","BYWATERS (LEYTON) LTD",28/12/2020 00:00:00,31/1/2021 00:00:00,"P10-2021"
"P&V","LEE VALLEY FARM HOLYFIELDHALL","PREMISES RELATED EXPENDITURE","GENERAL WASTE","2211","P110427-SERVICE-Waste for Incineration",12/1/2021 00:00:00,"243318",182.7,"BY0049","BYWATERS (LEYTON) LTD",28/12/2020 00:00:00,31/1/2021 00:00:00,"P10-2021"
"P&V","LEE VALLEY FARM HOLYFIELDHALL","PREMISES RELATED EXPENDITURE","GENERAL WASTE","2211","P110428-SERVICE-Waste for Incineration",13/1/2021 00:00:00,"243488",543.22,"BY0049","BYWATERS (LEYTON) LTD",28/12/2020 00:00:00,31/1/2021 00:00:00,"P10-2021"
,"LEE VALLEY FARM HAYES HILL","PREMISES RELATED EXPENDITURE","GENERAL WASTE","2211","P109062-SERVICE-Waste collections June 20",4/1/2021 00:00:00,"243138",-534.24,"BY0049","BYWATERS (LEYTON) LTD",28/12/2020 00:00:00,31/1/2021 00:00:00,"P10-2021"
,"LEE VALLEY FARM HAYES HILL","PREMISES RELATED EXPENDITURE","GENERAL WASTE","2211","P109165-SERVICE-Waste collections",4/1/2021 00:00:00,"243141",-667.8,"BY0049","BYWATERS (LEYTON) LTD",28/12/2020 00:00:00,31/1/2021 00:00:00,"P10-2021"
,"LEE VALLEY FARM HAYES HILL","PREMISES RELATED EXPENDITURE","GENERAL WASTE","2211","P110392-SERVICE-Waste collections x5",12/1/2021 00:00:00,"243495",667.8,"BY0049","BYWATERS (LEYTON) LTD",28/12/2020 00:00:00,31/1/2021 00:00:00,"P10-2021"
,"LEE VALLEY FARM HAYES HILL","PREMISES RELATED EXPENDITURE","GENERAL WASTE","2211","P110392-SERVICE-Bin rent",12/1/2021 00:00:00,"243495",27.9,"BY0049","BYWATERS (LEYTON) LTD",28/12/2020 00:00:00,31/1/2021 00:00:00,"P10-2021"
,"LEE VALLEY FARM HAYES HILL","PREMISES RELATED EXPENDITURE","GENERAL WASTE","2211","P110494-SERVICE-12 yard skip",25/1/2021 00:00:00,"243910",270,"GB0239","GBN SERVICES LTD",28/12/2020 00:00:00,31/1/2021 00:00:00,"P10-2021"
,"LEE VALLEY CARAVAN PARK","PREMISES RELATED EXPENDITURE","GENERAL WASTE","2211","P110396-SERVICE-Veolia waste skips Emptied",12/1/2021 00:00:00,"243443",2391.05,"CL0037","VEOLIA ES (UK) LTD",28/12/2020 00:00:00,31/1/2021 00:00:00,"P10-2021"
"P&V","SOUTH AREA RANGERS","PREMISES RELATED EXPENDITURE","GENERAL WASTE","2211","P110178-SERVICE-Skip at WaterWorks Centre",11/1/2021 00:00:00,"243483",270,"GB0239","GBN SERVICES LTD",28/12/2020 00:00:00,31/1/2021 00:00:00,"P10-2021"
"P&V","SOUTH AREA RANGERS","PREMISES RELATED EXPENDITURE","GENERAL WASTE","2211","P110178-SERVICE-Skip at WaterWorks Centre",26/1/2021 00:00:00,"243748",270,"GB0239","GBN SERVICES LTD",28/12/2020 00:00:00,31/1/2021 00:00:00,"P10-2021"
"P&V","RIVER LEE COUNTRY PARK","PREMISES RELATED EXPENDITURE","GENERAL WASTE","2211","P110314-SERVICE-12yd General Rubbish Skip",5/1/2021 00:00:00,"243199",270,"GB0239","GBN SERVICES LTD",28/12/2020 00:00:00,31/1/2021 00:00:00,"P10-2021"
"P&V","RIVER LEE COUNTRY PARK","PREMISES RELATED EXPENDITURE","GENERAL WASTE","2211","P110314-SERVICE-12yd General Rubbish Skip",18/1/2021 00:00:00,"243676",270,"GB0239","GBN SERVICES LTD",28/12/2020 00:00:00,31/1/2021 00:00:00,"P10-2021"
"P&V","RIVER LEE COUNTRY PARK","PREMISES RELATED EXPENDITURE","GENERAL WASTE","2211","P110314-SERVICE-12yd General Rubbish Skip",18/1/2021 00:00:00,"243747",270,"GB0239","GBN SERVICES LTD",28/12/2020 00:00:00,31/1/2021 00:00:00,"P10-2021"
"P&V","RIVER LEE COUNTRY PARK","PREMISES RELATED EXPENDITURE","GENERAL WASTE","2211","P110592-SERVICE-12yd General Rubbish Skip",31/1/2021 00:00:00,"244141",270,"GB0239","GBN SERVICES LTD",28/12/2020 00:00:00,31/1/2021 00:00:00,"P10-2021"
,"LEE VALLEY RIDING CENTRE","PREMISES RELATED EXPENDITURE","GENERAL WASTE","2211","P108648-SERVICE-muck heap removal",4/1/2021 00:00:00,"242971",200,"AL0241","ALLMAC HAULAGE",28/12/2020 00:00:00,31/1/2021 00:00:00,"P10-2021"
,"LEE VALLEY RIDING CENTRE","PREMISES RELATED EXPENDITURE","GENERAL WASTE","2211","P107322-SERVICE-annual waste and compactor",13/1/2021 00:00:00,"243492",2172.12,"BY0049","BYWATERS (LEYTON) LTD",28/12/2020 00:00:00,31/1/2021 00:00:00,"P10-2021"
,"LEE VALLEY RIDING CENTRE","PREMISES RELATED EXPENDITURE","GENERAL WASTE","2211","P108648-SERVICE-muck heap removal",31/1/2021 00:00:00,"243984",200,"AL0241","ALLMAC HAULAGE",28/12/2020 00:00:00,31/1/2021 00:00:00,"P10-2021"
,"LEE VALLEY ICE CENTRE","PREMISES RELATED EXPENDITURE","GENERAL WASTE","2211","P110410-SERVICE-Compactor Rental",12/1/2021 00:00:00,"243311",225,"BY0049","BYWATERS (LEYTON) LTD",28/12/2020 00:00:00,31/1/2021 00:00:00,"P10-2021"
,"LEE VALLEY ICE CENTRE","PREMISES RELATED EXPENDITURE","GENERAL WASTE","2211","P110411-SERVICE-Compactor Rental",12/1/2021 00:00:00,"243312",232.5,"BY0049","BYWATERS (LEYTON) LTD",28/12/2020 00:00:00,31/1/2021 00:00:00,"P10-2021"
,"LEE VALLEY ICE CENTRE","PREMISES RELATED EXPENDITURE","GENERAL WASTE","2211","P110412-SERVICE-Compactor Rental",12/1/2021 00:00:00,"243313",232.5,"BY0049","BYWATERS (LEYTON) LTD",28/12/2020 00:00:00,31/1/2021 00:00:00,"P10-2021"
,"LEE VALLEY ICE CENTRE","PREMISES RELATED EXPENDITURE","GENERAL WASTE","2211","P110413-SERVICE-Compactor",12/1/2021 00:00:00,"243314",225,"BY0049","BYWATERS (LEYTON) LTD",28/12/2020 00:00:00,31/1/2021 00:00:00,"P10-2021"
,"LEE VALLEY ICE CENTRE","PREMISES RELATED EXPENDITURE","GENERAL WASTE","2211","P110414-SERVICE-Compactor",12/1/2021 00:00:00,"243315",232.5,"BY0049","BYWATERS (LEYTON) LTD",28/12/2020 00:00:00,31/1/2021 00:00:00,"P10-2021"
,"LEE VALLEY ICE CENTRE","PREMISES RELATED EXPENDITURE","GENERAL WASTE","2211","P110415-SERVICE-Compactor",12/1/2021 00:00:00,"243316",225,"BY0049","BYWATERS (LEYTON) LTD",28/12/2020 00:00:00,31/1/2021 00:00:00,"P10-2021"
,"LEE VALLEY ICE CENTRE","PREMISES RELATED EXPENDITURE","GENERAL WASTE","2211","P110416-SERVICE-Rental Skip Portapacker",12/1/2021 00:00:00,"243450",150,"CA0341","F & R CAWLEY LTD",28/12/2020 00:00:00,31/1/2021 00:00:00,"P10-2021"
,"LEE VALLEY ICE CENTRE","PREMISES RELATED EXPENDITURE","GENERAL WASTE","2211","P110417-SERVICE-Rental Skip Portapacker",12/1/2021 00:00:00,"243451",150,"CA0341","F & R CAWLEY LTD",28/12/2020 00:00:00,31/1/2021 00:00:00,"P10-2021"
,"LEE VALLEY ICE CENTRE","PREMISES RELATED EXPENDITURE","GENERAL WASTE","2211","P110418-SERVICE-Rental Skip Portapacker",12/1/2021 00:00:00,"243452",150,"CA0341","F & R CAWLEY LTD",28/12/2020 00:00:00,31/1/2021 00:00:00,"P10-2021"
,"LEE VALLEY ICE CENTRE","PREMISES RELATED EXPENDITURE","GENERAL WASTE","2211","P110610-SERVICE-Rental Skip Portapacker",31/1/2021 00:00:00,"243507",150,"CA0341","F & R CAWLEY LTD",28/12/2020 00:00:00,31/1/2021 00:00:00,"P10-2021"
,"LEE VALLEY ICE CENTRE","PREMISES RELATED EXPENDITURE","GENERAL WASTE","2211","P110296-SERVICE-Skip Exchange",18/1/2021 00:00:00,"243707",278.45,"OD0010","O'DONOVAN (WASTE DISPOSAL) LTD",28/12/2020 00:00:00,31/1/2021 00:00:00,"P10-2021"
,"LEE VALLEY ICE CENTRE","PREMISES RELATED EXPENDITURE","GENERAL WASTE","2211","P110613-SERVICE-Portable Compactor",31/1/2021 00:00:00,"243774",232.5,"BY0049","BYWATERS (LEYTON) LTD",28/12/2020 00:00:00,31/1/2021 00:00:00,"P10-2021"
,"LV LEISURE CENTRE CAMPSITE","PREMISES RELATED EXPENDITURE","GENERAL WASTE","2211","P110329-SERVICE-waste collection have CN",5/1/2021 00:00:00,"239400",151.68,"BY0049","BYWATERS (LEYTON) LTD",28/12/2020 00:00:00,31/1/2021 00:00:00,"P10-2021"
,"LV LEISURE CENTRE CAMPSITE","PREMISES RELATED EXPENDITURE","GENERAL WASTE","2211","P110327-SERVICE-Waste collection",5/1/2021 00:00:00,"242431",386.68,"CL0037","VEOLIA ES (UK) LTD",28/12/2020 00:00:00,31/1/2021 00:00:00,"P10-2021"
,"LV LEISURE CENTRE CAMPSITE","PREMISES RELATED EXPENDITURE","GENERAL WASTE","2211","P110329-SERVICE-waste collection have CN",5/1/2021 00:00:00,"242999",-113.76,"BY0049","BYWATERS (LEYTON) LTD",28/12/2020 00:00:00,31/1/2021 00:00:00,"P10-2021"
,"LV LEISURE CENTRE CAMPSITE","PREMISES RELATED EXPENDITURE","GENERAL WASTE","2211","P108123-SERVICE-waste collection",4/1/2021 00:00:00,"243143",-151.68,"BY0049","BYWATERS (LEYTON) LTD",28/12/2020 00:00:00,31/1/2021 00:00:00,"P10-2021"
,"LV LEISURE CENTRE CAMPSITE","PREMISES RELATED EXPENDITURE","GENERAL WASTE","2211","P110158-SERVICE-needed for credit note",11/1/2021 00:00:00,"243303",-151.68,"BY0049","BYWATERS (LEYTON) LTD",28/12/2020 00:00:00,31/1/2021 00:00:00,"P10-2021"
,"LV LEISURE CENTRE CAMPSITE","PREMISES RELATED EXPENDITURE","GENERAL WASTE","2211","P110497-SERVICE-waste empty",20/1/2021 00:00:00,"243445",68.25,"CL0037","VEOLIA ES (UK) LTD",28/12/2020 00:00:00,31/1/2021 00:00:00,"P10-2021"
,"LV LEISURE CENTRE CAMPSITE","PREMISES RELATED EXPENDITURE","GENERAL WASTE","2211","P110499-SERVICE-general waste",20/1/2021 00:00:00,"243498",151.68,"BY0049","BYWATERS (LEYTON) LTD",28/12/2020 00:00:00,31/1/2021 00:00:00,"P10-2021"
,"LEE VALLEY WHITE WATER CENTRE","PREMISES RELATED EXPENDITURE","GENERAL WASTE","2211","P107358-SERVICE-Refuge Collections Apr to Sept",6/1/2021 00:00:00,"243139",-73.2,"BY0049","BYWATERS (LEYTON) LTD",28/12/2020 00:00:00,31/1/2021 00:00:00,"P10-2021"
,"LEE VALLEY WHITE WATER CENTRE","PREMISES RELATED EXPENDITURE","GENERAL WASTE","2211","P107358-SERVICE-Refuge Collections Apr to Sept",6/1/2021 00:00:00,"243142",-491.28,"BY0049","BYWATERS (LEYTON) LTD",28/12/2020 00:00:00,31/1/2021 00:00:00,"P10-2021"
,"LEE VALLEY WHITE WATER CENTRE","PREMISES RELATED EXPENDITURE","GENERAL WASTE","2211","P107577-SERVICE-Waste removal from WWC",6/1/2021 00:00:00,"243144",-92.39,"BY0049","BYWATERS (LEYTON) LTD",28/12/2020 00:00:00,31/1/2021 00:00:00,"P10-2021"
,"LEE VALLEY WHITE WATER CENTRE","PREMISES RELATED EXPENDITURE","GENERAL WASTE","2211","P110422-SERVICE-WWC Waste collection",12/1/2021 00:00:00,"243496",506.05,"BY0049","BYWATERS (LEYTON) LTD",28/12/2020 00:00:00,31/1/2021 00:00:00,"P10-2021"
,"LEE VALLEY WHITE WATER CENTRE","PREMISES RELATED EXPENDITURE","GENERAL WASTE","2211","P107358-SERVICE-Refuge Collections Apr to Sept",27/1/2021 00:00:00,"243953",-614.1,"BY0049","BYWATERS (LEYTON) LTD",28/12/2020 00:00:00,31/1/2021 00:00:00,"P10-2021"
"P&V","SOUTH AREA RANGERS","PREMISES RELATED EXPENDITURE","FLYTIPPING/WHITE GOOD DISPOSAL","2213","P110298-SERVICE-Remove Flytip from WaterWorks Car Park",5/1/2021 00:00:00,"243229",320,"CH0537","CHL WASTE CLEARANCE",28/12/2020 00:00:00,31/1/2021 00:00:00,"P10-2021"
"P&V","SOUTH AREA RANGERS","PREMISES RELATED EXPENDITURE","FLYTIPPING/WHITE GOOD DISPOSAL","2213","P110083-SERVICE-Remove Tents from Tottenham Marhses",26/1/2021 00:00:00,"243880",450,"JO0019","R G JOYCE",28/12/2020 00:00:00,31/1/2021 00:00:00,"P10-2021"
"P&V","MYDDELTON HOUSE","PREMISES RELATED EXPENDITURE","RECYCLING","2214","P110485-SERVICE-Recycling",19/1/2021 00:00:00,"243508",19.76,"CA0341","F & R CAWLEY LTD",28/12/2020 00:00:00,31/1/2021 00:00:00,"P10-2021"
,"LEE VALLEY FARM HAYES HILL","PREMISES RELATED EXPENDITURE","RECYCLING","2214","P107968-SERVICE-Recycling collections May",4/1/2021 00:00:00,"243140",-14.84,"BY0049","BYWATERS (LEYTON) LTD",28/12/2020 00:00:00,31/1/2021 00:00:00,"P10-2021"
,"LEE VALLEY FARM HAYES HILL","PREMISES RELATED EXPENDITURE","RECYCLING","2214","P110392-SERVICE-Recycling collections x4",12/1/2021 00:00:00,"243495",64.4,"BY0049","BYWATERS (LEYTON) LTD",28/12/2020 00:00:00,31/1/2021 00:00:00,"P10-2021"
"P&V","MYDDELTON HOUSE","PREMISES RELATED EXPENDITURE","BUILDING SERVICE AGREEMENTS","2220","P110321-SERVICE-Fire Risk Assessment - MH",4/1/2021 00:00:00,"243169",500,"RI0181","RD HEALTH & SAFETY LIMITED",28/12/2020 00:00:00,31/1/2021 00:00:00,"P10-2021"
"P&V","MYDDELTON HOUSE","PREMISES RELATED EXPENDITURE","BUILDING SERVICE AGREEMENTS","2220","P110071-SERVICE-Sanitary Services 2020",4/1/2021 00:00:00,"243179",53.44,"PE0015","PHS GROUP PLC",28/12/2020 00:00:00,31/1/2021 00:00:00,"P10-2021"
"P&V","MYDDELTON HOUSE","PREMISES RELATED EXPENDITURE","BUILDING SERVICE AGREEMENTS","2220","P110071-SERVICE-Sanitary Services 2020",5/1/2021 00:00:00,"243218",22.52,"PE0015","PHS GROUP PLC",28/12/2020 00:00:00,31/1/2021 00:00:00,"P10-2021"
"P&V","MYDDELTON HOUSE","PREMISES RELATED EXPENDITURE","BUILDING SERVICE AGREEMENTS","2220","P109290-SERVICE-Gas Cooker Service at Myddelton House",11/1/2021 00:00:00,"243296",90,"AS0039","ASTON HEATING LIMITED",28/12/2020 00:00:00,31/1/2021 00:00:00,"P10-2021"
"P&V","MYDDELTON HOUSE","PREMISES RELATED EXPENDITURE","BUILDING SERVICE AGREEMENTS","2220","P110480-SERVICE-Gas Boiler Services at Myddelton House and Ga",26/1/2021 00:00:00,"243897",481,"GI0137","R & P GIBBS LIMITED",28/12/2020 00:00:00,31/1/2021 00:00:00,"P10-2021"
"P&V","MYDDELTON HOUSE","PREMISES RELATED EXPENDITURE","BUILDING SERVICE AGREEMENTS","2220","P109038-SERVICE-Sanitary Services",25/1/2021 00:00:00,"243902",53.44,"PE0015","PHS GROUP PLC",28/12/2020 00:00:00,31/1/2021 00:00:00,"P10-2021"
"P&V","MYDDELTON HOUSE","PREMISES RELATED EXPENDITURE","BUILDING SERVICE AGREEMENTS","2220","P110481-SERVICE-Service Foul Pump Station at Myddelton House",26/1/2021 00:00:00,"243934",918.92,"CL0039","XYLEM WATER SOLUTIONS UK  LIMITED",28/12/2020 00:00:00,31/1/2021 00:00:00,"P10-2021"
"P&V","MYDDELTON HOUSE","PREMISES RELATED EXPENDITURE","BUILDING SERVICE AGREEMENTS","2220","P109038-SERVICE-Sanitary Services",31/1/2021 00:00:00,"243982",22.52,"PE0015","PHS GROUP PLC",28/12/2020 00:00:00,31/1/2021 00:00:00,"P10-2021"
"P&V","MYDDELTON HOUSE","PREMISES RELATED EXPENDITURE","BUILDING SERVICE AGREEMENTS","2220","P109038-SERVICE-Sanitary Services",31/1/2021 00:00:00,"243983",159.13,"PE0015","PHS GROUP PLC",28/12/2020 00:00:00,31/1/2021 00:00:00,"P10-2021"
,"LEE VALLEY CAMPSITE","PREMISES RELATED EXPENDITURE","BUILDING SERVICE AGREEMENTS","2220","P110390-SERVICE-3 yearly inspection",18/1/2021 00:00:00,"243434",1280,"BR0018","BRADSHAW ELECTRICAL LIMITED",28/12/2020 00:00:00,31/1/2021 00:00:00,"P10-2021"
,"LEE VALLEY CAMPSITE","PREMISES RELATED EXPENDITURE","BUILDING SERVICE AGREEMENTS","2220","P110460-SERVICE-Pest control",20/1/2021 00:00:00,"243521",70,"VE0006","VERMINATE CITY & RURAL PEST CONTROL LTD",28/12/2020 00:00:00,31/1/2021 00:00:00,"P10-2021"
"P&V","EAST INDIA DOCK AND BOW CREEK","PREMISES RELATED EXPENDITURE","BUILDING SERVICE AGREEMENTS","2220","P107831-SERVICE-Electrical Servicing at East India Dock Basin",31/1/2021 00:00:00,"244005",240,"BR0018","BRADSHAW ELECTRICAL LIMITED",28/12/2020 00:00:00,31/1/2021 00:00:00,"P10-2021"
"P&V","EAST INDIA DOCK AND BOW CREEK","PREMISES RELATED EXPENDITURE","BUILDING SERVICE AGREEMENTS","2220","P107831-SERVICE-Electrical Servicing at Bow Creek",31/1/2021 00:00:00,"244005",240,"BR0018","BRADSHAW ELECTRICAL LIMITED",28/12/2020 00:00:00,31/1/2021 00:00:00,"P10-2021"
"P&V","RYE HOUSE GATEHOUSE","PREMISES RELATED EXPENDITURE","BUILDING SERVICE AGREEMENTS","2220","P108554-SERVICE-Electrical Testing at Rye House Gatehouse",18/1/2021 00:00:00,"243527",480,"BR0018","BRADSHAW ELECTRICAL LIMITED",28/12/2020 00:00:00,31/1/2021 00:00:00,"P10-2021"
"P&V","NORTH AREA RANGERS","PREMISES RELATED EXPENDITURE","BUILDING SERVICE AGREEMENTS","2220","P108297-SERVICE-Sanitary Disposal - Dobbs Wier Toilets",4/1/2021 00:00:00,"240700",11.08,"PE0015","PHS GROUP PLC",28/12/2020 00:00:00,31/1/2021 00:00:00,"P10-2021"
"P&V","NORTH AREA RANGERS","PREMISES RELATED EXPENDITURE","BUILDING SERVICE AGREEMENTS","2220","P108298-SERVICE-Sanitary Disposal - Old Mill & Meadows Toilet",4/1/2021 00:00:00,"243177",17.58,"PE0015","PHS GROUP PLC",28/12/2020 00:00:00,31/1/2021 00:00:00,"P10-2021"
"P&V","NORTH AREA RANGERS","PREMISES RELATED EXPENDITURE","BUILDING SERVICE AGREEMENTS","2220","P108297-SERVICE-Sanitary Disposal - Dobbs Wier Toilets",4/1/2021 00:00:00,"243178",11.08,"PE0015","PHS GROUP PLC",28/12/2020 00:00:00,31/1/2021 00:00:00,"P10-2021"
"P&V","NORTH AREA RANGERS","PREMISES RELATED EXPENDITURE","BUILDING SERVICE AGREEMENTS","2220","P108297-SERVICE-Sanitary Disposal - Dobbs Wier Toilets",4/1/2021 00:00:00,"243180",-16.69,"PE0015","PHS GROUP PLC",28/12/2020 00:00:00,31/1/2021 00:00:00,"P10-2021"
"P&V","NORTH AREA RANGERS","PREMISES RELATED EXPENDITURE","BUILDING SERVICE AGREEMENTS","2220","P108298-SERVICE-Sanitary Disposal - Old Mill & Meadows Toilet",31/1/2021 00:00:00,"243980",17.58,"PE0015","PHS GROUP PLC",28/12/2020 00:00:00,31/1/2021 00:00:00,"P10-2021"
"P&V","SOUTH AREA RANGERS","PREMISES RELATED EXPENDITURE","BUILDING SERVICE AGREEMENTS","2220","P108373-SERVICE-Maintenance of Lighting at Lea Bridge Rd Unde",31/1/2021 00:00:00,"242660",103.79,"CO0199","ENGIE FM LIMITED",28/12/2020 00:00:00,31/1/2021 00:00:00,"P10-2021"
"P&V","SOUTH AREA RANGERS","PREMISES RELATED EXPENDITURE","BUILDING SERVICE AGREEMENTS","2220","P108373-SERVICE-Maintenance of Lighting at Lea Bridge Rd Unde",31/1/2021 00:00:00,"242661",103.79,"CO0199","ENGIE FM LIMITED",28/12/2020 00:00:00,31/1/2021 00:00:00,"P10-2021"
"P&V","SOUTH AREA RANGERS","PREMISES RELATED EXPENDITURE","BUILDING SERVICE AGREEMENTS","2220","P108373-SERVICE-Maintenance of Lighting at Lea Bridge Rd Unde",31/1/2021 00:00:00,"243899",103.79,"CO0199","ENGIE FM LIMITED",28/12/2020 00:00:00,31/1/2021 00:00:00,"P10-2021"
"P&V","GUNPOWDER PARK","PREMISES RELATED EXPENDITURE","BUILDING SERVICE AGREEMENTS","2220","P108299-SERVICE-Sanitary Disposal - Gunpowder Park Office Toi",5/1/2021 00:00:00,"243216",2.05,"PE0015","PHS GROUP PLC",28/12/2020 00:00:00,31/1/2021 00:00:00,"P10-2021"
"P&V","GUNPOWDER PARK","PREMISES RELATED EXPENDITURE","BUILDING SERVICE AGREEMENTS","2220","P108299-SERVICE-Sanitary Disposal - Gunpowder Park Office Toi",5/1/2021 00:00:00,"243216",0.65,"PE0015","PHS GROUP PLC",28/12/2020 00:00:00,31/1/2021 00:00:00,"P10-2021"
"P&V","GUNPOWDER PARK","PREMISES RELATED EXPENDITURE","BUILDING SERVICE AGREEMENTS","2220","P108295-SERVICE-Sanitary Disposal - Gunpowder Park - Public T",18/1/2021 00:00:00,"243654",14.3,"PE0015","PHS GROUP PLC",28/12/2020 00:00:00,31/1/2021 00:00:00,"P10-2021"
"P&V","GUNPOWDER PARK","PREMISES RELATED EXPENDITURE","BUILDING SERVICE AGREEMENTS","2220","P108593-SERVICE-Building Servcie Agreement - Gunpowder Park",31/1/2021 00:00:00,"243804",139.16,"CO0199","ENGIE FM LIMITED",28/12/2020 00:00:00,31/1/2021 00:00:00,"P10-2021"
"P&V","GUNPOWDER PARK","PREMISES RELATED EXPENDITURE","BUILDING SERVICE AGREEMENTS","2220","P108299-SERVICE-Sanitary Disposal - Gunpowder Park Office Toi",31/1/2021 00:00:00,"243981",2.7,"PE0015","PHS GROUP PLC",28/12/2020 00:00:00,31/1/2021 00:00:00,"P10-2021"
"P&V","RIVER LEE COUNTRY PARK","PREMISES RELATED EXPENDITURE","BUILDING SERVICE AGREEMENTS","2220","P108296-SERVICE-Sanitary Disposal - Fishers Green Toilets",18/1/2021 00:00:00,"243653",8.22,"PE0015","PHS GROUP PLC",28/12/2020 00:00:00,31/1/2021 00:00:00,"P10-2021"
,"LEE VALLEY VELOPARK","PREMISES RELATED EXPENDITURE","BUILDING SERVICE AGREEMENTS","2220","P110383-SERVICE-Engine Service",11/1/2021 00:00:00,"243181",598.2,"AP0245","APS LIMITED",28/12/2020 00:00:00,31/1/2021 00:00:00,"P10-2021"
,"LEE VALLEY VELOPARK","PREMISES RELATED EXPENDITURE","BUILDING SERVICE AGREEMENTS","2220","P107684-SERVICE-Service Contract",27/1/2021 00:00:00,"243663",949.8,"ST0642","STANLEY SECURITY SOLUTIONS LTD",28/12/2020 00:00:00,31/1/2021 00:00:00,"P10-2021"
,"LEE VALLEY VELOPARK","PREMISES RELATED EXPENDITURE","BUILDING SERVICE AGREEMENTS","2220","P107025-SERVICE-Yearly maintenance contract 2020/21",19/1/2021 00:00:00,"243678",510,"GO0211","GOODWATER LTD",28/12/2020 00:00:00,31/1/2021 00:00:00,"P10-2021"
,"LEE VALLEY VELOPARK","PREMISES RELATED EXPENDITURE","BUILDING SERVICE AGREEMENTS","2220","P110568-SERVICE-Maintenance of Alarm Systems",26/1/2021 00:00:00,"243686",78.63,"AD0015","ADT FIRE & SECURITY PLC",28/12/2020 00:00:00,31/1/2021 00:00:00,"P10-2021"
,"LEE VALLEY VELOPARK","PREMISES RELATED EXPENDITURE","BUILDING SERVICE AGREEMENTS","2220","P110568-SERVICE-Maintenance of Alarm Systems",26/1/2021 00:00:00,"243687",78.63,"AD0015","ADT FIRE & SECURITY PLC",28/12/2020 00:00:00,31/1/2021 00:00:00,"P10-2021"
,"LEE VALLEY VELOPARK","PREMISES RELATED EXPENDITURE","BUILDING SERVICE AGREEMENTS","2220","P110568-SERVICE-Maintenance of Alarm Systems",26/1/2021 00:00:00,"243688",232.94,"AD0015","ADT FIRE & SECURITY PLC",28/12/2020 00:00:00,31/1/2021 00:00:00,"P10-2021"
,"LEE VALLEY VELOPARK","PREMISES RELATED EXPENDITURE","BUILDING SERVICE AGREEMENTS","2220","P110568-SERVICE-Maintenance of Alarm Systems",26/1/2021 00:00:00,"243690",403.52,"AD0015","ADT FIRE & SECURITY PLC",28/12/2020 00:00:00,31/1/2021 00:00:00,"P10-2021"
,"LEE VALLEY VELOPARK","PREMISES RELATED EXPENDITURE","BUILDING SERVICE AGREEMENTS","2220","P110568-SERVICE-Maintenance of Alarm Systems",26/1/2021 00:00:00,"243691",710.26,"AD0015","ADT FIRE & SECURITY PLC",28/12/2020 00:00:00,31/1/2021 00:00:00,"P10-2021"
,"LEE VALLEY VELOPARK","PREMISES RELATED EXPENDITURE","BUILDING SERVICE AGREEMENTS","2220","P110568-SERVICE-Maintenance of Alarm Systems",26/1/2021 00:00:00,"243692",645.78,"AD0015","ADT FIRE & SECURITY PLC",28/12/2020 00:00:00,31/1/2021 00:00:00,"P10-2021"
,"LEE VALLEY VELOPARK","PREMISES RELATED EXPENDITURE","BUILDING SERVICE AGREEMENTS","2220","P110568-SERVICE-Maintenance of Alarm Systems",26/1/2021 00:00:00,"243693",1031.03,"AD0015","ADT FIRE & SECURITY PLC",28/12/2020 00:00:00,31/1/2021 00:00:00,"P10-2021"
,"LEE VALLEY VELOPARK","PREMISES RELATED EXPENDITURE","BUILDING SERVICE AGREEMENTS","2220","P110568-SERVICE-Maintenance of Alarm Systems",26/1/2021 00:00:00,"243694",433.61,"AD0015","ADT FIRE & SECURITY PLC",28/12/2020 00:00:00,31/1/2021 00:00:00,"P10-2021"
,"LEE VALLEY VELOPARK","PREMISES RELATED EXPENDITURE","BUILDING SERVICE AGREEMENTS","2220","P107457-SERVICE-Maintenance Contract",25/1/2021 00:00:00,"243752",770,"PH0319","SIGNIFY COMMERCIAL UK LIMITED (PHILIPS LIGHTI",28/12/2020 00:00:00,31/1/2021 00:00:00,"P10-2021"
,"LEE VALLEY VELOPARK","PREMISES RELATED EXPENDITURE","BUILDING SERVICE AGREEMENTS","2220","P110135-SERVICE-Safety Net Inspection",25/1/2021 00:00:00,"243872",2000,"ST0483","STAN LIMITED",28/12/2020 00:00:00,31/1/2021 00:00:00,"P10-2021"
,"LEE VALLEY VELOPARK","PREMISES RELATED EXPENDITURE","BUILDING SERVICE AGREEMENTS","2220","P110320-SERVICE-Service",31/1/2021 00:00:00,"243890",330,"SU0398","SUPREME DOOR SPRING CO",28/12/2020 00:00:00,31/1/2021 00:00:00,"P10-2021"
,"LEE VALLEY VELOPARK","PREMISES RELATED EXPENDITURE","BUILDING SERVICE AGREEMENTS","2220","P107436-SERVICE-VeloPark BMS Maintenance",25/1/2021 00:00:00,"243908",590,"IN0197","INTEGRATED BUILDING MANAGEMENT SYSTEMS LTD",28/12/2020 00:00:00,31/1/2021 00:00:00,"P10-2021"
,"LEE VALLEY VELOPARK","PREMISES RELATED EXPENDITURE","BUILDING SERVICE AGREEMENTS","2220","P107025-SERVICE-Additional cost",31/1/2021 00:00:00,"244011",60,"GO0211","GOODWATER LTD",28/12/2020 00:00:00,31/1/2021 00:00:00,"P10-2021"
,"LEE VALLEY VELOPARK","PREMISES RELATED EXPENDITURE","BUILDING SERVICE AGREEMENTS","2220","P107025-SERVICE-Yearly maintenance contract 2020/21",31/1/2021 00:00:00,"244011",955,"GO0211","GOODWATER LTD",28/12/2020 00:00:00,31/1/2021 00:00:00,"P10-2021"
,"LV HOCKEY AND TENNIS CENTRE","PREMISES RELATED EXPENDITURE","BUILDING SERVICE AGREEMENTS","2220","P109744-SERVICE-PAT Testing",4/1/2021 00:00:00,"242730",195.2,"EL0258","ELECTRICO TESTING SERVICES LTD",28/12/2020 00:00:00,31/1/2021 00:00:00,"P10-2021"
,"LV HOCKEY AND TENNIS CENTRE","PREMISES RELATED EXPENDITURE","BUILDING SERVICE AGREEMENTS","2220","P109996-SERVICE-Service of Solar Interceptor Alarms",4/1/2021 00:00:00,"242956",625,"DA0214","DARCY PRODUCTS LIMITED",28/12/2020 00:00:00,31/1/2021 00:00:00,"P10-2021"
,"LV HOCKEY AND TENNIS CENTRE","PREMISES RELATED EXPENDITURE","BUILDING SERVICE AGREEMENTS","2220","P107685-SERVICE-Service Contract",27/1/2021 00:00:00,"243663",949.8,"ST0642","STANLEY SECURITY SOLUTIONS LTD",28/12/2020 00:00:00,31/1/2021 00:00:00,"P10-2021"
,"LV HOCKEY AND TENNIS CENTRE","PREMISES RELATED EXPENDITURE","BUILDING SERVICE AGREEMENTS","2220","P110569-SERVICE-Maintenance of Alarm Systems 1/1/21 - 31/3/21",26/1/2021 00:00:00,"243689",80,"AD0015","ADT FIRE & SECURITY PLC",28/12/2020 00:00:00,31/1/2021 00:00:00,"P10-2021"
,"LV HOCKEY AND TENNIS CENTRE","PREMISES RELATED EXPENDITURE","BUILDING SERVICE AGREEMENTS","2220","P110569-SERVICE-Maintenance of Alarm Systems 1/1/21 - 31/3/21",27/1/2021 00:00:00,"243695",145.45,"AD0015","ADT FIRE & SECURITY PLC",28/12/2020 00:00:00,31/1/2021 00:00:00,"P10-2021"
,"LV HOCKEY AND TENNIS CENTRE","PREMISES RELATED EXPENDITURE","BUILDING SERVICE AGREEMENTS","2220","P110569-SERVICE-Maintenance of Alarm Systems 1/1/21 - 31/3/21",27/1/2021 00:00:00,"243696",189.09,"AD0015","ADT FIRE & SECURITY PLC",28/12/2020 00:00:00,31/1/2021 00:00:00,"P10-2021"
,"LV HOCKEY AND TENNIS CENTRE","PREMISES RELATED EXPENDITURE","BUILDING SERVICE AGREEMENTS","2220","P110569-SERVICE-Maintenance of Alarm Systems 1/1/21 - 31/3/21",27/1/2021 00:00:00,"243697",371.98,"AD0015","ADT FIRE & SECURITY PLC",28/12/2020 00:00:00,31/1/2021 00:00:00,"P10-2021"
,"LV HOCKEY AND TENNIS CENTRE","PREMISES RELATED EXPENDITURE","BUILDING SERVICE AGREEMENTS","2220","P107295-SERVICE-annual lift maintenance VeloPark",19/1/2021 00:00:00,"243730",87.42,"GU0210","GUIDELINE LIFT SERVICES LTD",28/12/2020 00:00:00,31/1/2021 00:00:00,"P10-2021"
,"LV HOCKEY AND TENNIS CENTRE","PREMISES RELATED EXPENDITURE","BUILDING SERVICE AGREEMENTS","2220","P107295-SERVICE-annual lift maintenance VeloPark",19/1/2021 00:00:00,"243731",637.39,"GU0210","GUIDELINE LIFT SERVICES LTD",28/12/2020 00:00:00,31/1/2021 00:00:00,"P10-2021"
,"LV HOCKEY AND TENNIS CENTRE","PREMISES RELATED EXPENDITURE","BUILDING SERVICE AGREEMENTS","2220","P107026-SERVICE-Yearly maintenance contract 2020/21",26/1/2021 00:00:00,"243803",660,"GO0211","GOODWATER LTD",28/12/2020 00:00:00,31/1/2021 00:00:00,"P10-2021"
,"LV HOCKEY AND TENNIS CENTRE","PREMISES RELATED EXPENDITURE","BUILDING SERVICE AGREEMENTS","2220","P110136-SERVICE-Mansafe Inspection",25/1/2021 00:00:00,"243872",650,"ST0483","STAN LIMITED",28/12/2020 00:00:00,31/1/2021 00:00:00,"P10-2021"
,"LV HOCKEY AND TENNIS CENTRE","PREMISES RELATED EXPENDITURE","BUILDING SERVICE AGREEMENTS","2220","P107437-SERVICE-HTC BMS Maintenance",25/1/2021 00:00:00,"243907",590,"IN0197","INTEGRATED BUILDING MANAGEMENT SYSTEMS LTD",28/12/2020 00:00:00,31/1/2021 00:00:00,"P10-2021"
,"LV HOCKEY AND TENNIS CENTRE","PREMISES RELATED EXPENDITURE","BUILDING SERVICE AGREEMENTS","2220","P110156-SERVICE-Emergency Light Testing",25/1/2021 00:00:00,"243920",575,"NA0192","NAVITAS ELECTRICAL LIMITED",28/12/2020 00:00:00,31/1/2021 00:00:00,"P10-2021"
,"LV HOCKEY AND TENNIS CENTRE","PREMISES RELATED EXPENDITURE","BUILDING SERVICE AGREEMENTS","2220","P110154-SERVICE-PFC Service",25/1/2021 00:00:00,"243921",1845,"NA0192","NAVITAS ELECTRICAL LIMITED",28/12/2020 00:00:00,31/1/2021 00:00:00,"P10-2021"
,"LV HOCKEY AND TENNIS CENTRE","PREMISES RELATED EXPENDITURE","BUILDING SERVICE AGREEMENTS","2220","P107033-SERVICE-Annual Contract 2020/21",31/1/2021 00:00:00,"244103",150,"VE0006","VERMINATE CITY & RURAL PEST CONTROL LTD",28/12/2020 00:00:00,31/1/2021 00:00:00,"P10-2021"
,"LEE VALLEY VELOPARK CATERING","PREMISES RELATED EXPENDITURE","BUILDING SERVICE AGREEMENTS","2220","P110381-SERVICE-Management Service Fee Jan-Mar 2021",11/1/2021 00:00:00,"243002",363.99,"TA0272","TASTEBUDS VENDING LI MITED",28/12/2020 00:00:00,31/1/2021 00:00:00,"P10-2021"
,"LV HOCKEY AND TENNIS CATERING","PREMISES RELATED EXPENDITURE","BUILDING SERVICE AGREEMENTS","2220","P110382-SERVICE-Management Service Fee Jan-Mar 2021",11/1/2021 00:00:00,"243003",363.99,"TA0272","TASTEBUDS VENDING LI MITED",28/12/2020 00:00:00,31/1/2021 00:00:00,"P10-2021"
,"LEE VALLEY WHITE WATER CENTRE","PREMISES RELATED EXPENDITURE","BUILDING SERVICE AGREEMENTS","2220","P110513-SERVICE-Maintenance of intruder alarm",20/1/2021 00:00:00,"243698",469.43,"AD0015","ADT FIRE & SECURITY PLC",28/12/2020 00:00:00,31/1/2021 00:00:00,"P10-2021"
,"LEE VALLEY WHITE WATER CENTRE","PREMISES RELATED EXPENDITURE","BUILDING SERVICE AGREEMENTS","2220","P110513-SERVICE-Redcare & monitoring of fire alarm",20/1/2021 00:00:00,"243700",1172.28,"AD0015","ADT FIRE & SECURITY PLC",28/12/2020 00:00:00,31/1/2021 00:00:00,"P10-2021"
,"LEE VALLEY WHITE WATER CENTRE","PREMISES RELATED EXPENDITURE","BUILDING SERVICE AGREEMENTS","2220","P110513-SERVICE-Access control",20/1/2021 00:00:00,"243701",609.01,"AD0015","ADT FIRE & SECURITY PLC",28/12/2020 00:00:00,31/1/2021 00:00:00,"P10-2021"
,"LEE VALLEY ICE CENTRE","PREMISES RELATED EXPENDITURE","ENGINEERING SERVICE AGREEMENTS","2221","P110333-SERVICE-to enable monitoring of fire alarm",18/1/2021 00:00:00,"243426",259,"ST0249","STAND BY FIRE PROTECTION",28/12/2020 00:00:00,31/1/2021 00:00:00,"P10-2021"
,"LEE VALLEY ICE CENTRE","PREMISES RELATED EXPENDITURE","ENGINEERING SERVICE AGREEMENTS","2221","P110405-SERVICE-Cleaning Machines Hire",11/1/2021 00:00:00,"243457",420,"CL0606","CLEAN SWEEP UK LTD",28/12/2020 00:00:00,31/1/2021 00:00:00,"P10-2021"
,"LEE VALLEY ICE CENTRE","PREMISES RELATED EXPENDITURE","ENGINEERING SERVICE AGREEMENTS","2221","P110407-SERVICE-Cleaning Machines Hire",11/1/2021 00:00:00,"243458",440,"CL0606","CLEAN SWEEP UK LTD",28/12/2020 00:00:00,31/1/2021 00:00:00,"P10-2021"
,"LEE VALLEY ICE CENTRE","PREMISES RELATED EXPENDITURE","ENGINEERING SERVICE AGREEMENTS","2221","P110406-SERVICE-Cleaning Machines Hire",11/1/2021 00:00:00,"243459",440,"CL0606","CLEAN SWEEP UK LTD",28/12/2020 00:00:00,31/1/2021 00:00:00,"P10-2021"
,"LEE VALLEY ICE CENTRE","PREMISES RELATED EXPENDITURE","ENGINEERING SERVICE AGREEMENTS","2221","P110408-SERVICE-Cleaning Machines Hire",11/1/2021 00:00:00,"243460",420,"CL0606","CLEAN SWEEP UK LTD",28/12/2020 00:00:00,31/1/2021 00:00:00,"P10-2021"
,"LEE VALLEY ICE CENTRE","PREMISES RELATED EXPENDITURE","ENGINEERING SERVICE AGREEMENTS","2221","P110409-SERVICE-Cleaning Machines Hire",11/1/2021 00:00:00,"243461",460,"CL0606","CLEAN SWEEP UK LTD",28/12/2020 00:00:00,31/1/2021 00:00:00,"P10-2021"
,"LV LEISURE CENTRE CAMPSITE","PREMISES RELATED EXPENDITURE","ENGINEERING SERVICE AGREEMENTS","2221","P109529-SERVICE-Recycling",11/1/2021 00:00:00,"243302",-123.75,"BY0049","BYWATERS (LEYTON) LTD",28/12/2020 00:00:00,31/1/2021 00:00:00,"P10-2021"
"P&V","MYDDELTON HOUSE","PREMISES RELATED EXPENDITURE","BUILDING REPAIRS & MAINTENANCE","2222","P109315-SERVICE-Supply & Install VC Heating Pump",27/1/2021 00:00:00,"243937",605,"CO0199","ENGIE FM LIMITED",28/12/2020 00:00:00,31/1/2021 00:00:00,"P10-2021"
"P&V","MYDDELTON HOUSE","PREMISES RELATED EXPENDITURE","BUILDING REPAIRS & MAINTENANCE","2222","P109314-SERVICE-Supply & Install VC Heating Pump",27/1/2021 00:00:00,"243938",495.08,"CO0199","ENGIE FM LIMITED",28/12/2020 00:00:00,31/1/2021 00:00:00,"P10-2021"
"CEO","RESIDENTIAL ACCOMMODATION","PREMISES RELATED EXPENDITURE","BUILDING REPAIRS & MAINTENANCE","2222","P109063-SERVICE-Maintenance",25/1/2021 00:00:00,"243735",85,"WA0315","PAUL WALLACE LETTINGS",28/12/2020 00:00:00,31/1/2021 00:00:00,"P10-2021"
"CEO","RESIDENTIAL ACCOMMODATION","PREMISES RELATED EXPENDITURE","BUILDING REPAIRS & MAINTENANCE","2222","P109320-SERVICE-1 Wharf Road - Heating Repairs",27/1/2021 00:00:00,"243772",1122.95,"GI0137","R & P GIBBS LIMITED",28/12/2020 00:00:00,31/1/2021 00:00:00,"P10-2021"
"CEO","RESIDENTIAL ACCOMMODATION","PREMISES RELATED EXPENDITURE","BUILDING REPAIRS & MAINTENANCE","2222","REACT 2 IT (BUILDING & REFURBI",31/1/2021 00:00:00,"244003",260,"RE0094","REACT 2 IT (BUILDING & REFURBISHMENT) LTD",28/12/2020 00:00:00,31/1/2021 00:00:00,"P10-2021"
"CEO","RESIDENTIAL ACCOMMODATION","PREMISES RELATED EXPENDITURE","BUILDING REPAIRS & MAINTENANCE","2222","P110585-SERVICE-Boiler Repairs - Gate Cottage",31/1/2021 00:00:00,"244003",500,"RE0094","REACT 2 IT (BUILDING & REFURBISHMENT) LTD",28/12/2020 00:00:00,31/1/2021 00:00:00,"P10-2021"
"CEO","RESIDENTIAL ACCOMMODATION","PREMISES RELATED EXPENDITURE","BUILDING REPAIRS & MAINTENANCE","2222","REACT 2 IT (BUILDING & REFURBI",31/1/2021 00:00:00,"244003",240,"RE0094","REACT 2 IT (BUILDING & REFURBISHMENT) LTD",28/12/2020 00:00:00,31/1/2021 00:00:00,"P10-2021"
"CEO","RESIDENTIAL ACCOMMODATION","PREMISES RELATED EXPENDITURE","BUILDING REPAIRS & MAINTENANCE","2222","REACT 2 IT (BUILDING & REFURBI",31/1/2021 00:00:00,"244003",-500,"RE0094","REACT 2 IT (BUILDING & REFURBISHMENT) LTD",28/12/2020 00:00:00,31/1/2021 00:00:00,"P10-2021"
"CEO","COMMERCIAL ACCOMMODATION","PREMISES RELATED EXPENDITURE","BUILDING REPAIRS & MAINTENANCE","2222","P110524-SERVICE-Call Out at GPP",27/1/2021 00:00:00,"243154",80,"BR0018","BRADSHAW ELECTRICAL LIMITED",28/12/2020 00:00:00,31/1/2021 00:00:00,"P10-2021"
"CEO","COMMERCIAL ACCOMMODATION","PREMISES RELATED EXPENDITURE","BUILDING REPAIRS & MAINTENANCE","2222","P109526-SERVICE-LV Forge concrete blocks",12/1/2021 00:00:00,"243465",62,"NA0171","NAIVETTE SERVICES LTD",28/12/2020 00:00:00,31/1/2021 00:00:00,"P10-2021"
,"LEE VALLEY MARINA SPRINGFIELD","PREMISES RELATED EXPENDITURE","BUILDING REPAIRS & MAINTENANCE","2222","P110257-SERVICE-chubb maintenance contract",4/1/2021 00:00:00,"242740",45,"CH0088","CHUBB FIRE & SECURITY",28/12/2020 00:00:00,31/1/2021 00:00:00,"P10-2021"
,"LEE VALLEY MARINA SPRINGFIELD","PREMISES RELATED EXPENDITURE","BUILDING REPAIRS & MAINTENANCE","2222","P110257-SERVICE-chubb maintenance contract",4/1/2021 00:00:00,"242741",317.79,"CH0088","CHUBB FIRE & SECURITY",28/12/2020 00:00:00,31/1/2021 00:00:00,"P10-2021"
,"LEE VALLEY MARINA SPRINGFIELD","PREMISES RELATED EXPENDITURE","BUILDING REPAIRS & MAINTENANCE","2222","P109599-SERVICE-Servicing Thermostat Valve",18/1/2021 00:00:00,"243529",206.71,"KI0090","KINGFISHER ENVIRONMENTAL SERVICES LTD",28/12/2020 00:00:00,31/1/2021 00:00:00,"P10-2021"
,"LEE VALLEY MARINA SPRINGFIELD","PREMISES RELATED EXPENDITURE","BUILDING REPAIRS & MAINTENANCE","2222","P109898-SERVICE-To supply items as requseted",18/1/2021 00:00:00,"243739",73.6,"SC0057","SCREWFIX DIRECT LTD",28/12/2020 00:00:00,31/1/2021 00:00:00,"P10-2021"
,"LEE VALLEY MARINA SPRINGFIELD","PREMISES RELATED EXPENDITURE","BUILDING REPAIRS & MAINTENANCE","2222","P107261-SERVICE-To supply vermin/pest control",31/1/2021 00:00:00,"244106",375,"VE0006","VERMINATE CITY & RURAL PEST CONTROL LTD",28/12/2020 00:00:00,31/1/2021 00:00:00,"P10-2021"
,"LEE VALLEY MARINA STANSTEAD","PREMISES RELATED EXPENDITURE","BUILDING REPAIRS & MAINTENANCE","2222","P110259-SERVICE-test ladies toilets taps",18/1/2021 00:00:00,"243537",79.17,"KI0090","KINGFISHER ENVIRONMENTAL SERVICES LTD",28/12/2020 00:00:00,31/1/2021 00:00:00,"P10-2021"
,"LEE VALLEY MARINA STANSTEAD","PREMISES RELATED EXPENDITURE","BUILDING REPAIRS & MAINTENANCE","2222","P110092-SERVICE-PAt testing",18/1/2021 00:00:00,"243681",266.99,"UK0070","UK SAFETY MANAGEMENT LTD",28/12/2020 00:00:00,31/1/2021 00:00:00,"P10-2021"
,"LEE VALLEY MARINA STANSTEAD","PREMISES RELATED EXPENDITURE","BUILDING REPAIRS & MAINTENANCE","2222","P110150-SERVICE-hirecherry picker and deliver to site",25/1/2021 00:00:00,"243941",390,"IN0203","THE INDEPENDENT HEATING COMPANY LTD",28/12/2020 00:00:00,31/1/2021 00:00:00,"P10-2021"
,"LEE VALLEY MARINA STANSTEAD","PREMISES RELATED EXPENDITURE","BUILDING REPAIRS & MAINTENANCE","2222","P110150-SERVICE-Annual service to 6 overhear heaters",25/1/2021 00:00:00,"243941",979,"IN0203","THE INDEPENDENT HEATING COMPANY LTD",28/12/2020 00:00:00,31/1/2021 00:00:00,"P10-2021"
,"LEE VALLEY WATERWORKS CENTRE","PREMISES RELATED EXPENDITURE","BUILDING REPAIRS & MAINTENANCE","2222","P109802-SERVICE-Replace Faulty Pressurisation Unit Pump at Wa",26/1/2021 00:00:00,"243936",353.91,"CO0199","ENGIE FM LIMITED",28/12/2020 00:00:00,31/1/2021 00:00:00,"P10-2021"
,"LEE VALLEY FARM HAYES HILL","PREMISES RELATED EXPENDITURE","BUILDING REPAIRS & MAINTENANCE","2222","P110453-SERVICE-Fire Alarm Service",18/1/2021 00:00:00,"243763",92.7,"TJ0009","T.J.FIRE & SECURITY",28/12/2020 00:00:00,31/1/2021 00:00:00,"P10-2021"
,"LEE VALLEY CAMPSITE","PREMISES RELATED EXPENDITURE","BUILDING REPAIRS & MAINTENANCE","2222","P110337-SERVICE-Emergency call out static",11/1/2021 00:00:00,"243146",920,"BR0018","BRADSHAW ELECTRICAL LIMITED",28/12/2020 00:00:00,31/1/2021 00:00:00,"P10-2021"
,"LEE VALLEY CAMPSITE","PREMISES RELATED EXPENDITURE","BUILDING REPAIRS & MAINTENANCE","2222","P110605-SERVICE-Blocked drain",31/1/2021 00:00:00,"243799",510,"CO0550","CONVERT WATER LTD",28/12/2020 00:00:00,31/1/2021 00:00:00,"P10-2021"
,"LEE VALLEY CAMPSITE","PREMISES RELATED EXPENDITURE","BUILDING REPAIRS & MAINTENANCE","2222","P110606-SERVICE-Emergency static call out",31/1/2021 00:00:00,"243800",490,"BR0018","BRADSHAW ELECTRICAL LIMITED",28/12/2020 00:00:00,31/1/2021 00:00:00,"P10-2021"
,"LEE VALLEY CARAVAN PARK","PREMISES RELATED EXPENDITURE","BUILDING REPAIRS & MAINTENANCE","2222","P108916-SERVICE-Electric site Checks",5/1/2021 00:00:00,"243145",438,"BR0018","BRADSHAW ELECTRICAL LIMITED",28/12/2020 00:00:00,31/1/2021 00:00:00,"P10-2021"
,"LEE VALLEY CARAVAN PARK","PREMISES RELATED EXPENDITURE","BUILDING REPAIRS & MAINTENANCE","2222","P108915-SERVICE-Electric site checks",11/1/2021 00:00:00,"243147",1000,"BR0018","BRADSHAW ELECTRICAL LIMITED",28/12/2020 00:00:00,31/1/2021 00:00:00,"P10-2021"
"P&V","ABBEY GARDENS","PREMISES RELATED EXPENDITURE","BUILDING REPAIRS & MAINTENANCE","2222","P108584-SERVICE-Electrical Inspection Lights - Waltham Abbey",26/1/2021 00:00:00,"243885",320,"BR0018","BRADSHAW ELECTRICAL LIMITED",28/12/2020 00:00:00,31/1/2021 00:00:00,"P10-2021"
"P&V","GUNPOWDER PARK","PREMISES RELATED EXPENDITURE","BUILDING REPAIRS & MAINTENANCE","2222","REACT 2 IT (BUILDING & REFURBI",18/1/2021 00:00:00,"243167",-117,"RE0094","REACT 2 IT (BUILDING & REFURBISHMENT) LTD",28/12/2020 00:00:00,31/1/2021 00:00:00,"P10-2021"
"P&V","GUNPOWDER PARK","PREMISES RELATED EXPENDITURE","BUILDING REPAIRS & MAINTENANCE","2222","P110241-SERVICE-Replace Ladies Toilet Seat - GPP",18/1/2021 00:00:00,"243167",117,"RE0094","REACT 2 IT (BUILDING & REFURBISHMENT) LTD",28/12/2020 00:00:00,31/1/2021 00:00:00,"P10-2021"
"P&V","GUNPOWDER PARK","PREMISES RELATED EXPENDITURE","BUILDING REPAIRS & MAINTENANCE","2222","REACT 2 IT (BUILDING & REFURBI",18/1/2021 00:00:00,"243167",115,"RE0094","REACT 2 IT (BUILDING & REFURBISHMENT) LTD",28/12/2020 00:00:00,31/1/2021 00:00:00,"P10-2021"
"P&V","GUNPOWDER PARK","PREMISES RELATED EXPENDITURE","BUILDING REPAIRS & MAINTENANCE","2222","REACT 2 IT (BUILDING & REFURBI",18/1/2021 00:00:00,"243167",2,"RE0094","REACT 2 IT (BUILDING & REFURBISHMENT) LTD",28/12/2020 00:00:00,31/1/2021 00:00:00,"P10-2021"
"P&V","RIVER LEE COUNTRY PARK","PREMISES RELATED EXPENDITURE","BUILDING REPAIRS & MAINTENANCE","2222","P110331-SERVICE-PAT Test - Ranger Office",11/1/2021 00:00:00,"242747",228,"BR0018","BRADSHAW ELECTRICAL LIMITED",28/12/2020 00:00:00,31/1/2021 00:00:00,"P10-2021"
"P&V","RIVER LEE COUNTRY PARK","PREMISES RELATED EXPENDITURE","BUILDING REPAIRS & MAINTENANCE","2222","P110310-SERVICE-FG Disabled Toilet Alarm Test",5/1/2021 00:00:00,"243151",50,"BR0018","BRADSHAW ELECTRICAL LIMITED",28/12/2020 00:00:00,31/1/2021 00:00:00,"P10-2021"
"P&V","RIVER LEE COUNTRY PARK","PREMISES RELATED EXPENDITURE","BUILDING REPAIRS & MAINTENANCE","2222","P110312-SERVICE-WDC - Install Base Unit Heater",11/1/2021 00:00:00,"243153",155,"BR0018","BRADSHAW ELECTRICAL LIMITED",28/12/2020 00:00:00,31/1/2021 00:00:00,"P10-2021"
"P&V","RIVER LEE COUNTRY PARK","PREMISES RELATED EXPENDITURE","BUILDING REPAIRS & MAINTENANCE","2222","P110312-SERVICE-WDC - Install Drink Machine Light",11/1/2021 00:00:00,"243153",60,"BR0018","BRADSHAW ELECTRICAL LIMITED",28/12/2020 00:00:00,31/1/2021 00:00:00,"P10-2021"
"P&V","RIVER LEE COUNTRY PARK","PREMISES RELATED EXPENDITURE","BUILDING REPAIRS & MAINTENANCE","2222","P110312-SERVICE-WDC - Install Till Socket",11/1/2021 00:00:00,"243153",90,"BR0018","BRADSHAW ELECTRICAL LIMITED",28/12/2020 00:00:00,31/1/2021 00:00:00,"P10-2021"
"P&V","RIVER LEE COUNTRY PARK","PREMISES RELATED EXPENDITURE","BUILDING REPAIRS & MAINTENANCE","2222","P110372-SERVICE-Fire Extinguisher Check & Service - Ryehouse",18/1/2021 00:00:00,"243671",112.44,"TJ0009","T.J.FIRE & SECURITY",28/12/2020 00:00:00,31/1/2021 00:00:00,"P10-2021"
"P&V","RIVER LEE COUNTRY PARK","PREMISES RELATED EXPENDITURE","BUILDING REPAIRS & MAINTENANCE","2222","P110372-SERVICE-Fire Extinguisher Check & Service - Fisheries",18/1/2021 00:00:00,"243672",118.44,"TJ0009","T.J.FIRE & SECURITY",28/12/2020 00:00:00,31/1/2021 00:00:00,"P10-2021"
"P&V","RIVER LEE COUNTRY PARK","PREMISES RELATED EXPENDITURE","BUILDING REPAIRS & MAINTENANCE","2222","P110372-SERVICE-Fire Extinguisher Check & Service - Wildlife",18/1/2021 00:00:00,"243675",18.33,"TJ0009","T.J.FIRE & SECURITY",28/12/2020 00:00:00,31/1/2021 00:00:00,"P10-2021"
"P&V","RIVER LEE COUNTRY PARK","PREMISES RELATED EXPENDITURE","BUILDING REPAIRS & MAINTENANCE","2222","P110366-SERVICE-Clear Blockage at Fishers Green Toilets",26/1/2021 00:00:00,"243796",98,"KE0023","KENDALL & SONS LIMITED",28/12/2020 00:00:00,31/1/2021 00:00:00,"P10-2021"
,"LEE VALLEY VELOPARK","PREMISES RELATED EXPENDITURE","BUILDING REPAIRS & MAINTENANCE","2222","P107040-SERVICE-Goods and services as per quote 2020-042 rev",11/1/2021 00:00:00,"242885",2008.7,"GI0137","R & P GIBBS LIMITED",28/12/2020 00:00:00,31/1/2021 00:00:00,"P10-2021"
,"LEE VALLEY VELOPARK","PREMISES RELATED EXPENDITURE","BUILDING REPAIRS & MAINTENANCE","2222","P109942-SERVICE-Lamps",4/1/2021 00:00:00,"242890",44.5,"IN0159","INTERNATIONAL LAMPS LTD",28/12/2020 00:00:00,31/1/2021 00:00:00,"P10-2021"
,"LEE VALLEY VELOPARK","PREMISES RELATED EXPENDITURE","BUILDING REPAIRS & MAINTENANCE","2222","P108462-SERVICE-Remedial Works",11/1/2021 00:00:00,"243428",2300,"SC0470","SCS GROUP",28/12/2020 00:00:00,31/1/2021 00:00:00,"P10-2021"
,"LEE VALLEY VELOPARK","PREMISES RELATED EXPENDITURE","BUILDING REPAIRS & MAINTENANCE","2222","P109135-SERVICE-Synchronizing Units & Acuators",26/1/2021 00:00:00,"243658",1723,"JC0161","JCR SECURITY LIMITED",28/12/2020 00:00:00,31/1/2021 00:00:00,"P10-2021"
,"LEE VALLEY VELOPARK","PREMISES RELATED EXPENDITURE","BUILDING REPAIRS & MAINTENANCE","2222","P108462-SERVICE-Remedial Works",25/1/2021 00:00:00,"243782",510,"SC0470","SCS GROUP",28/12/2020 00:00:00,31/1/2021 00:00:00,"P10-2021"
,"LV HOCKEY AND TENNIS CENTRE","PREMISES RELATED EXPENDITURE","BUILDING REPAIRS & MAINTENANCE","2222","P109944-SERVICE-Lamps",28/12/2020 00:00:00,"243022",-138.9,"IN0159","INTERNATIONAL LAMPS LTD",28/12/2020 00:00:00,31/1/2021 00:00:00,"P10-2021"
,"LV HOCKEY AND TENNIS CENTRE","PREMISES RELATED EXPENDITURE","BUILDING REPAIRS & MAINTENANCE","2222","P110373-SERVICE-Replace LED Uplighter",25/1/2021 00:00:00,"243919",120,"NA0192","NAVITAS ELECTRICAL LIMITED",28/12/2020 00:00:00,31/1/2021 00:00:00,"P10-2021"
,"LEE VALLEY RIDING CENTRE","PREMISES RELATED EXPENDITURE","BUILDING REPAIRS & MAINTENANCE","2222","P110596-SERVICE-fire alarm maintanance jan - apr",27/1/2021 00:00:00,"243702",793.08,"AD0015","ADT FIRE & SECURITY PLC",28/12/2020 00:00:00,31/1/2021 00:00:00,"P10-2021"
,"LEE VALLEY RIDING CENTRE","PREMISES RELATED EXPENDITURE","BUILDING REPAIRS & MAINTENANCE","2222","P110452-SERVICE-horse walker service",27/1/2021 00:00:00,"243939",315,"MO0222","MONARCH EQUESTRIAN",28/12/2020 00:00:00,31/1/2021 00:00:00,"P10-2021"
,"LEE VALLEY ICE CENTRE","PREMISES RELATED EXPENDITURE","BUILDING REPAIRS & MAINTENANCE","2222","P110303-SERVICE-Legionella Samples",19/1/2021 00:00:00,"243509",685,"GO0211","GOODWATER LTD",28/12/2020 00:00:00,31/1/2021 00:00:00,"P10-2021"
,"LEE VALLEY ICE CENTRE","PREMISES RELATED EXPENDITURE","BUILDING REPAIRS & MAINTENANCE","2222","P109900-SERVICE-Door Fitting",25/1/2021 00:00:00,"243889",1985,"SU0398","SUPREME DOOR SPRING CO",28/12/2020 00:00:00,31/1/2021 00:00:00,"P10-2021"
,"LEE VALLEY ATHLETICS CENTRE","PREMISES RELATED EXPENDITURE","BUILDING REPAIRS & MAINTENANCE","2222","P110152-SERVICE-LVAC - PARTS FOR EMERGENCY LIGHTING",4/1/2021 00:00:00,"242970",677.25,"PF0171","P4 LIMITED",28/12/2020 00:00:00,31/1/2021 00:00:00,"P10-2021"
,"LEE VALLEY ATHLETICS CENTRE","PREMISES RELATED EXPENDITURE","BUILDING REPAIRS & MAINTENANCE","2222","P110335-SERVICE-LVAC INV 28017 MULTI-GANG SWITCH",5/1/2021 00:00:00,"243152",68,"BR0018","BRADSHAW ELECTRICAL LIMITED",28/12/2020 00:00:00,31/1/2021 00:00:00,"P10-2021"
,"LEE VALLEY ATHLETICS CENTRE","PREMISES RELATED EXPENDITURE","BUILDING REPAIRS & MAINTENANCE","2222","P110648-SERVICE-CHERRY PICKER REPAIRS",31/1/2021 00:00:00,"244117",2944.75,"SP0290","SPEEDY ASSET SERVICES LIMITED",28/12/2020 00:00:00,31/1/2021 00:00:00,"P10-2021"
,"LEE VALLEY ATHLETICS CENTRE","PREMISES RELATED EXPENDITURE","BUILDING REPAIRS & MAINTENANCE","2222","P110650-SERVICE-LVAC INV #102449 AIR COMM IN COMMS ROOM",31/1/2021 00:00:00,"244129",229.5,"KE0163","KERSHAW MECHANICAL SERVICES LTD",28/12/2020 00:00:00,31/1/2021 00:00:00,"P10-2021"
,"LEE VALLEY ATHLETICS CENTRE","PREMISES RELATED EXPENDITURE","BUILDING REPAIRS & MAINTENANCE","2222","P108849-SERVICE-ac unit - new pcb",31/1/2021 00:00:00,"244130",1091.74,"KE0163","KERSHAW MECHANICAL SERVICES LTD",28/12/2020 00:00:00,31/1/2021 00:00:00,"P10-2021"
,"LEE VALLEY ATHLETICS CENTRE","PREMISES RELATED EXPENDITURE","BUILDING REPAIRS & MAINTENANCE","2222","P110489-SERVICE-LVAC BOILER REPAIR",31/1/2021 00:00:00,"244131",100,"KE0163","KERSHAW MECHANICAL SERVICES LTD",28/12/2020 00:00:00,31/1/2021 00:00:00,"P10-2021"
,"LEE VALLEY ATHLETICS CENTRE","PREMISES RELATED EXPENDITURE","BUILDING REPAIRS & MAINTENANCE","2222","P110651-SERVICE-LVAC INV #103089 24.11.20 EAST WING RADIATOR",31/1/2021 00:00:00,"244132",160,"KE0163","KERSHAW MECHANICAL SERVICES LTD",28/12/2020 00:00:00,31/1/2021 00:00:00,"P10-2021"
,"LEE VALLEY WHITE WATER CENTRE","PREMISES RELATED EXPENDITURE","BUILDING REPAIRS & MAINTENANCE","2222","P110346-SERVICE-Parts used during quarterly service visit",20/1/2021 00:00:00,"243510",253.65,"BR0378","BROADWATER TECHNOLOGIES LTD",28/12/2020 00:00:00,31/1/2021 00:00:00,"P10-2021"
,"LEE VALLEY WHITE WATER CENTRE","PREMISES RELATED EXPENDITURE","BUILDING REPAIRS & MAINTENANCE","2222","P110031-SERVICE-5 x Clarke 4.5� metal grinding disc",19/1/2021 00:00:00,"243669",1.5,"MA0004","MACHINE MART LIMITED",28/12/2020 00:00:00,31/1/2021 00:00:00,"P10-2021"
,"LEE VALLEY WHITE WATER CENTRE","PREMISES RELATED EXPENDITURE","BUILDING REPAIRS & MAINTENANCE","2222","P110031-SERVICE-5 x Clarke 4.5� metal cutting disc",19/1/2021 00:00:00,"243669",5.35,"MA0004","MACHINE MART LIMITED",28/12/2020 00:00:00,31/1/2021 00:00:00,"P10-2021"
,"LEE VALLEY WHITE WATER CENTRE","PREMISES RELATED EXPENDITURE","BUILDING REPAIRS & MAINTENANCE","2222","P110031-SERVICE-1 x Clarke Flux Cored Welding Wire 0.9mm",19/1/2021 00:00:00,"243669",9.59,"MA0004","MACHINE MART LIMITED",28/12/2020 00:00:00,31/1/2021 00:00:00,"P10-2021"
,"LEE VALLEY WHITE WATER CENTRE","PREMISES RELATED EXPENDITURE","BUILDING REPAIRS & MAINTENANCE","2222","P110471-SERVICE-cam lock and PTFE tape.",26/1/2021 00:00:00,"243771",39.95,"BR0378","BROADWATER TECHNOLOGIES LTD",28/12/2020 00:00:00,31/1/2021 00:00:00,"P10-2021"
,"LEE VALLEY WHITE WATER CENTRE","PREMISES RELATED EXPENDITURE","BUILDING REPAIRS & MAINTENANCE","2222","P110051-SERVICE-Filtration room cold water break tank pump un",26/1/2021 00:00:00,"243898",80,"GI0137","R & P GIBBS LIMITED",28/12/2020 00:00:00,31/1/2021 00:00:00,"P10-2021"
,"LEE VALLEY WHITE WATER CENTRE","PREMISES RELATED EXPENDITURE","BUILDING REPAIRS & MAINTENANCE","2222","P110379-SERVICE-Call out as per docket CX362165",31/1/2021 00:00:00,"243932",75,"AD0015","ADT FIRE & SECURITY PLC",28/12/2020 00:00:00,31/1/2021 00:00:00,"P10-2021"
,"LEE VALLEY WHITE WATER CENTRE","PREMISES RELATED EXPENDITURE","BUILDING REPAIRS & MAINTENANCE","2222","P110535-SERVICE-Emergency call out no heating or hot water to",31/1/2021 00:00:00,"243978",110,"GI0137","R & P GIBBS LIMITED",28/12/2020 00:00:00,31/1/2021 00:00:00,"P10-2021"
,"LEE VALLEY ATHLETICS CENTRE","PREMISES RELATED EXPENDITURE","ENGINEERING SERVICES CONTRACT","2223","ADT FIRE & SECURITY PLC",4/1/2021 00:00:00,"240251",762.55,"AD0015","ADT FIRE & SECURITY PLC",28/12/2020 00:00:00,31/1/2021 00:00:00,"P10-2021"
,"LEE VALLEY ATHLETICS CENTRE","PREMISES RELATED EXPENDITURE","ENGINEERING SERVICES CONTRACT","2223","ADT FIRE & SECURITY PLC",4/1/2021 00:00:00,"242993",-762.55,"AD0015","ADT FIRE & SECURITY PLC",28/12/2020 00:00:00,31/1/2021 00:00:00,"P10-2021"
,"LEE VALLEY ATHLETICS CENTRE","PREMISES RELATED EXPENDITURE","ENGINEERING SERVICES CONTRACT","2223","P108187-SERVICE-ANNUAL CONTRACT",5/1/2021 00:00:00,"243195",760,"DA0075","D.A.T.A. CLEANING SERVICES",28/12/2020 00:00:00,31/1/2021 00:00:00,"P10-2021"
,"LEE VALLEY ATHLETICS CENTRE","PREMISES RELATED EXPENDITURE","ENGINEERING SERVICES CONTRACT","2223","P110388-SERVICE-LVAC RENEWAL CONTRACT INV 7116576750",11/1/2021 00:00:00,"243427",425,"SP0290","SPEEDY ASSET SERVICES LIMITED",28/12/2020 00:00:00,31/1/2021 00:00:00,"P10-2021"
,"LEE VALLEY WHITE WATER CENTRE","PREMISES RELATED EXPENDITURE","ENGINEERING SERVICES CONTRACT","2223","P107289-SERVICE-Ammendment to cost (AS)",11/1/2021 00:00:00,"243190",11.24,"GL0419","GLOBAL FIRE AND SECURITY SYSTEMS",28/12/2020 00:00:00,31/1/2021 00:00:00,"P10-2021"
,"LEE VALLEY WHITE WATER CENTRE","PREMISES RELATED EXPENDITURE","ENGINEERING SERVICES CONTRACT","2223","P107289-SERVICE-Fire Protection Terrace Bar",11/1/2021 00:00:00,"243190",237.76,"GL0419","GLOBAL FIRE AND SECURITY SYSTEMS",28/12/2020 00:00:00,31/1/2021 00:00:00,"P10-2021"
,"LEE VALLEY WHITE WATER CENTRE","PREMISES RELATED EXPENDITURE","ENGINEERING SERVICES CONTRACT","2223","P107341-SERVICE-Pump Maint April to Sept",12/1/2021 00:00:00,"243435",510,"AM0309","AMP 5 LIMITED",28/12/2020 00:00:00,31/1/2021 00:00:00,"P10-2021"
,"LEE VALLEY WHITE WATER CENTRE","PREMISES RELATED EXPENDITURE","ENGINEERING SERVICES CONTRACT","2223","P107341-SERVICE-Pump maintenance October - March",12/1/2021 00:00:00,"243435",1020,"AM0309","AMP 5 LIMITED",28/12/2020 00:00:00,31/1/2021 00:00:00,"P10-2021"
"P&V","SOUTH AREA RANGERS","SUPPLIES AND SERVICES","FENCES/GATES ETC.","2231","P109554-SERVICE-Barrier Repairs at Connaught Close",18/1/2021 00:00:00,"243723",237,"LW0268","LWC ENGINEERING LIMITED",28/12/2020 00:00:00,31/1/2021 00:00:00,"P10-2021"
"P&V","SOUTH AREA RANGERS","SUPPLIES AND SERVICES","PARK SIGNS AND BOARDS","2236","P110086-SERVICE-Delivery Display Legs",31/1/2021 00:00:00,"244118",105,"FI0135","FITZPATRICK WOOLMER DESIGN & PUBLISHING LTD",28/12/2020 00:00:00,31/1/2021 00:00:00,"P10-2021"
"P&V","SOUTH AREA RANGERS","SUPPLIES AND SERVICES","PARK SIGNS AND BOARDS","2236","P110086-SERVICE-Legs for Existing Information Display - Middl",31/1/2021 00:00:00,"244118",454,"FI0135","FITZPATRICK WOOLMER DESIGN & PUBLISHING LTD",28/12/2020 00:00:00,31/1/2021 00:00:00,"P10-2021"
"CEO","RESIDENTIAL ACCOMMODATION","EXPENDITURE FROM REPAIRS FUND","EXPENDITURE FROM REPAIRS FUND","2240","KENDALL & SONS LIMITED",31/1/2021 00:00:00,"244127",-380,"KE0023","KENDALL & SONS LIMITED",28/12/2020 00:00:00,31/1/2021 00:00:00,"P10-2021"
"CEO","RESIDENTIAL ACCOMMODATION","EXPENDITURE FROM REPAIRS FUND","EXPENDITURE FROM REPAIRS FUND","2240","KENDALL & SONS LIMITED",31/1/2021 00:00:00,"244127",330,"KE0023","KENDALL & SONS LIMITED",28/12/2020 00:00:00,31/1/2021 00:00:00,"P10-2021"
"CEO","RESIDENTIAL ACCOMMODATION","EXPENDITURE FROM REPAIRS FUND","EXPENDITURE FROM REPAIRS FUND","2240","P110567-SERVICE-Replace Fence Panels at Gate Cottages, Hayes",31/1/2021 00:00:00,"244127",380,"KE0023","KENDALL & SONS LIMITED",28/12/2020 00:00:00,31/1/2021 00:00:00,"P10-2021"
"CEO","RESIDENTIAL ACCOMMODATION","EXPENDITURE FROM REPAIRS FUND","EXPENDITURE FROM REPAIRS FUND","2240","KENDALL & SONS LIMITED",31/1/2021 00:00:00,"244127",50,"KE0023","KENDALL & SONS LIMITED",28/12/2020 00:00:00,31/1/2021 00:00:00,"P10-2021"
"CEO","COMMERCIAL ACCOMMODATION","PREMISES RELATED EXPENDITURE","EAST HALE ALLOTMENTS","2261","P110420-SERVICE-Waste collection East Hale allotments",12/1/2021 00:00:00,"243446",130.24,"CL0037","VEOLIA ES (UK) LTD",28/12/2020 00:00:00,31/1/2021 00:00:00,"P10-2021"
"P&V","MYDDELTON HOUSE","PREMISES RELATED EXPENDITURE","ENERGY COSTS (ELECTRICITY)","2332","KENT COUNTY COUNCIL (KCS)",18/1/2021 00:00:00,"242883",1848.42,"KE0007","KENT COUNTY COUNCIL (KCS)",28/12/2020 00:00:00,31/1/2021 00:00:00,"P10-2021"
"P&V","MYDDELTON HOUSE","PREMISES RELATED EXPENDITURE","ENERGY COSTS (ELECTRICITY)","2332","KENT COUNTY COUNCIL (KCS)",31/1/2021 00:00:00,"243211",142.33,"KE0007","KENT COUNTY COUNCIL (KCS)",28/12/2020 00:00:00,31/1/2021 00:00:00,"P10-2021"
"P&V","MYDDELTON HOUSE","PREMISES RELATED EXPENDITURE","ENERGY COSTS (ELECTRICITY)","2332","KENT COUNTY COUNCIL (KCS)",31/1/2021 00:00:00,"243992",-1793.12,"KE0007","KENT COUNTY COUNCIL (KCS)",28/12/2020 00:00:00,31/1/2021 00:00:00,"P10-2021"
"P&V","MYDDELTON HOUSE","PREMISES RELATED EXPENDITURE","ENERGY COSTS (ELECTRICITY)","2332","KENT COUNTY COUNCIL (KCS)",31/1/2021 00:00:00,"243993",-1910.16,"KE0007","KENT COUNTY COUNCIL (KCS)",28/12/2020 00:00:00,31/1/2021 00:00:00,"P10-2021"
"P&V","MYDDELTON HOUSE","PREMISES RELATED EXPENDITURE","ENERGY COSTS (ELECTRICITY)","2332","KENT COUNTY COUNCIL (KCS)",31/1/2021 00:00:00,"243994",-1848.42,"KE0007","KENT COUNTY COUNCIL (KCS)",28/12/2020 00:00:00,31/1/2021 00:00:00,"P10-2021"
"P&V","MYDDELTON HOUSE","PREMISES RELATED EXPENDITURE","ENERGY COSTS (ELECTRICITY)","2332","KENT COUNTY COUNCIL (KCS)",31/1/2021 00:00:00,"243995",203.37,"KE0007","KENT COUNTY COUNCIL (KCS)",28/12/2020 00:00:00,31/1/2021 00:00:00,"P10-2021"
"P&V","MYDDELTON HOUSE","PREMISES RELATED EXPENDITURE","ENERGY COSTS (ELECTRICITY)","2332","KENT COUNTY COUNCIL (KCS)",31/1/2021 00:00:00,"243996",217.69,"KE0007","KENT COUNTY COUNCIL (KCS)",28/12/2020 00:00:00,31/1/2021 00:00:00,"P10-2021"
"P&V","MYDDELTON HOUSE","PREMISES RELATED EXPENDITURE","ENERGY COSTS (ELECTRICITY)","2332","KENT COUNTY COUNCIL (KCS)",31/1/2021 00:00:00,"243997",259.78,"KE0007","KENT COUNTY COUNCIL (KCS)",28/12/2020 00:00:00,31/1/2021 00:00:00,"P10-2021"
"P&V","MYDDELTON HOUSE","PREMISES RELATED EXPENDITURE","ENERGY COSTS (ELECTRICITY)","2332","KENT COUNTY COUNCIL (KCS)",31/1/2021 00:00:00,"243998",866.39,"KE0007","KENT COUNTY COUNCIL (KCS)",28/12/2020 00:00:00,31/1/2021 00:00:00,"P10-2021"
"CEO","COMMERCIAL ACCOMMODATION","PREMISES RELATED EXPENDITURE","ENERGY COSTS (ELECTRICITY)","2332","E-ON",18/1/2021 00:00:00,"243256",135,"PO0025","E-ON",28/12/2020 00:00:00,31/1/2021 00:00:00,"P10-2021"
"CEO","COMMERCIAL ACCOMMODATION","PREMISES RELATED EXPENDITURE","ENERGY COSTS (ELECTRICITY)","2332","E-ON",31/1/2021 00:00:00,"243271",14.4,"PO0025","E-ON",28/12/2020 00:00:00,31/1/2021 00:00:00,"P10-2021"
,"LEE VALLEY MARINA SPRINGFIELD","PREMISES RELATED EXPENDITURE","ENERGY COSTS (ELECTRICITY)","2332","KENT COUNTY COUNCIL (KCS)",27/1/2021 00:00:00,"243788",4763.1,"KE0007","KENT COUNTY COUNCIL (KCS)",28/12/2020 00:00:00,31/1/2021 00:00:00,"P10-2021"
,"LEE VALLEY MARINA STANSTEAD","PREMISES RELATED EXPENDITURE","ENERGY COSTS (ELECTRICITY)","2332","KENT COUNTY COUNCIL (KCS)",11/1/2021 00:00:00,"243469",95.2,"KE0007","KENT COUNTY COUNCIL (KCS)",28/12/2020 00:00:00,31/1/2021 00:00:00,"P10-2021"
"P&V","LEE VALLEY FARM HOLYFIELDHALL","PREMISES RELATED EXPENDITURE","ENERGY COSTS (ELECTRICITY)","2332","NPOWER LIMITED",5/1/2021 00:00:00,"238434",269.27,"NP0123","NPOWER LIMITED",28/12/2020 00:00:00,31/1/2021 00:00:00,"P10-2021"
"P&V","LEE VALLEY FARM HOLYFIELDHALL","PREMISES RELATED EXPENDITURE","ENERGY COSTS (ELECTRICITY)","2332","KENT COUNTY COUNCIL (KCS)",11/1/2021 00:00:00,"242978",5291.92,"KE0007","KENT COUNTY COUNCIL (KCS)",28/12/2020 00:00:00,31/1/2021 00:00:00,"P10-2021"
"P&V","LEE VALLEY FARM HOLYFIELDHALL","PREMISES RELATED EXPENDITURE","ENERGY COSTS (ELECTRICITY)","2332","NPOWER LIMITED",4/1/2021 00:00:00,"243258",47.6,"NP0123","NPOWER LIMITED",28/12/2020 00:00:00,31/1/2021 00:00:00,"P10-2021"
"P&V","LEE VALLEY FARM HOLYFIELDHALL","PREMISES RELATED EXPENDITURE","ENERGY COSTS (ELECTRICITY)","2332","NPOWER LIMITED",4/1/2021 00:00:00,"243259",71.26,"NP0123","NPOWER LIMITED",28/12/2020 00:00:00,31/1/2021 00:00:00,"P10-2021"
"P&V","LEE VALLEY FARM HOLYFIELDHALL","PREMISES RELATED EXPENDITURE","ENERGY COSTS (ELECTRICITY)","2332","NPOWER LIMITED",4/1/2021 00:00:00,"243260",69.33,"NP0123","NPOWER LIMITED",28/12/2020 00:00:00,31/1/2021 00:00:00,"P10-2021"
"P&V","LEE VALLEY FARM HOLYFIELDHALL","PREMISES RELATED EXPENDITURE","ENERGY COSTS (ELECTRICITY)","2332","NPOWER LIMITED",4/1/2021 00:00:00,"243261",140.07,"NP0123","NPOWER LIMITED",28/12/2020 00:00:00,31/1/2021 00:00:00,"P10-2021"
"P&V","LEE VALLEY FARM HOLYFIELDHALL","PREMISES RELATED EXPENDITURE","ENERGY COSTS (ELECTRICITY)","2332","NPOWER LIMITED",4/1/2021 00:00:00,"243262",-178.52,"NP0123","NPOWER LIMITED",28/12/2020 00:00:00,31/1/2021 00:00:00,"P10-2021"
"P&V","LEE VALLEY FARM HOLYFIELDHALL","PREMISES RELATED EXPENDITURE","ENERGY COSTS (ELECTRICITY)","2332","NPOWER LIMITED",4/1/2021 00:00:00,"243263",-269.27,"NP0123","NPOWER LIMITED",28/12/2020 00:00:00,31/1/2021 00:00:00,"P10-2021"
"P&V","LEE VALLEY FARM HOLYFIELDHALL","PREMISES RELATED EXPENDITURE","ENERGY COSTS (ELECTRICITY)","2332","NPOWER LIMITED",4/1/2021 00:00:00,"243264",-211.16,"NP0123","NPOWER LIMITED",28/12/2020 00:00:00,31/1/2021 00:00:00,"P10-2021"
"P&V","LEE VALLEY FARM HOLYFIELDHALL","PREMISES RELATED EXPENDITURE","ENERGY COSTS (ELECTRICITY)","2332","NPOWER LIMITED",4/1/2021 00:00:00,"243265",-269.27,"NP0123","NPOWER LIMITED",28/12/2020 00:00:00,31/1/2021 00:00:00,"P10-2021"
"P&V","LEE VALLEY FARM HOLYFIELDHALL","PREMISES RELATED EXPENDITURE","ENERGY COSTS (ELECTRICITY)","2332","KENT COUNTY COUNCIL (KCS)",12/1/2021 00:00:00,"243471",74.66,"KE0007","KENT COUNTY COUNCIL (KCS)",28/12/2020 00:00:00,31/1/2021 00:00:00,"P10-2021"
,"LEE VALLEY FARM HAYES HILL","PREMISES RELATED EXPENDITURE","ENERGY COSTS (ELECTRICITY)","2332","KENT COUNTY COUNCIL (KCS)",25/1/2021 00:00:00,"243787",1804.74,"KE0007","KENT COUNTY COUNCIL (KCS)",28/12/2020 00:00:00,31/1/2021 00:00:00,"P10-2021"
,"LEE VALLEY CAMPSITE","PREMISES RELATED EXPENDITURE","ENERGY COSTS (ELECTRICITY)","2332","KENT COUNTY COUNCIL (KCS)",11/1/2021 00:00:00,"243206",382.27,"KE0007","KENT COUNTY COUNCIL (KCS)",28/12/2020 00:00:00,31/1/2021 00:00:00,"P10-2021"
,"LEE VALLEY CAMPSITE","PREMISES RELATED EXPENDITURE","ENERGY COSTS (ELECTRICITY)","2332","KENT COUNTY COUNCIL (KCS)",11/1/2021 00:00:00,"243419",3405.3,"KE0007","KENT COUNTY COUNCIL (KCS)",28/12/2020 00:00:00,31/1/2021 00:00:00,"P10-2021"
,"LEE VALLEY CAMPSITE","PREMISES RELATED EXPENDITURE","ENERGY COSTS (ELECTRICITY)","2332","KENT COUNTY COUNCIL (KCS)",18/1/2021 00:00:00,"243767",4628.3,"KE0007","KENT COUNTY COUNCIL (KCS)",28/12/2020 00:00:00,31/1/2021 00:00:00,"P10-2021"
,"LEE VALLEY CAMPSITE","PREMISES RELATED EXPENDITURE","ENERGY COSTS (ELECTRICITY)","2332","KENT COUNTY COUNCIL (KCS)",31/1/2021 00:00:00,"243786",3673.05,"KE0007","KENT COUNTY COUNCIL (KCS)",28/12/2020 00:00:00,31/1/2021 00:00:00,"P10-2021"
,"LEE VALLEY CARAVAN PARK","PREMISES RELATED EXPENDITURE","ENERGY COSTS (ELECTRICITY)","2332","KENT COUNTY COUNCIL (KCS)",31/1/2021 00:00:00,"243769",9933.86,"KE0007","KENT COUNTY COUNCIL (KCS)",28/12/2020 00:00:00,31/1/2021 00:00:00,"P10-2021"
"P&V","EAST INDIA DOCK AND BOW CREEK","PREMISES RELATED EXPENDITURE","ENERGY COSTS (ELECTRICITY)","2332","KENT COUNTY COUNCIL (KCS)",5/1/2021 00:00:00,"243208",83.33,"KE0007","KENT COUNTY COUNCIL (KCS)",28/12/2020 00:00:00,31/1/2021 00:00:00,"P10-2021"
"P&V","RYE HOUSE GATEHOUSE","PREMISES RELATED EXPENDITURE","ENERGY COSTS (ELECTRICITY)","2332","KENT COUNTY COUNCIL (KCS)",5/1/2021 00:00:00,"243210",53.78,"KE0007","KENT COUNTY COUNCIL (KCS)",28/12/2020 00:00:00,31/1/2021 00:00:00,"P10-2021"
"P&V","NORTH AREA RANGERS","PREMISES RELATED EXPENDITURE","ENERGY COSTS (ELECTRICITY)","2332","KENT COUNTY COUNCIL (KCS)",5/1/2021 00:00:00,"243209",65.34,"KE0007","KENT COUNTY COUNCIL (KCS)",28/12/2020 00:00:00,31/1/2021 00:00:00,"P10-2021"
"P&V","NORTH AREA RANGERS","PREMISES RELATED EXPENDITURE","ENERGY COSTS (ELECTRICITY)","2332","KENT COUNTY COUNCIL (KCS)",11/1/2021 00:00:00,"243470",41.48,"KE0007","KENT COUNTY COUNCIL (KCS)",28/12/2020 00:00:00,31/1/2021 00:00:00,"P10-2021"
"P&V","GUNPOWDER PARK","PREMISES RELATED EXPENDITURE","ENERGY COSTS (ELECTRICITY)","2332","KENT COUNTY COUNCIL (KCS)",11/1/2021 00:00:00,"243472",42.17,"KE0007","KENT COUNTY COUNCIL (KCS)",28/12/2020 00:00:00,31/1/2021 00:00:00,"P10-2021"
"P&V","GUNPOWDER PARK","PREMISES RELATED EXPENDITURE","ENERGY COSTS (ELECTRICITY)","2332","KENT COUNTY COUNCIL (KCS)",31/1/2021 00:00:00,"243864",431.66,"KE0007","KENT COUNTY COUNCIL (KCS)",28/12/2020 00:00:00,31/1/2021 00:00:00,"P10-2021"
"P&V","RIVER LEE COUNTRY PARK","PREMISES RELATED EXPENDITURE","ENERGY COSTS (ELECTRICITY)","2332","KENT COUNTY COUNCIL (KCS)",5/1/2021 00:00:00,"243207",41.48,"KE0007","KENT COUNTY COUNCIL (KCS)",28/12/2020 00:00:00,31/1/2021 00:00:00,"P10-2021"
,"LEE VALLEY VELOPARK","PREMISES RELATED EXPENDITURE","ENERGY COSTS (ELECTRICITY)","2332","KENT COUNTY COUNCIL (KCS)",25/1/2021 00:00:00,"243854",280.09,"KE0007","KENT COUNTY COUNCIL (KCS)",28/12/2020 00:00:00,31/1/2021 00:00:00,"P10-2021"
,"LEE VALLEY VELOPARK","PREMISES RELATED EXPENDITURE","ENERGY COSTS (ELECTRICITY)","2332","KENT COUNTY COUNCIL (KCS)",31/1/2021 00:00:00,"243855",135.8,"KE0007","KENT COUNTY COUNCIL (KCS)",28/12/2020 00:00:00,31/1/2021 00:00:00,"P10-2021"
,"LEE VALLEY VELOPARK","PREMISES RELATED EXPENDITURE","ENERGY COSTS (ELECTRICITY)","2332","KENT COUNTY COUNCIL (KCS)",25/1/2021 00:00:00,"243856",134.59,"KE0007","KENT COUNTY COUNCIL (KCS)",28/12/2020 00:00:00,31/1/2021 00:00:00,"P10-2021"
,"LEE VALLEY VELOPARK","PREMISES RELATED EXPENDITURE","ENERGY COSTS (ELECTRICITY)","2332","KENT COUNTY COUNCIL (KCS)",25/1/2021 00:00:00,"243857",46.55,"KE0007","KENT COUNTY COUNCIL (KCS)",28/12/2020 00:00:00,31/1/2021 00:00:00,"P10-2021"
,"LEE VALLEY VELOPARK","PREMISES RELATED EXPENDITURE","ENERGY COSTS (ELECTRICITY)","2332","KENT COUNTY COUNCIL (KCS)",25/1/2021 00:00:00,"243858",45.9,"KE0007","KENT COUNTY COUNCIL (KCS)",28/12/2020 00:00:00,31/1/2021 00:00:00,"P10-2021"
,"LEE VALLEY VELOPARK","PREMISES RELATED EXPENDITURE","ENERGY COSTS (ELECTRICITY)","2332","KENT COUNTY COUNCIL (KCS)",25/1/2021 00:00:00,"243859",49.78,"KE0007","KENT COUNTY COUNCIL (KCS)",28/12/2020 00:00:00,31/1/2021 00:00:00,"P10-2021"
,"LEE VALLEY VELOPARK","PREMISES RELATED EXPENDITURE","ENERGY COSTS (ELECTRICITY)","2332","KENT COUNTY COUNCIL (KCS)",25/1/2021 00:00:00,"243860",42.04,"KE0007","KENT COUNTY COUNCIL (KCS)",28/12/2020 00:00:00,31/1/2021 00:00:00,"P10-2021"
,"LEE VALLEY VELOPARK","PREMISES RELATED EXPENDITURE","ENERGY COSTS (ELECTRICITY)","2332","KENT COUNTY COUNCIL (KCS)",25/1/2021 00:00:00,"243861",40.68,"KE0007","KENT COUNTY COUNCIL (KCS)",28/12/2020 00:00:00,31/1/2021 00:00:00,"P10-2021"
,"LEE VALLEY VELOPARK","PREMISES RELATED EXPENDITURE","ENERGY COSTS (ELECTRICITY)","2332","KENT COUNTY COUNCIL (KCS)",25/1/2021 00:00:00,"243862",42.04,"KE0007","KENT COUNTY COUNCIL (KCS)",28/12/2020 00:00:00,31/1/2021 00:00:00,"P10-2021"
,"LEE VALLEY VELOPARK","PREMISES RELATED EXPENDITURE","ENERGY COSTS (ELECTRICITY)","2332","NPOWER LIMITED",25/1/2021 00:00:00,"243892",10718.21,"NP0123","NPOWER LIMITED",28/12/2020 00:00:00,31/1/2021 00:00:00,"P10-2021"
,"LV HOCKEY AND TENNIS CENTRE","PREMISES RELATED EXPENDITURE","ENERGY COSTS (ELECTRICITY)","2332","NPOWER LIMITED",25/1/2021 00:00:00,"243893",6490.2,"NP0123","NPOWER LIMITED",28/12/2020 00:00:00,31/1/2021 00:00:00,"P10-2021"
,"LEE VALLEY RIDING CENTRE","PREMISES RELATED EXPENDITURE","ENERGY COSTS (ELECTRICITY)","2332","EDF ENERGY 1 LIMITED",4/1/2021 00:00:00,"243255",78.58,"ED0077","EDF ENERGY 1 LIMITED",28/12/2020 00:00:00,31/1/2021 00:00:00,"P10-2021"
,"LEE VALLEY RIDING CENTRE","PREMISES RELATED EXPENDITURE","ENERGY COSTS (ELECTRICITY)","2332","EDF ENERGY 1 LIMITED",27/1/2021 00:00:00,"243915",97.8,"ED0077","EDF ENERGY 1 LIMITED",28/12/2020 00:00:00,31/1/2021 00:00:00,"P10-2021"
,"LEE VALLEY ICE CENTRE","PREMISES RELATED EXPENDITURE","ENERGY COSTS (ELECTRICITY)","2332","NPOWER LIMITED",31/1/2021 00:00:00,"243894",14632.08,"NP0123","NPOWER LIMITED",28/12/2020 00:00:00,31/1/2021 00:00:00,"P10-2021"
"P&V","FORMER LV LIDO SITE","PREMISES RELATED EXPENDITURE","ENERGY COSTS (ELECTRICITY)","2332","KENT COUNTY COUNCIL (KCS)",11/1/2021 00:00:00,"243212",33.91,"KE0007","KENT COUNTY COUNCIL (KCS)",28/12/2020 00:00:00,31/1/2021 00:00:00,"P10-2021"
"P&V","FORMER LV LIDO SITE","PREMISES RELATED EXPENDITURE","ENERGY COSTS (ELECTRICITY)","2332","KENT COUNTY COUNCIL (KCS)",26/1/2021 00:00:00,"243863",34.94,"KE0007","KENT COUNTY COUNCIL (KCS)",28/12/2020 00:00:00,31/1/2021 00:00:00,"P10-2021"
,"LEE VALLEY WHITE WATER CENTRE","PREMISES RELATED EXPENDITURE","ENERGY COSTS (ELECTRICITY)","2332","NPOWER LIMITED",26/1/2021 00:00:00,"243895",7200.07,"NP0123","NPOWER LIMITED",28/12/2020 00:00:00,31/1/2021 00:00:00,"P10-2021"
,"LEE VALLEY MARINA SPRINGFIELD","PREMISES RELATED EXPENDITURE","ENERGY COSTS (GAS)","2333","KENT COUNTY COUNCIL (KCS)",18/1/2021 00:00:00,"243641",613.38,"KE0007","KENT COUNTY COUNCIL (KCS)",28/12/2020 00:00:00,31/1/2021 00:00:00,"P10-2021"
,"LEE VALLEY MARINA STANSTEAD","PREMISES RELATED EXPENDITURE","ENERGY COSTS (GAS)","2333","KENT COUNTY COUNCIL (KCS)",18/1/2021 00:00:00,"243638",112.46,"KE0007","KENT COUNTY COUNCIL (KCS)",28/12/2020 00:00:00,31/1/2021 00:00:00,"P10-2021"
,"LEE VALLEY MARINA STANSTEAD","PREMISES RELATED EXPENDITURE","ENERGY COSTS (GAS)","2333","KENT COUNTY COUNCIL (KCS)",18/1/2021 00:00:00,"243639",346.31,"KE0007","KENT COUNTY COUNCIL (KCS)",28/12/2020 00:00:00,31/1/2021 00:00:00,"P10-2021"
,"LEE VALLEY WATERWORKS CENTRE","PREMISES RELATED EXPENDITURE","ENERGY COSTS (GAS)","2333","KENT COUNTY COUNCIL (KCS)",18/1/2021 00:00:00,"243640",380.52,"KE0007","KENT COUNTY COUNCIL (KCS)",28/12/2020 00:00:00,31/1/2021 00:00:00,"P10-2021"
,"LEE VALLEY CAMPSITE","PREMISES RELATED EXPENDITURE","ENERGY COSTS (GAS)","2333","KENT COUNTY COUNCIL (KCS)",18/1/2021 00:00:00,"243768",562.7,"KE0007","KENT COUNTY COUNCIL (KCS)",28/12/2020 00:00:00,31/1/2021 00:00:00,"P10-2021"
,"LEE VALLEY CARAVAN PARK","PREMISES RELATED EXPENDITURE","ENERGY COSTS (GAS)","2333","P110305-SERVICE-Avanti Gas",4/1/2021 00:00:00,"243192",2929.78,"AV0327","AVANTI GAS LIMITED",28/12/2020 00:00:00,31/1/2021 00:00:00,"P10-2021"
,"LEE VALLEY CARAVAN PARK","PREMISES RELATED EXPENDITURE","ENERGY COSTS (GAS)","2333","P109109-SERVICE-Avanti Gas",4/1/2021 00:00:00,"243193",784.3,"AV0327","AVANTI GAS LIMITED",28/12/2020 00:00:00,31/1/2021 00:00:00,"P10-2021"
,"LEE VALLEY CARAVAN PARK","PREMISES RELATED EXPENDITURE","ENERGY COSTS (GAS)","2333","P110353-SERVICE-Avanti gas static tanks filled",11/1/2021 00:00:00,"243299",7695.04,"AV0327","AVANTI GAS LIMITED",28/12/2020 00:00:00,31/1/2021 00:00:00,"P10-2021"
,"LEE VALLEY CARAVAN PARK","PREMISES RELATED EXPENDITURE","ENERGY COSTS (GAS)","2333","P110644-SERVICE-avanti gas tanks half filled",31/1/2021 00:00:00,"243951",3817.38,"AV0327","AVANTI GAS LIMITED",28/12/2020 00:00:00,31/1/2021 00:00:00,"P10-2021"
,"LEE VALLEY CARAVAN PARK","PREMISES RELATED EXPENDITURE","ENERGY COSTS (GAS)","2333","P110645-SERVICE-Avanti Gas",31/1/2021 00:00:00,"243952",492.2,"AV0327","AVANTI GAS LIMITED",28/12/2020 00:00:00,31/1/2021 00:00:00,"P10-2021"
"P&V","MYDDELTON HOUSE GARDENS","PREMISES RELATED EXPENDITURE","ENERGY COSTS (GAS)","2333","KENT COUNTY COUNCIL (KCS)",18/1/2021 00:00:00,"243637",972.65,"KE0007","KENT COUNTY COUNCIL (KCS)",28/12/2020 00:00:00,31/1/2021 00:00:00,"P10-2021"
"P&V","GUNPOWDER PARK","PREMISES RELATED EXPENDITURE","ENERGY COSTS (GAS)","2333","KENT COUNTY COUNCIL (KCS)",18/1/2021 00:00:00,"243636",78.6,"KE0007","KENT COUNTY COUNCIL (KCS)",28/12/2020 00:00:00,31/1/2021 00:00:00,"P10-2021"
,"LV LEISURE CENTRE CAMPSITE","PREMISES RELATED EXPENDITURE","ENERGY COSTS (GAS)","2333","KENT COUNTY COUNCIL (KCS)",20/1/2021 00:00:00,"243642",1638.68,"KE0007","KENT COUNTY COUNCIL (KCS)",28/12/2020 00:00:00,31/1/2021 00:00:00,"P10-2021"
"P&V","KING GEORGE RESERVOIR SOUTH","PREMISES RELATED EXPENDITURE","RENT (EXTERNAL)","2442","THAMES WATER UTILITIES LIMITED",18/1/2021 00:00:00,"243267",3375,"TH0020","THAMES WATER UTILITIES LIMITED-  SAVILLS",28/12/2020 00:00:00,31/1/2021 00:00:00,"P10-2021"
"P&V","YOUTH AND SCHOOLS","PREMISES RELATED EXPENDITURE","RENT (EXTERNAL)","2442","P110586-SERVICE-Abey Farmhouse office rentl 1.11.20 - 31.1.21",31/1/2021 00:00:00,"243958",3245,"WA0108","WALTHAM ABBEY PAROCHIAL CHURCH COUNCIL",28/12/2020 00:00:00,31/1/2021 00:00:00,"P10-2021"
"P&V","LEE VALLEY FARM HOLYFIELDHALL","PREMISES RELATED EXPENDITURE","COUNCIL TAX","2445","EPPING FOREST DISTRICT COUNCIL",13/1/2021 00:00:00,"243633",-1651.18,"EP0025","EPPING FOREST DISTRICT COUNCIL",28/12/2020 00:00:00,31/1/2021 00:00:00,"P10-2021"
,"LEE VALLEY MARINA STANSTEAD","PREMISES RELATED EXPENDITURE","WATER","2555","CASTLE WATER LIMITED",12/1/2021 00:00:00,"243418",143.12,"CA0625","CASTLE WATER LIMITED",28/12/2020 00:00:00,31/1/2021 00:00:00,"P10-2021"
,"LEE VALLEY MARINA STANSTEAD","PREMISES RELATED EXPENDITURE","WATER","2555","CASTLE WATER LIMITED",12/1/2021 00:00:00,"243418",130.74,"CA0625","CASTLE WATER LIMITED",28/12/2020 00:00:00,31/1/2021 00:00:00,"P10-2021"
,"LEE VALLEY ICE CENTRE","PREMISES RELATED EXPENDITURE","WATER","2555","P107703-SERVICE-Water Service Contract",31/1/2021 00:00:00,"244013",700,"GO0211","GOODWATER LTD",28/12/2020 00:00:00,31/1/2021 00:00:00,"P10-2021"
,"LEE VALLEY WHITE WATER CENTRE","PREMISES RELATED EXPENDITURE","WATER","2555","CASTLE WATER LIMITED",26/1/2021 00:00:00,"243916",1088.39,"CA0625","CASTLE WATER LIMITED",28/12/2020 00:00:00,31/1/2021 00:00:00,"P10-2021"
,"LEE VALLEY WHITE WATER CENTRE","PREMISES RELATED EXPENDITURE","WATER","2555","CASTLE WATER LIMITED",26/1/2021 00:00:00,"243916",1037.98,"CA0625","CASTLE WATER LIMITED",28/12/2020 00:00:00,31/1/2021 00:00:00,"P10-2021"
,"LEE VALLEY MARINA SPRINGFIELD","PREMISES RELATED EXPENDITURE","CLEANING & DOMESTIC SUPPLIES","2666","P110341-SERVICE-December site cleaning",5/1/2021 00:00:00,"243232",892.71,"MA0015","MAYFAIR CLEANING COMPANY LIMITED",28/12/2020 00:00:00,31/1/2021 00:00:00,"P10-2021"
,"LEE VALLEY MARINA SPRINGFIELD","PREMISES RELATED EXPENDITURE","CLEANING & DOMESTIC SUPPLIES","2666","P110626-SERVICE-January 2021 site cleaning",31/1/2021 00:00:00,"244147",892.71,"MA0015","MAYFAIR CLEANING COMPANY LIMITED",28/12/2020 00:00:00,31/1/2021 00:00:00,"P10-2021"
,"LEE VALLEY CAMPSITE","PREMISES RELATED EXPENDITURE","CLEANING & DOMESTIC SUPPLIES","2666","P110548-SERVICE-Various cleaning products",31/1/2021 00:00:00,"244030",22.16,"HY0043","HYGIENE SYSTEMS LTD",28/12/2020 00:00:00,31/1/2021 00:00:00,"P10-2021"
,"LEE VALLEY CARAVAN PARK","PREMISES RELATED EXPENDITURE","CLEANING & DOMESTIC SUPPLIES","2666","P110649-SERVICE-Johnsons Linen Hirer",31/1/2021 00:00:00,"244142",117.08,"JO0168","JOHNSON STALBRIDGE LINEN SERVICES",28/12/2020 00:00:00,31/1/2021 00:00:00,"P10-2021"
,"LEE VALLEY RIDING CENTRE","PREMISES RELATED EXPENDITURE","CLEANING & DOMESTIC SUPPLIES","2666","P107357-SERVICE-SUPPLIES AND SERVICES FOR TOILETS",27/1/2021 00:00:00,"243513",83.6,"PE0015","PHS GROUP PLC",28/12/2020 00:00:00,31/1/2021 00:00:00,"P10-2021"
,"LEE VALLEY ICE CENTRE","PREMISES RELATED EXPENDITURE","CLEANING & DOMESTIC SUPPLIES","2666","P110082-SERVICE-HSL Cleaning Order",31/1/2021 00:00:00,"243940",40.6,"HY0043","HYGIENE SYSTEMS LTD",28/12/2020 00:00:00,31/1/2021 00:00:00,"P10-2021"
,"LEE VALLEY ATHLETICS CENTRE","PREMISES RELATED EXPENDITURE","CLEANING & DOMESTIC SUPPLIES","2666","P110004-SERVICE-LVAC CLEANING SUPPLIES",4/1/2021 00:00:00,"242776",149.6,"HY0043","HYGIENE SYSTEMS LTD",28/12/2020 00:00:00,31/1/2021 00:00:00,"P10-2021"
"P&V","LEE VALLEY FARM HOLYFIELDHALL","TRANSPORT RELATED EXPENDITURE","TRANSPORT RUNNING EXPENSES","3333","P107087-SERVICE-Hose repairs/sundries",4/1/2021 00:00:00,"243188",78.4,"HU0003","ALLIANCE AUTOMOTIVE UK CV LIMITED T/A",28/12/2020 00:00:00,31/1/2021 00:00:00,"P10-2021"
"P&V","LEE VALLEY FARM HOLYFIELDHALL","TRANSPORT RELATED EXPENDITURE","TRANSPORT RUNNING EXPENSES","3333","P107087-SERVICE-Hose repairs/sundries",4/1/2021 00:00:00,"243189",39.91,"HU0003","ALLIANCE AUTOMOTIVE UK CV LIMITED T/A",28/12/2020 00:00:00,31/1/2021 00:00:00,"P10-2021"
"P&V","LEE VALLEY FARM HOLYFIELDHALL","TRANSPORT RELATED EXPENDITURE","TRANSPORT RUNNING EXPENSES","3333","P107087-SERVICE-Hose repairs/sundries",4/1/2021 00:00:00,"243198",39.2,"HU0003","ALLIANCE AUTOMOTIVE UK CV LIMITED T/A",28/12/2020 00:00:00,31/1/2021 00:00:00,"P10-2021"
"P&V","LEE VALLEY FARM HOLYFIELDHALL","TRANSPORT RELATED EXPENDITURE","TRANSPORT RUNNING EXPENSES","3333","P107087-SERVICE-Hose repairs/sundries",11/1/2021 00:00:00,"243214",59.37,"HU0003","ALLIANCE AUTOMOTIVE UK CV LIMITED T/A",28/12/2020 00:00:00,31/1/2021 00:00:00,"P10-2021"
"P&V","LEE VALLEY FARM HOLYFIELDHALL","TRANSPORT RELATED EXPENDITURE","TRANSPORT RUNNING EXPENSES","3333","OLIVER LANDPOWER LIMITED",27/1/2021 00:00:00,"243230",674.36,"OL0059","OLIVER LANDPOWER LIMITED",28/12/2020 00:00:00,31/1/2021 00:00:00,"P10-2021"
"P&V","LEE VALLEY FARM HOLYFIELDHALL","TRANSPORT RELATED EXPENDITURE","TRANSPORT RUNNING EXPENSES","3333","P107087-SERVICE-Hose repairs/sundries",11/1/2021 00:00:00,"243319",72.1,"HU0003","ALLIANCE AUTOMOTIVE UK CV LIMITED T/A",28/12/2020 00:00:00,31/1/2021 00:00:00,"P10-2021"
"P&V","LEE VALLEY FARM HOLYFIELDHALL","TRANSPORT RELATED EXPENDITURE","TRANSPORT RUNNING EXPENSES","3333","P110478-SERVICE-12 Month Maintenance Contract",19/1/2021 00:00:00,"243499",465,"PS0429","PSL AUTOMATION",28/12/2020 00:00:00,31/1/2021 00:00:00,"P10-2021"
"P&V","LEE VALLEY FARM HOLYFIELDHALL","TRANSPORT RELATED EXPENDITURE","TRANSPORT RUNNING EXPENSES","3333","OLIVER LANDPOWER LIMITED",27/1/2021 00:00:00,"243795",-674.36,"OL0059","OLIVER LANDPOWER LIMITED",28/12/2020 00:00:00,31/1/2021 00:00:00,"P10-2021"
"P&V","LEE VALLEY FARM HOLYFIELDHALL","TRANSPORT RELATED EXPENDITURE","TRANSPORT RUNNING EXPENSES","3333","P109152-SERVICE-Various Parts",26/1/2021 00:00:00,"243881",12.97,"RW0257","R. W. CRAWFORD AGRICULTURAL MACHINERY LTD",28/12/2020 00:00:00,31/1/2021 00:00:00,"P10-2021"
"P&V","LEE VALLEY FARM HOLYFIELDHALL","TRANSPORT RELATED EXPENDITURE","TRANSPORT RUNNING EXPENSES","3333","P110344-SERVICE-Vehicle MOT",26/1/2021 00:00:00,"243917",109.7,"AJ0064","A.J.D. LANDROVERS",28/12/2020 00:00:00,31/1/2021 00:00:00,"P10-2021"
"P&V","LEE VALLEY FARM HOLYFIELDHALL","TRANSPORT RELATED EXPENDITURE","TRANSPORT RUNNING EXPENSES","3333","P110584-SERVICE-Tandem Oil Pump",26/1/2021 00:00:00,"243922",379.76,"ST0237","STORTH LTD",28/12/2020 00:00:00,31/1/2021 00:00:00,"P10-2021"
"P&V","LEE VALLEY FARM HOLYFIELDHALL","TRANSPORT RELATED EXPENDITURE","TRANSPORT RUNNING EXPENSES","3333","P110055-SERVICE-Workshop Sundries",31/1/2021 00:00:00,"244008",62.28,"GR0022","GROUP COMPONENTS LIMITED",28/12/2020 00:00:00,31/1/2021 00:00:00,"P10-2021"
,"LV LEISURE CENTRE GOLF COURSE","TRANSPORT RELATED EXPENDITURE","TRANSPORT RUNNING EXPENSES","3333","P110447-SERVICE- 2 week hire charge",20/1/2021 00:00:00,"243749",425,"AN0450","ANGLIA MOWERS",28/12/2020 00:00:00,31/1/2021 00:00:00,"P10-2021"
,"LV LEISURE CENTRE GOLF COURSE","TRANSPORT RELATED EXPENDITURE","TRANSPORT RUNNING EXPENSES","3333","P110448-SERVICE-2 week hire",20/1/2021 00:00:00,"243750",425,"AN0450","ANGLIA MOWERS",28/12/2020 00:00:00,31/1/2021 00:00:00,"P10-2021"
"P&V","FISHERIES MANAGEMENT","TRANSPORT RELATED EXPENDITURE","VEHICLE FUEL","3335","ALLSTAR BUSINESS SOLUTIONS LTD",5/1/2021 00:00:00,"243224",22.19,"AR0035","ALLSTAR BUSINESS SOLUTIONS LTD",28/12/2020 00:00:00,31/1/2021 00:00:00,"P10-2021"
,"LEE VALLEY MARINA STANSTEAD","TRANSPORT RELATED EXPENDITURE","VEHICLE FUEL","3335","ALLSTAR BUSINESS SOLUTIONS LTD",5/1/2021 00:00:00,"243224",57.98,"AR0035","ALLSTAR BUSINESS SOLUTIONS LTD",28/12/2020 00:00:00,31/1/2021 00:00:00,"P10-2021"
"P&V","LEE VALLEY FARM HOLYFIELDHALL","TRANSPORT RELATED EXPENDITURE","VEHICLE FUEL","3335","ALLSTAR BUSINESS SOLUTIONS LTD",5/1/2021 00:00:00,"243224",114.81,"AR0035","ALLSTAR BUSINESS SOLUTIONS LTD",28/12/2020 00:00:00,31/1/2021 00:00:00,"P10-2021"
,"LEE VALLEY CAMPSITE","TRANSPORT RELATED EXPENDITURE","VEHICLE FUEL","3335","ALLSTAR BUSINESS SOLUTIONS LTD",5/1/2021 00:00:00,"243224",42.64,"AR0035","ALLSTAR BUSINESS SOLUTIONS LTD",28/12/2020 00:00:00,31/1/2021 00:00:00,"P10-2021"
,"LEE VALLEY CARAVAN PARK","TRANSPORT RELATED EXPENDITURE","VEHICLE FUEL","3335","ALLSTAR BUSINESS SOLUTIONS LTD",5/1/2021 00:00:00,"243224",79.28,"AR0035","ALLSTAR BUSINESS SOLUTIONS LTD",28/12/2020 00:00:00,31/1/2021 00:00:00,"P10-2021"
"P&V","NORTH AREA RANGERS","TRANSPORT RELATED EXPENDITURE","VEHICLE FUEL","3335","ALLSTAR BUSINESS SOLUTIONS LTD",5/1/2021 00:00:00,"243224",111.9,"AR0035","ALLSTAR BUSINESS SOLUTIONS LTD",28/12/2020 00:00:00,31/1/2021 00:00:00,"P10-2021"
"P&V","SOUTH AREA RANGERS","TRANSPORT RELATED EXPENDITURE","VEHICLE FUEL","3335","ALLSTAR BUSINESS SOLUTIONS LTD",5/1/2021 00:00:00,"243224",225.79,"AR0035","ALLSTAR BUSINESS SOLUTIONS LTD",28/12/2020 00:00:00,31/1/2021 00:00:00,"P10-2021"
"P&V","GUNPOWDER PARK","TRANSPORT RELATED EXPENDITURE","VEHICLE FUEL","3335","ALLSTAR BUSINESS SOLUTIONS LTD",5/1/2021 00:00:00,"243224",46.72,"AR0035","ALLSTAR BUSINESS SOLUTIONS LTD",28/12/2020 00:00:00,31/1/2021 00:00:00,"P10-2021"
"P&V","RIVER LEE COUNTRY PARK","TRANSPORT RELATED EXPENDITURE","VEHICLE FUEL","3335","ALLSTAR BUSINESS SOLUTIONS LTD",5/1/2021 00:00:00,"243224",79.42,"AR0035","ALLSTAR BUSINESS SOLUTIONS LTD",28/12/2020 00:00:00,31/1/2021 00:00:00,"P10-2021"
"P&V","RIVER LEE COUNTRY PARK","TRANSPORT RELATED EXPENDITURE","VEHICLE FUEL","3335","ALLSTAR BUSINESS SOLUTIONS LTD",5/1/2021 00:00:00,"243224",366.66,"AR0035","ALLSTAR BUSINESS SOLUTIONS LTD",28/12/2020 00:00:00,31/1/2021 00:00:00,"P10-2021"
,"LV LEISURE CENTRE GOLF COURSE","TRANSPORT RELATED EXPENDITURE","VEHICLE FUEL","3335","P110206-SERVICE-Red Diesel 1800L",27/1/2021 00:00:00,"243957",875.34,"HA0400","WATSON FUELS",28/12/2020 00:00:00,31/1/2021 00:00:00,"P10-2021"
"P&V","RIVER LEE COUNTRY PARK","TRANSPORT RELATED EXPENDITURE","VEHICLE REPAIRS & MAINTENANCE","3338","P110149-SERVICE-Puncture Repair & Tyre Change - GK65 MRO",18/1/2021 00:00:00,"243725",50,"AD0016","ADVANCE TYRE SERVICE",28/12/2020 00:00:00,31/1/2021 00:00:00,"P10-2021"
"P&V","RIVER LEE COUNTRY PARK","TRANSPORT RELATED EXPENDITURE","VEHICLE REPAIRS & MAINTENANCE","3338","P110472-SERVICE-Puncture Repair - GD65 UTF",26/1/2021 00:00:00,"243882",10,"AD0016","ADVANCE TYRE SERVICE",28/12/2020 00:00:00,31/1/2021 00:00:00,"P10-2021"
"P&V","FISHERIES MANAGEMENT","SUPPLIES AND SERVICES","EQUIPMENT & MATERIALS","4111","P110570-SERVICE-Generator Service",26/1/2021 00:00:00,"243918",68,"NA0168","NAZEING GARDEN MACHINERY",28/12/2020 00:00:00,31/1/2021 00:00:00,"P10-2021"
,"LEE VALLEY MARINA SPRINGFIELD","SUPPLIES AND SERVICES","EQUIPMENT & MATERIALS","4111","P109545-SERVICE-to supply items as requested",11/1/2021 00:00:00,"243432",756.06,"WU0040","WURTH UK LTD",28/12/2020 00:00:00,31/1/2021 00:00:00,"P10-2021"
,"LEE VALLEY MARINA SPRINGFIELD","SUPPLIES AND SERVICES","EQUIPMENT & MATERIALS","4111","P110334-SERVICE-To supply items as requested",11/1/2021 00:00:00,"243436",169.44,"SA0008","SAFETEC VISION LTD",28/12/2020 00:00:00,31/1/2021 00:00:00,"P10-2021"
,"STANSTEAD RECHARGEABLE WORKS","SUPPLIES AND SERVICES","EQUIPMENT & MATERIALS","4111","P110459-SERVICE-blacking",31/1/2021 00:00:00,"243868",1311.2,"MA0008","AXALTA COATING SYSTEMS HUTHWAITE UK LTD",28/12/2020 00:00:00,31/1/2021 00:00:00,"P10-2021"
,"LEE VALLEY FARM HAYES HILL","SUPPLIES AND SERVICES","EQUIPMENT & MATERIALS","4111","P110554-SERVICE-T5 reptile bulbs x4",31/1/2021 00:00:00,"244024",81.68,"PE0253","PEREGRINE LIVEFOODS LTD",28/12/2020 00:00:00,31/1/2021 00:00:00,"P10-2021"
,"LEE VALLEY CAMPSITE","SUPPLIES AND SERVICES","EQUIPMENT & MATERIALS","4111","P109552-SERVICE-electrical testing",5/1/2021 00:00:00,"243148",885,"BR0018","BRADSHAW ELECTRICAL LIMITED",28/12/2020 00:00:00,31/1/2021 00:00:00,"P10-2021"
,"LEE VALLEY CAMPSITE","SUPPLIES AND SERVICES","EQUIPMENT & MATERIALS","4111","P109553-SERVICE-testing",5/1/2021 00:00:00,"243149",360,"BR0018","BRADSHAW ELECTRICAL LIMITED",28/12/2020 00:00:00,31/1/2021 00:00:00,"P10-2021"
,"LEE VALLEY CAMPSITE","SUPPLIES AND SERVICES","EQUIPMENT & MATERIALS","4111","P110604-SERVICE-Paint supplies",31/1/2021 00:00:00,"243792",47.71,"BQ0164","TRADE UK ACCOUNT",28/12/2020 00:00:00,31/1/2021 00:00:00,"P10-2021"
,"LEE VALLEY CARAVAN PARK","SUPPLIES AND SERVICES","EQUIPMENT & MATERIALS","4111","P109113-SERVICE-Electric testing done on full site",4/1/2021 00:00:00,"243156",45,"BR0018","BRADSHAW ELECTRICAL LIMITED",28/12/2020 00:00:00,31/1/2021 00:00:00,"P10-2021"
,"LEE VALLEY CARAVAN PARK","SUPPLIES AND SERVICES","EQUIPMENT & MATERIALS","4111","P109113-SERVICE-Electric testing done on full site",4/1/2021 00:00:00,"243157",140,"BR0018","BRADSHAW ELECTRICAL LIMITED",28/12/2020 00:00:00,31/1/2021 00:00:00,"P10-2021"
,"LEE VALLEY CARAVAN PARK","SUPPLIES AND SERVICES","EQUIPMENT & MATERIALS","4111","P108576-SERVICE-Convert Water Flooding",4/1/2021 00:00:00,"243200",280,"CO0550","CONVERT WATER LTD",28/12/2020 00:00:00,31/1/2021 00:00:00,"P10-2021"
,"LEE VALLEY CARAVAN PARK","SUPPLIES AND SERVICES","EQUIPMENT & MATERIALS","4111","P110395-SERVICE-3 year inspection Bradshaws",12/1/2021 00:00:00,"243433",1280,"BR0018","BRADSHAW ELECTRICAL LIMITED",28/12/2020 00:00:00,31/1/2021 00:00:00,"P10-2021"
,"LEE VALLEY CARAVAN PARK","SUPPLIES AND SERVICES","EQUIPMENT & MATERIALS","4111","P107951-SERVICE-B & Q Paints",31/1/2021 00:00:00,"243740",152.72,"BQ0164","TRADE UK ACCOUNT",28/12/2020 00:00:00,31/1/2021 00:00:00,"P10-2021"
,"LEE VALLEY CARAVAN PARK","SUPPLIES AND SERVICES","EQUIPMENT & MATERIALS","4111","P110646-SERVICE-verminate",31/1/2021 00:00:00,"244109",70,"VE0006","VERMINATE CITY & RURAL PEST CONTROL LTD",28/12/2020 00:00:00,31/1/2021 00:00:00,"P10-2021"
,"LEE VALLEY CARAVAN PARK","SUPPLIES AND SERVICES","EQUIPMENT & MATERIALS","4111","P110646-SERVICE-verminate",31/1/2021 00:00:00,"244110",70,"VE0006","VERMINATE CITY & RURAL PEST CONTROL LTD",28/12/2020 00:00:00,31/1/2021 00:00:00,"P10-2021"
"P&V","EAST INDIA DOCK AND BOW CREEK","SUPPLIES AND SERVICES","EQUIPMENT & MATERIALS","4111","P110308-SERVICE-5x Large Dressing 18cm x 18cm - F90107",26/1/2021 00:00:00,"243931",4,"ST0038","ST JOHN AMBULANCE",28/12/2020 00:00:00,31/1/2021 00:00:00,"P10-2021"
"P&V","EAST INDIA DOCK AND BOW CREEK","SUPPLIES AND SERVICES","EQUIPMENT & MATERIALS","4111","P110308-SERVICE-30x Pk 10 Fabric Plasters - F94027",26/1/2021 00:00:00,"243931",22.5,"ST0038","ST JOHN AMBULANCE",28/12/2020 00:00:00,31/1/2021 00:00:00,"P10-2021"
"P&V","EAST INDIA DOCK AND BOW CREEK","SUPPLIES AND SERVICES","EQUIPMENT & MATERIALS","4111","P110308-SERVICE-30x Meduim Dressing 12cm x 12cm - F90106",26/1/2021 00:00:00,"243931",17.7,"ST0038","ST JOHN AMBULANCE",28/12/2020 00:00:00,31/1/2021 00:00:00,"P10-2021"
"P&V","EAST INDIA DOCK AND BOW CREEK","SUPPLIES AND SERVICES","EQUIPMENT & MATERIALS","4111","P110308-SERVICE-12x No16 Eye Pad - F90105",26/1/2021 00:00:00,"243931",5.4,"ST0038","ST JOHN AMBULANCE",28/12/2020 00:00:00,31/1/2021 00:00:00,"P10-2021"
"P&V","EAST INDIA DOCK AND BOW CREEK","SUPPLIES AND SERVICES","EQUIPMENT & MATERIALS","4111","P110308-SERVICE-1x 500ml Eye Wash Bottle - F17884",26/1/2021 00:00:00,"243931",3.92,"ST0038","ST JOHN AMBULANCE",28/12/2020 00:00:00,31/1/2021 00:00:00,"P10-2021"
"P&V","EAST INDIA DOCK AND BOW CREEK","SUPPLIES AND SERVICES","EQUIPMENT & MATERIALS","4111","P110308-SERVICE-3x Burnshield Dressing 10cm x 10cm - F80001",26/1/2021 00:00:00,"243931",11.9,"ST0038","ST JOHN AMBULANCE",28/12/2020 00:00:00,31/1/2021 00:00:00,"P10-2021"
"P&V","EAST INDIA DOCK AND BOW CREEK","SUPPLIES AND SERVICES","EQUIPMENT & MATERIALS","4111","P110308-SERVICE-6x Finger Dressing - F90111",26/1/2021 00:00:00,"243931",3.54,"ST0038","ST JOHN AMBULANCE",28/12/2020 00:00:00,31/1/2021 00:00:00,"P10-2021"
"P&V","NORTH AREA RANGERS","SUPPLIES AND SERVICES","EQUIPMENT & MATERIALS","4111","P107157-SERVICE-Equipment & Materials as and when required",11/1/2021 00:00:00,"243275",46.74,"JW0004","J & W FENCING LIMITED",28/12/2020 00:00:00,31/1/2021 00:00:00,"P10-2021"
"P&V","SOUTH AREA RANGERS","SUPPLIES AND SERVICES","EQUIPMENT & MATERIALS","4111","P110292-SERVICE-Round Wire Nails 5Kg  - JS23122020",5/1/2021 00:00:00,"243242",10,"BQ0164","TRADE UK ACCOUNT",28/12/2020 00:00:00,31/1/2021 00:00:00,"P10-2021"
"P&V","ABBEY GARDENS","SUPPLIES AND SERVICES","EQUIPMENT & MATERIALS","4111","P107156-SERVICE-Equipment & Materials as and when required",11/1/2021 00:00:00,"243277",9.46,"JE0011","SAINT-GOBAIN BUILDING DISTRIBUTION",28/12/2020 00:00:00,31/1/2021 00:00:00,"P10-2021"
"P&V","GUNPOWDER PARK","SUPPLIES AND SERVICES","EQUIPMENT & MATERIALS","4111","P110195-SERVICE-10x 746625 - Black Refuse Bags - Extar Heavy",4/1/2021 00:00:00,"243194",217.1,"GR0020","GREENHAM TRADING LIMITED",28/12/2020 00:00:00,31/1/2021 00:00:00,"P10-2021"
"P&V","GUNPOWDER PARK","SUPPLIES AND SERVICES","EQUIPMENT & MATERIALS","4111","P110286-SERVICE-10x Litter Pickers 32"" - 744702",5/1/2021 00:00:00,"243237",115,"GR0020","GREENHAM TRADING LIMITED",28/12/2020 00:00:00,31/1/2021 00:00:00,"P10-2021"
"P&V","RIVER LEE COUNTRY PARK","SUPPLIES AND SERVICES","EQUIPMENT & MATERIALS","4111","P110254-SERVICE-Mesh Banner from artwork supplied",4/1/2021 00:00:00,"243197",42,"MA0167","MARTIN DANNELL & CO LTD",28/12/2020 00:00:00,31/1/2021 00:00:00,"P10-2021"
"P&V","RIVER LEE COUNTRY PARK","SUPPLIES AND SERVICES","EQUIPMENT & MATERIALS","4111","P107157-SERVICE-Equipment & Materials as and when required",11/1/2021 00:00:00,"243275",96.81,"JW0004","J & W FENCING LIMITED",28/12/2020 00:00:00,31/1/2021 00:00:00,"P10-2021"
"P&V","RIVER LEE COUNTRY PARK","SUPPLIES AND SERVICES","EQUIPMENT & MATERIALS","4111","P110608-SERVICE-8x Bolt & Nuts",31/1/2021 00:00:00,"243929",5.36,"JE0011","SAINT-GOBAIN BUILDING DISTRIBUTION",28/12/2020 00:00:00,31/1/2021 00:00:00,"P10-2021"
"P&V","RIVER LEE COUNTRY PARK","SUPPLIES AND SERVICES","EQUIPMENT & MATERIALS","4111","P110608-SERVICE-Repair Washers",31/1/2021 00:00:00,"243929",44,"JE0011","SAINT-GOBAIN BUILDING DISTRIBUTION",28/12/2020 00:00:00,31/1/2021 00:00:00,"P10-2021"
"P&V","RIVER LEE COUNTRY PARK","SUPPLIES AND SERVICES","EQUIPMENT & MATERIALS","4111","P110608-SERVICE-1x Wood Drill Bit",31/1/2021 00:00:00,"243929",9.17,"JE0011","SAINT-GOBAIN BUILDING DISTRIBUTION",28/12/2020 00:00:00,31/1/2021 00:00:00,"P10-2021"
"P&V","RIVER LEE COUNTRY PARK","SUPPLIES AND SERVICES","EQUIPMENT & MATERIALS","4111","P110608-SERVICE-20x Steel Washers",31/1/2021 00:00:00,"243929",2.6,"JE0011","SAINT-GOBAIN BUILDING DISTRIBUTION",28/12/2020 00:00:00,31/1/2021 00:00:00,"P10-2021"
"P&V","RIVER LEE COUNTRY PARK","SUPPLIES AND SERVICES","EQUIPMENT & MATERIALS","4111","P110608-SERVICE-1x Builders Gloves Pk10",31/1/2021 00:00:00,"243929",12.45,"JE0011","SAINT-GOBAIN BUILDING DISTRIBUTION",28/12/2020 00:00:00,31/1/2021 00:00:00,"P10-2021"
"P&V","RIVER LEE COUNTRY PARK","SUPPLIES AND SERVICES","EQUIPMENT & MATERIALS","4111","P110608-SERVICE-20x Steel Nuts",31/1/2021 00:00:00,"243929",3.4,"JE0011","SAINT-GOBAIN BUILDING DISTRIBUTION",28/12/2020 00:00:00,31/1/2021 00:00:00,"P10-2021"
"P&V","RIVER LEE COUNTRY PARK","SUPPLIES AND SERVICES","EQUIPMENT & MATERIALS","4111","P110608-SERVICE-1x Rawlplugs 8mm",31/1/2021 00:00:00,"243930",5.9,"JE0011","SAINT-GOBAIN BUILDING DISTRIBUTION",28/12/2020 00:00:00,31/1/2021 00:00:00,"P10-2021"
"P&V","RIVER LEE COUNTRY PARK","SUPPLIES AND SERVICES","EQUIPMENT & MATERIALS","4111","P110608-SERVICE-1x Rawlplugs 6mm",31/1/2021 00:00:00,"243930",5.56,"JE0011","SAINT-GOBAIN BUILDING DISTRIBUTION",28/12/2020 00:00:00,31/1/2021 00:00:00,"P10-2021"
"P&V","RIVER LEE COUNTRY PARK","SUPPLIES AND SERVICES","EQUIPMENT & MATERIALS","4111","P110608-SERVICE-1x Drill/Driver Set",31/1/2021 00:00:00,"243930",19.48,"JE0011","SAINT-GOBAIN BUILDING DISTRIBUTION",28/12/2020 00:00:00,31/1/2021 00:00:00,"P10-2021"
"P&V","RIVER LEE COUNTRY PARK","SUPPLIES AND SERVICES","EQUIPMENT & MATERIALS","4111","P110608-SERVICE-1x Rawlplugs Bag - 7mm",31/1/2021 00:00:00,"243930",6.4,"JE0011","SAINT-GOBAIN BUILDING DISTRIBUTION",28/12/2020 00:00:00,31/1/2021 00:00:00,"P10-2021"
,"LEE VALLEY VELOPARK","SUPPLIES AND SERVICES","EQUIPMENT & MATERIALS","4111","P110269-SERVICE-Materials",4/1/2021 00:00:00,"242786",74.92,"SC0057","SCREWFIX DIRECT LTD",28/12/2020 00:00:00,31/1/2021 00:00:00,"P10-2021"
,"LEE VALLEY VELOPARK","SUPPLIES AND SERVICES","EQUIPMENT & MATERIALS","4111","P110384-SERVICE-Suregas Rental",11/1/2021 00:00:00,"243225",49.2,"BO0015","BOC LTD",28/12/2020 00:00:00,31/1/2021 00:00:00,"P10-2021"
,"LEE VALLEY VELOPARK","SUPPLIES AND SERVICES","EQUIPMENT & MATERIALS","4111","P110386-SERVICE-Combi Padlock x4",11/1/2021 00:00:00,"243241",79.13,"SC0057","SCREWFIX DIRECT LTD",28/12/2020 00:00:00,31/1/2021 00:00:00,"P10-2021"
,"LEE VALLEY VELOPARK","SUPPLIES AND SERVICES","EQUIPMENT & MATERIALS","4111","P110576-SERVICE-Matierials",31/1/2021 00:00:00,"243516",9.15,"SC0057","SCREWFIX DIRECT LTD",28/12/2020 00:00:00,31/1/2021 00:00:00,"P10-2021"
,"LEE VALLEY VELOPARK","SUPPLIES AND SERVICES","EQUIPMENT & MATERIALS","4111","P110230-SERVICE-Access Cards for ADT System",19/1/2021 00:00:00,"243685",537,"AD0015","ADT FIRE & SECURITY PLC",28/12/2020 00:00:00,31/1/2021 00:00:00,"P10-2021"
,"LEE VALLEY VELOPARK","SUPPLIES AND SERVICES","EQUIPMENT & MATERIALS","4111","P110576-SERVICE-Matierials",31/1/2021 00:00:00,"243738",134.75,"SC0057","SCREWFIX DIRECT LTD",28/12/2020 00:00:00,31/1/2021 00:00:00,"P10-2021"
,"LEE VALLEY VELOPARK","SUPPLIES AND SERVICES","EQUIPMENT & MATERIALS","4111","P110576-SERVICE-Matierials",31/1/2021 00:00:00,"243793",9.98,"SC0057","SCREWFIX DIRECT LTD",28/12/2020 00:00:00,31/1/2021 00:00:00,"P10-2021"
,"LEE VALLEY VELOPARK","SUPPLIES AND SERVICES","EQUIPMENT & MATERIALS","4111","P110576-SERVICE-Matierials",31/1/2021 00:00:00,"243870",20.82,"SC0057","SCREWFIX DIRECT LTD",28/12/2020 00:00:00,31/1/2021 00:00:00,"P10-2021"
,"LV HOCKEY AND TENNIS CENTRE","SUPPLIES AND SERVICES","EQUIPMENT & MATERIALS","4111","P110293-SERVICE-Algoclear-Pro 10 Litre x10",4/1/2021 00:00:00,"242800",1118,"TH0296","THAMES VALLEY SPECIALIST PRODUCTS LTD",28/12/2020 00:00:00,31/1/2021 00:00:00,"P10-2021"
,"LV HOCKEY AND TENNIS CENTRE","SUPPLIES AND SERVICES","EQUIPMENT & MATERIALS","4111","P110385-SERVICE-Suregas Rental",11/1/2021 00:00:00,"243227",16.2,"BO0015","BOC LTD",28/12/2020 00:00:00,31/1/2021 00:00:00,"P10-2021"
,"LEE VALLEY RIDING CENTRE","SUPPLIES AND SERVICES","EQUIPMENT & MATERIALS","4111","P110495-SERVICE-15 rugs for horses",31/1/2021 00:00:00,"243873",487.5,"SN0030","SNOWHILL LIMITED",28/12/2020 00:00:00,31/1/2021 00:00:00,"P10-2021"
,"LV ICE CENTRE CATERING","SUPPLIES AND SERVICES","EQUIPMENT & MATERIALS","4111","P110313-SERVICE-Suregas Cafe",4/1/2021 00:00:00,"243226",34.05,"BO0015","BOC LTD",28/12/2020 00:00:00,31/1/2021 00:00:00,"P10-2021"
,"LV ICE CENTRE CATERING","SUPPLIES AND SERVICES","EQUIPMENT & MATERIALS","4111","P110401-SERVICE-Cafe Draft Machine",11/1/2021 00:00:00,"243429",33.33,"CO0045","COCA COLA EUROPEAN PARTNERS GREAT BRITAIN LTD",28/12/2020 00:00:00,31/1/2021 00:00:00,"P10-2021"
,"LEE VALLEY WHITE WATER CENTRE","SUPPLIES AND SERVICES","EQUIPMENT & MATERIALS","4111","P110671-SERVICE-Quarterly knife sharpening 1/11/20 - 13/1/21",31/1/2021 00:00:00,"244133",49.76,"NE0208","NELLA CUTLERY SOUTH LTD",28/12/2020 00:00:00,31/1/2021 00:00:00,"P10-2021"
,"LEE VALLEY FARM HAYES HILL","SUPPLIES AND SERVICES","EQUIPMENT MAINTENANCE","4112","P110072-SERVICE-2kg Co2 Extinguisher Replacment",18/1/2021 00:00:00,"243674",32.89,"TJ0009","T.J.FIRE & SECURITY",28/12/2020 00:00:00,31/1/2021 00:00:00,"P10-2021"
,"LEE VALLEY FARM HAYES HILL","SUPPLIES AND SERVICES","EQUIPMENT MAINTENANCE","4112","P110072-SERVICE-Fire Blanket Inspections",18/1/2021 00:00:00,"243674",2.82,"TJ0009","T.J.FIRE & SECURITY",28/12/2020 00:00:00,31/1/2021 00:00:00,"P10-2021"
,"LEE VALLEY FARM HAYES HILL","SUPPLIES AND SERVICES","EQUIPMENT MAINTENANCE","4112","P110072-SERVICE-Spare Parts",18/1/2021 00:00:00,"243674",75,"TJ0009","T.J.FIRE & SECURITY",28/12/2020 00:00:00,31/1/2021 00:00:00,"P10-2021"
,"LEE VALLEY FARM HAYES HILL","SUPPLIES AND SERVICES","EQUIPMENT MAINTENANCE","4112","P110072-SERVICE-Co2 Swivel HOrn Frost Free",18/1/2021 00:00:00,"243674",16.9,"TJ0009","T.J.FIRE & SECURITY",28/12/2020 00:00:00,31/1/2021 00:00:00,"P10-2021"
,"LEE VALLEY FARM HAYES HILL","SUPPLIES AND SERVICES","EQUIPMENT MAINTENANCE","4112","P110072-SERVICE-Extinguisher Inspections",18/1/2021 00:00:00,"243674",31.02,"TJ0009","T.J.FIRE & SECURITY",28/12/2020 00:00:00,31/1/2021 00:00:00,"P10-2021"
,"LEE VALLEY FARM HAYES HILL","SUPPLIES AND SERVICES","EQUIPMENT MAINTENANCE","4112","P110072-SERVICE-Extinguisher Attendance Fee",18/1/2021 00:00:00,"243674",6.88,"TJ0009","T.J.FIRE & SECURITY",28/12/2020 00:00:00,31/1/2021 00:00:00,"P10-2021"
,"LEE VALLEY FARM HAYES HILL","SUPPLIES AND SERVICES","EQUIPMENT MAINTENANCE","4112","P110072-SERVICE-Disposal of Old Units",18/1/2021 00:00:00,"243674",3.5,"TJ0009","T.J.FIRE & SECURITY",28/12/2020 00:00:00,31/1/2021 00:00:00,"P10-2021"
,"LEE VALLEY CAMPSITE","SUPPLIES AND SERVICES","EQUIPMENT MAINTENANCE","4112","P110365-SERVICE-Wheel for Gas Bottle trailer",11/1/2021 00:00:00,"243489",45,"JO0175","ROGER JONES",28/12/2020 00:00:00,31/1/2021 00:00:00,"P10-2021"
,"LEE VALLEY CARAVAN PARK","SUPPLIES AND SERVICES","EQUIPMENT MAINTENANCE","4112","P110304-SERVICE-Barrier repair",4/1/2021 00:00:00,"243166",325,"AU0245","AUTO-MATE SYSTEMS LIMITED",28/12/2020 00:00:00,31/1/2021 00:00:00,"P10-2021"
,"LEE VALLEY CARAVAN PARK","SUPPLIES AND SERVICES","EQUIPMENT MAINTENANCE","4112","P107979-SERVICE-Call outs Electric tripping in reception",4/1/2021 00:00:00,"243219",80,"BR0018","BRADSHAW ELECTRICAL LIMITED",28/12/2020 00:00:00,31/1/2021 00:00:00,"P10-2021"
"P&V","SOUTH AREA RANGERS","SUPPLIES AND SERVICES","EQUIPMENT MAINTENANCE","4112","P110242-SERVICE-Electric MSA200 CBQ Files",11/1/2021 00:00:00,"243456",9,"AP0245","APS LIMITED",28/12/2020 00:00:00,31/1/2021 00:00:00,"P10-2021"
"P&V","SOUTH AREA RANGERS","SUPPLIES AND SERVICES","EQUIPMENT MAINTENANCE","4112","P110242-SERVICE-Pole Saw files",11/1/2021 00:00:00,"243456",9,"AP0245","APS LIMITED",28/12/2020 00:00:00,31/1/2021 00:00:00,"P10-2021"
"P&V","SOUTH AREA RANGERS","SUPPLIES AND SERVICES","EQUIPMENT MAINTENANCE","4112","P110242-SERVICE-Chainsaw Files MS 261",11/1/2021 00:00:00,"243456",9,"AP0245","APS LIMITED",28/12/2020 00:00:00,31/1/2021 00:00:00,"P10-2021"
,"LV WHITE WATER CATERING","SUPPLIES AND SERVICES","EQUIPMENT MAINTENANCE","4112","P109355-SERVICE-fryers to be mended",4/1/2021 00:00:00,"242737",496.2,"MA0417","MARSTAN FACILITIES LTD",28/12/2020 00:00:00,31/1/2021 00:00:00,"P10-2021"
"R&B","INFORMATION TECHNOLOGY","SUPPLIES AND SERVICES","IT CORE SYSTEMS","4113","P110361-SERVICE-Accord Payroll hosting January 2021",11/1/2021 00:00:00,"243182",516.68,"PA0453","PAYROLL BUSINESS SOLUTIONS LTD",28/12/2020 00:00:00,31/1/2021 00:00:00,"P10-2021"
"R&B","INFORMATION TECHNOLOGY","SUPPLIES AND SERVICES","IT CORE SYSTEMS","4113","P110512-SERVICE-Payware ocuis POS client monthly service fee",20/1/2021 00:00:00,"243535",351,"CO0440","VERIFONE SERVICES UK & IRELAND LTD",28/12/2020 00:00:00,31/1/2021 00:00:00,"P10-2021"
"R&B","INFORMATION TECHNOLOGY","SUPPLIES AND SERVICES","IT CORE SYSTEMS","4113","P110512-SERVICE-Payware ocuis POS client monthly service fee",20/1/2021 00:00:00,"243536",351,"CO0440","VERIFONE SERVICES UK & IRELAND LTD",28/12/2020 00:00:00,31/1/2021 00:00:00,"P10-2021"
"R&B","INFORMATION TECHNOLOGY","SUPPLIES AND SERVICES","IT CORE SYSTEMS","4113","P110602-SERVICE-Payware Ocuis POS client monthly service fee",31/1/2021 00:00:00,"243798",351,"CO0440","VERIFONE SERVICES UK & IRELAND LTD",28/12/2020 00:00:00,31/1/2021 00:00:00,"P10-2021"
"R&B","INFORMATION TECHNOLOGY","SUPPLIES AND SERVICES","IT CORE SYSTEMS","4113","P110662-SERVICE-Payroll hosting February 2021",31/1/2021 00:00:00,"243985",516.68,"PA0453","PAYROLL BUSINESS SOLUTIONS LTD",28/12/2020 00:00:00,31/1/2021 00:00:00,"P10-2021"
,"LSC INFORMATION TECHNOLOGY","SUPPLIES AND SERVICES","IT CORE SYSTEMS","4113","P110404-SERVICE-Top Up Postcode Search",25/1/2021 00:00:00,"243539",500,"PO0312","GB GROUP PLC",28/12/2020 00:00:00,31/1/2021 00:00:00,"P10-2021"
"R&B","INFORMATION TECHNOLOGY","SUPPLIES AND SERVICES","IT NETWORK & TELECOMS COSTS","4114","P107077-SERVICE-MPLS Lines All Sites - Jan 20",6/1/2021 00:00:00,"243134",17802.88,"PP0200","PPSNET LIMITED",28/12/2020 00:00:00,31/1/2021 00:00:00,"P10-2021"
"R&B","INFORMATION TECHNOLOGY","SUPPLIES AND SERVICES","IT NETWORK & TELECOMS COSTS","4114","P107078-SERVICE-MPLS All Sites Feb 20",6/1/2021 00:00:00,"243135",15093.58,"PP0200","PPSNET LIMITED",28/12/2020 00:00:00,31/1/2021 00:00:00,"P10-2021"
"R&B","INFORMATION TECHNOLOGY","SUPPLIES AND SERVICES","IT NETWORK & TELECOMS COSTS","4114","P107079-SERVICE-MPLS All Sites Mar 20",6/1/2021 00:00:00,"243136",12450.06,"PP0200","PPSNET LIMITED",28/12/2020 00:00:00,31/1/2021 00:00:00,"P10-2021"
"R&B","INFORMATION TECHNOLOGY","SUPPLIES AND SERVICES","IT NETWORK & TELECOMS COSTS","4114","P107345-SERVICE-.Monthly Service & Calls 20/21",11/1/2021 00:00:00,"243239",148.07,"FR0131","VOICEFLEX LTD",28/12/2020 00:00:00,31/1/2021 00:00:00,"P10-2021"
"R&B","INFORMATION TECHNOLOGY","SUPPLIES AND SERVICES","IT NETWORK & TELECOMS COSTS","4114","P110360-SERVICE-MPLS lines all sites Janu 2021",11/1/2021 00:00:00,"243245",11501.86,"PP0200","PPSNET LIMITED",28/12/2020 00:00:00,31/1/2021 00:00:00,"P10-2021"
"P&V","FISHERIES MANAGEMENT","SUPPLIES AND SERVICES","EQUIPMENT HIRE","4115","P108092-SERVICE-44 weeks hire at Abbotts Lake, Marsh Lane, SG",25/1/2021 00:00:00,"243526",92,"TO0092","TOILETS+ LTD",28/12/2020 00:00:00,31/1/2021 00:00:00,"P10-2021"
"P&V","MYDDELTON HOUSE","SUPPLIES AND SERVICES","IT HARDWARE & SOFTWARE COSTS","4116","ZEN INTERNET LTD",6/1/2021 00:00:00,"243158",29.5,"ZE0007","ZEN INTERNET LTD",28/12/2020 00:00:00,31/1/2021 00:00:00,"P10-2021"
"P&V","MYDDELTON HOUSE","SUPPLIES AND SERVICES","IT HARDWARE & SOFTWARE COSTS","4116","ZEN INTERNET LTD",19/1/2021 00:00:00,"243515",42,"ZE0007","ZEN INTERNET LTD",28/12/2020 00:00:00,31/1/2021 00:00:00,"P10-2021"
"P&V","MYDDELTON HOUSE","SUPPLIES AND SERVICES","IT HARDWARE & SOFTWARE COSTS","4116","ZEN INTERNET LTD",31/1/2021 00:00:00,"244025",29.5,"ZE0007","ZEN INTERNET LTD",28/12/2020 00:00:00,31/1/2021 00:00:00,"P10-2021"
"R&B","INFORMATION TECHNOLOGY","SUPPLIES AND SERVICES","IT HARDWARE & SOFTWARE COSTS","4116","P109860-SERVICE-High Speed 4K UHD HDMI Lead",11/1/2021 00:00:00,"243235",10.71,"CP0562","CPC LIMITED",28/12/2020 00:00:00,31/1/2021 00:00:00,"P10-2021"
"R&B","INFORMATION TECHNOLOGY","SUPPLIES AND SERVICES","IT HARDWARE & SOFTWARE COSTS","4116","P110263-SERVICE-Hard drive fro CRM server",11/1/2021 00:00:00,"243240",112.5,"IQ0022","IQUAL",28/12/2020 00:00:00,31/1/2021 00:00:00,"P10-2021"
"R&B","INFORMATION TECHNOLOGY","SUPPLIES AND SERVICES","IT HARDWARE & SOFTWARE COSTS","4116","P110263-SERVICE-Ammendment to included VAT and delivery",11/1/2021 00:00:00,"243240",32.5,"IQ0022","IQUAL",28/12/2020 00:00:00,31/1/2021 00:00:00,"P10-2021"
,"LEE VALLEY MARINA SPRINGFIELD","SUPPLIES AND SERVICES","IT HARDWARE & SOFTWARE COSTS","4116","ZEN INTERNET LTD",19/1/2021 00:00:00,"243649",38,"ZE0007","ZEN INTERNET LTD",28/12/2020 00:00:00,31/1/2021 00:00:00,"P10-2021"
,"LEE VALLEY MARINA STANSTEAD","SUPPLIES AND SERVICES","IT HARDWARE & SOFTWARE COSTS","4116","ZEN INTERNET LTD",19/1/2021 00:00:00,"243648",31.32,"ZE0007","ZEN INTERNET LTD",28/12/2020 00:00:00,31/1/2021 00:00:00,"P10-2021"
,"LEE VALLEY CAMPSITE","SUPPLIES AND SERVICES","IT HARDWARE & SOFTWARE COSTS","4116","ZEN INTERNET LTD",18/1/2021 00:00:00,"243742",42,"ZE0007","ZEN INTERNET LTD",28/12/2020 00:00:00,31/1/2021 00:00:00,"P10-2021"
,"LEE VALLEY RIDING CENTRE","SUPPLIES AND SERVICES","IT HARDWARE & SOFTWARE COSTS","4116","ZEN INTERNET LTD",11/1/2021 00:00:00,"243421",31.32,"ZE0007","ZEN INTERNET LTD",28/12/2020 00:00:00,31/1/2021 00:00:00,"P10-2021"
,"LEE VALLEY ICE CENTRE","SUPPLIES AND SERVICES","IT HARDWARE & SOFTWARE COSTS","4116","ZEN INTERNET LTD",6/1/2021 00:00:00,"243184",42,"ZE0007","ZEN INTERNET LTD",28/12/2020 00:00:00,31/1/2021 00:00:00,"P10-2021"
,"LEE VALLEY ICE CENTRE","SUPPLIES AND SERVICES","IT HARDWARE & SOFTWARE COSTS","4116","ZEN INTERNET LTD",31/1/2021 00:00:00,"243865",42,"ZE0007","ZEN INTERNET LTD",28/12/2020 00:00:00,31/1/2021 00:00:00,"P10-2021"
,"LEE VALLEY WHITE WATER CENTRE","SUPPLIES AND SERVICES","IT HARDWARE & SOFTWARE COSTS","4116","ZEN INTERNET LTD",6/1/2021 00:00:00,"243183",17.83,"ZE0007","ZEN INTERNET LTD",28/12/2020 00:00:00,31/1/2021 00:00:00,"P10-2021"
,"LEE VALLEY WHITE WATER CENTRE","SUPPLIES AND SERVICES","IT HARDWARE & SOFTWARE COSTS","4116","ZEN INTERNET LTD",6/1/2021 00:00:00,"243185",13.49,"ZE0007","ZEN INTERNET LTD",28/12/2020 00:00:00,31/1/2021 00:00:00,"P10-2021"
,"LEE VALLEY WHITE WATER CENTRE","SUPPLIES AND SERVICES","IT HARDWARE & SOFTWARE COSTS","4116","P110164-SERVICE-Handling charge",11/1/2021 00:00:00,"243236",4.99,"CP0562","CPC LIMITED",28/12/2020 00:00:00,31/1/2021 00:00:00,"P10-2021"
,"LEE VALLEY WHITE WATER CENTRE","SUPPLIES AND SERVICES","IT HARDWARE & SOFTWARE COSTS","4116","P110164-SERVICE-Mini DisplayPort to HDMI Cable 5m Black -  PS",11/1/2021 00:00:00,"243236",6.65,"CP0562","CPC LIMITED",28/12/2020 00:00:00,31/1/2021 00:00:00,"P10-2021"
,"LEE VALLEY WHITE WATER CENTRE","SUPPLIES AND SERVICES","IT HARDWARE & SOFTWARE COSTS","4116","ZEN INTERNET LTD",27/1/2021 00:00:00,"243866",13.49,"ZE0007","ZEN INTERNET LTD",28/12/2020 00:00:00,31/1/2021 00:00:00,"P10-2021"
,"LEE VALLEY WHITE WATER CENTRE","SUPPLIES AND SERVICES","IT HARDWARE & SOFTWARE COSTS","4116","ZEN INTERNET LTD",31/1/2021 00:00:00,"243867",17.83,"ZE0007","ZEN INTERNET LTD",28/12/2020 00:00:00,31/1/2021 00:00:00,"P10-2021"
,"LEE VALLEY RIDING CENTRE","SUPPLIES AND SERVICES","VENDING AGREEMENTS","4117","P110355-SERVICE-vending rental (credit note to follow)",11/1/2021 00:00:00,"236871",234,"TA0272","TASTEBUDS VENDING LI MITED",28/12/2020 00:00:00,31/1/2021 00:00:00,"P10-2021"
,"LEE VALLEY RIDING CENTRE","SUPPLIES AND SERVICES","VENDING AGREEMENTS","4117","P110355-SERVICE-vending rental (credit note to follow)",11/1/2021 00:00:00,"241388",-234,"TA0272","TASTEBUDS VENDING LI MITED",28/12/2020 00:00:00,31/1/2021 00:00:00,"P10-2021"
,"LEE VALLEY ATHLETICS CENTRE","SUPPLIES AND SERVICES","VENDING AGREEMENTS","4117","P110336-SERVICE-LVAC RIJO RENTAL INV M721971",5/1/2021 00:00:00,"243276",156,"RI0176","RIJO 42 LIMITED",28/12/2020 00:00:00,31/1/2021 00:00:00,"P10-2021"
,"LEE VALLEY ATHLETICS CENTRE","SUPPLIES AND SERVICES","VENDING AGREEMENTS","4117","P109836-SERVICE-LVAC VENDING - PROTEIN SHAKES",27/1/2021 00:00:00,"243541",73,"MY0198","MY GOODNESS LIMITED",28/12/2020 00:00:00,31/1/2021 00:00:00,"P10-2021"
,"LEE VALLEY ATHLETICS CENTRE","SUPPLIES AND SERVICES","VENDING AGREEMENTS","4117","P109758-SERVICE-LVAC INVOICE 9296238387",26/1/2021 00:00:00,"243668",319.21,"BR0271","BRAKES CATERING EQUIPMENT",28/12/2020 00:00:00,31/1/2021 00:00:00,"P10-2021"
"R&B","INFORMATION TECHNOLOGY","SUPPLIES AND SERVICES","IT MAINTENANCE AGREEMENTS","4119","P107296-SERVICE-1 - 30 November 2020",11/1/2021 00:00:00,"243246",876,"IQ0022","IQUAL",28/12/2020 00:00:00,31/1/2021 00:00:00,"P10-2021"
"R&B","INFORMATION TECHNOLOGY","SUPPLIES AND SERVICES","IT MAINTENANCE AGREEMENTS","4119","P107296-SERVICE-1 - 30 December 2020",11/1/2021 00:00:00,"243246",876,"IQ0022","IQUAL",28/12/2020 00:00:00,31/1/2021 00:00:00,"P10-2021"
"R&B","INFORMATION TECHNOLOGY","SUPPLIES AND SERVICES","IT MAINTENANCE AGREEMENTS","4119","P109957-SERVICE-UPS maintenance service for 12 months",11/1/2021 00:00:00,"243467",1696,"EA0063","EATON ELECTRIC LIMITED",28/12/2020 00:00:00,31/1/2021 00:00:00,"P10-2021"
"R&B","INFORMATION TECHNOLOGY","SUPPLIES AND SERVICES","IT MAINTENANCE AGREEMENTS","4119","P110398-SERVICE-Volunteer Licence  & SSL",20/1/2021 00:00:00,"243518",1900,"SM0485","TEAM KINETIC (PREVIOUSLY SMARTER IN DESIGN)",28/12/2020 00:00:00,31/1/2021 00:00:00,"P10-2021"
"R&B","INFORMATION TECHNOLOGY","SUPPLIES AND SERVICES","IT MAINTENANCE AGREEMENTS","4119","P107296-SERVICE-1 - 31 August 2020",20/1/2021 00:00:00,"243538",876,"IQ0022","IQUAL",28/12/2020 00:00:00,31/1/2021 00:00:00,"P10-2021"
"R&B","INFORMATION TECHNOLOGY","SUPPLIES AND SERVICES","IT MAINTENANCE AGREEMENTS","4119","P107296-SERVICE-1 - 31 October 2020",20/1/2021 00:00:00,"243538",876,"IQ0022","IQUAL",28/12/2020 00:00:00,31/1/2021 00:00:00,"P10-2021"
"R&B","INFORMATION TECHNOLOGY","SUPPLIES AND SERVICES","IT MAINTENANCE AGREEMENTS","4119","P107296-SERVICE-1 - 31 July 2020",20/1/2021 00:00:00,"243538",876,"IQ0022","IQUAL",28/12/2020 00:00:00,31/1/2021 00:00:00,"P10-2021"
"R&B","INFORMATION TECHNOLOGY","SUPPLIES AND SERVICES","IT MAINTENANCE AGREEMENTS","4119","P107296-SERVICE-1 - 30 June 2020",20/1/2021 00:00:00,"243538",876,"IQ0022","IQUAL",28/12/2020 00:00:00,31/1/2021 00:00:00,"P10-2021"
"R&B","INFORMATION TECHNOLOGY","SUPPLIES AND SERVICES","IT MAINTENANCE AGREEMENTS","4119","P107296-SERVICE-1 - 30 September 2020",20/1/2021 00:00:00,"243538",876,"IQ0022","IQUAL",28/12/2020 00:00:00,31/1/2021 00:00:00,"P10-2021"
"R&B","INFORMATION TECHNOLOGY","SUPPLIES AND SERVICES","IT MAINTENANCE AGREEMENTS","4119","P107296-SERVICE-1 - 31 January 2021",31/1/2021 00:00:00,"243987",876,"IQ0022","IQUAL",28/12/2020 00:00:00,31/1/2021 00:00:00,"P10-2021"
"R&B","INFORMATION TECHNOLOGY","SUPPLIES AND SERVICES","IT MAINTENANCE AGREEMENTS","4119","P110663-SERVICE-Annual Payware Ocuis Gateway charge",31/1/2021 00:00:00,"244006",11456.92,"CO0440","VERIFONE SERVICES UK & IRELAND LTD",28/12/2020 00:00:00,31/1/2021 00:00:00,"P10-2021"
,"LEE VALLEY MARINA SPRINGFIELD","SUPPLIES AND SERVICES","IT MAINTENANCE AGREEMENTS","4119","P110424-SERVICE-Monthly IT Support Springfield Marina",12/1/2021 00:00:00,"243464",72.44,"CY0653","CYBERTILL",28/12/2020 00:00:00,31/1/2021 00:00:00,"P10-2021"
,"LEE VALLEY MARINA STANSTEAD","SUPPLIES AND SERVICES","IT MAINTENANCE AGREEMENTS","4119","P110424-SERVICE-Monthly IT Support Stanstead",12/1/2021 00:00:00,"243464",72.44,"CY0653","CYBERTILL",28/12/2020 00:00:00,31/1/2021 00:00:00,"P10-2021"
,"LEE VALLEY MARINA STANSTEAD","SUPPLIES AND SERVICES","IT MAINTENANCE AGREEMENTS","4119","P108180-SERVICE-Monthly support for the period of July",31/1/2021 00:00:00,"244020",-14.49,"CY0653","CYBERTILL",28/12/2020 00:00:00,31/1/2021 00:00:00,"P10-2021"
,"LEE VALLEY CAMPSITE","SUPPLIES AND SERVICES","IT MAINTENANCE AGREEMENTS","4119","P110023-SERVICE-Monthly subscription Dec 20  - Feb 21 Sewards",11/1/2021 00:00:00,"243163",145.5,"NE0218","NETGUIDES LIMITED",28/12/2020 00:00:00,31/1/2021 00:00:00,"P10-2021"
,"LEE VALLEY CAMPSITE","SUPPLIES AND SERVICES","IT MAINTENANCE AGREEMENTS","4119","P110023-SERVICE-Monthly subscription Dec 20  - Feb 21 Sewards",27/1/2021 00:00:00,"243905",145.5,"NE0218","NETGUIDES LIMITED",28/12/2020 00:00:00,31/1/2021 00:00:00,"P10-2021"
,"LEE VALLEY CARAVAN PARK","SUPPLIES AND SERVICES","IT MAINTENANCE AGREEMENTS","4119","P110023-SERVICE-Monthly subscription Dec 20 - Feb 21 Dobbs We",11/1/2021 00:00:00,"243163",145.5,"NE0218","NETGUIDES LIMITED",28/12/2020 00:00:00,31/1/2021 00:00:00,"P10-2021"
,"LEE VALLEY CARAVAN PARK","SUPPLIES AND SERVICES","IT MAINTENANCE AGREEMENTS","4119","P110023-SERVICE-Monthly subscription Dec 20 - Feb 21 Dobbs We",27/1/2021 00:00:00,"243905",145.5,"NE0218","NETGUIDES LIMITED",28/12/2020 00:00:00,31/1/2021 00:00:00,"P10-2021"
"P&V","ALMOST WILD CAMPSITE","SUPPLIES AND SERVICES","IT MAINTENANCE AGREEMENTS","4119","P110023-SERVICE-Monthly subscription Dec 20 - Feb 21 Almost W",11/1/2021 00:00:00,"243163",145.5,"NE0218","NETGUIDES LIMITED",28/12/2020 00:00:00,31/1/2021 00:00:00,"P10-2021"
"P&V","ALMOST WILD CAMPSITE","SUPPLIES AND SERVICES","IT MAINTENANCE AGREEMENTS","4119","P110023-SERVICE-Monthly subscription Dec 20 - Feb 21 Almost W",27/1/2021 00:00:00,"243905",145.5,"NE0218","NETGUIDES LIMITED",28/12/2020 00:00:00,31/1/2021 00:00:00,"P10-2021"
,"LV LEISURE CENTRE CAMPSITE","SUPPLIES AND SERVICES","IT MAINTENANCE AGREEMENTS","4119","P110023-SERVICE-Monthly subscripion Dec 20 - Feb 21 Edmonton",11/1/2021 00:00:00,"243163",145.5,"NE0218","NETGUIDES LIMITED",28/12/2020 00:00:00,31/1/2021 00:00:00,"P10-2021"
,"LV LEISURE CENTRE CAMPSITE","SUPPLIES AND SERVICES","IT MAINTENANCE AGREEMENTS","4119","P110023-SERVICE-Monthly subscripion Dec 20 - Feb 21 Edmonton",27/1/2021 00:00:00,"243905",145.5,"NE0218","NETGUIDES LIMITED",28/12/2020 00:00:00,31/1/2021 00:00:00,"P10-2021"
,"LV LEISURE CENTRE GOLF COURSE","SUPPLIES AND SERVICES","IT MAINTENANCE AGREEMENTS","4119","P110510-SERVICE-Monthly digitickets December 2020",20/1/2021 00:00:00,"243662",528.56,"DI0304","DIGITAL TICKETING SYSTEMS LTD (DIGITICKETS)",28/12/2020 00:00:00,31/1/2021 00:00:00,"P10-2021"
,"LV LEISURE CENTRE GOLF COURSE","SUPPLIES AND SERVICES","IT MAINTENANCE AGREEMENTS","4119","P110510-SERVICE-Monthly digitickets May 2020",20/1/2021 00:00:00,"243716",532.02,"DI0304","DIGITAL TICKETING SYSTEMS LTD (DIGITICKETS)",28/12/2020 00:00:00,31/1/2021 00:00:00,"P10-2021"
"P&V","RIVER LEE COUNTRY PARK","SUPPLIES AND SERVICES","MATERIALS (LOCKS)","4124","P110145-SERVICE-21x Assa Keys",5/1/2021 00:00:00,"243283",306.18,"LO0020","LOCK AND KEY SERVICES",28/12/2020 00:00:00,31/1/2021 00:00:00,"P10-2021"
"P&V","RIVER LEE COUNTRY PARK","SUPPLIES AND SERVICES","MATERIALS (LOCKS)","4124","P110145-SERVICE-7x ASSA lock Bodies Standard",5/1/2021 00:00:00,"243283",27.47,"LO0020","LOCK AND KEY SERVICES",28/12/2020 00:00:00,31/1/2021 00:00:00,"P10-2021"
"P&V","RIVER LEE COUNTRY PARK","SUPPLIES AND SERVICES","MATERIALS (LOCKS)","4124","P110145-SERVICE-16x ASSA Lock Barrels",5/1/2021 00:00:00,"243283",784.16,"LO0020","LOCK AND KEY SERVICES",28/12/2020 00:00:00,31/1/2021 00:00:00,"P10-2021"
,"LEE VALLEY ICE CENTRE","SUPPLIES AND SERVICES","MATERIALS (LOCKS)","4124","P110014-SERVICE-4x ASSA Keys",4/1/2021 00:00:00,"242972",72.92,"LO0020","LOCK AND KEY SERVICES",28/12/2020 00:00:00,31/1/2021 00:00:00,"P10-2021"
,"LEE VALLEY CARAVAN PARK","SUPPLIES AND SERVICES","MATERIALS (GROUNDS MAINT)","4125","P110397-SERVICE-Cleaned floats thick with fat",11/1/2021 00:00:00,"243478",180,"CO0550","CONVERT WATER LTD",28/12/2020 00:00:00,31/1/2021 00:00:00,"P10-2021"
,"LEE VALLEY CARAVAN PARK","SUPPLIES AND SERVICES","MATERIALS (GROUNDS MAINT)","4125","P110573-SERVICE-paint and maintainece",27/1/2021 00:00:00,"243794",44.56,"SC0057","SCREWFIX DIRECT LTD",28/12/2020 00:00:00,31/1/2021 00:00:00,"P10-2021"
,"LEE VALLEY CARAVAN PARK","SUPPLIES AND SERVICES","MATERIALS (GROUNDS MAINT)","4125","P110573-SERVICE-paint and maintainece",27/1/2021 00:00:00,"243869",14.58,"SC0057","SCREWFIX DIRECT LTD",28/12/2020 00:00:00,31/1/2021 00:00:00,"P10-2021"
"P&V","MYDDELTON HOUSE GARDENS","SUPPLIES AND SERVICES","MATERIALS (GROUNDS MAINT)","4125","P110316-SERVICE-12yd Skip at Myddelton House",4/1/2021 00:00:00,"243171",270,"GB0239","GBN SERVICES LTD",28/12/2020 00:00:00,31/1/2021 00:00:00,"P10-2021"
"P&V","ABBEY GARDENS","SUPPLIES AND SERVICES","MATERIALS (GROUNDS MAINT)","4125","P107744-SERVICE-50x 5' Hardwood Stakes",26/1/2021 00:00:00,"243802",41.67,"CL0093","CLOCKHOUSE NURSERY",28/12/2020 00:00:00,31/1/2021 00:00:00,"P10-2021"
"P&V","MYDDELTON HOUSE GARDENS","SUPPLIES AND SERVICES","MATERIALS (PLANTS & SHRUBS)","4126","P109908-SERVICE-Tulip Burgundy Blend Mixed 11- Quantity 2,000",11/1/2021 00:00:00,"242665",39.95,"PA0002","J PARKER DUTCH BULB WS LTD",28/12/2020 00:00:00,31/1/2021 00:00:00,"P10-2021"
"P&V","MYDDELTON HOUSE GARDENS","SUPPLIES AND SERVICES","MATERIALS (PLANTS & SHRUBS)","4126","P109908-SERVICE-Tulip Burgundy Blend Mixed 11- Quantity 2,000",11/1/2021 00:00:00,"242913",129.2,"PA0002","J PARKER DUTCH BULB WS LTD",28/12/2020 00:00:00,31/1/2021 00:00:00,"P10-2021"
"P&V","MYDDELTON HOUSE GARDENS","SUPPLIES AND SERVICES","MATERIALS (PLANTS & SHRUBS)","4126","P109908-SERVICE-Tulip Burgundy Blend Mixed 11- Quantity 2,000",11/1/2021 00:00:00,"243278",-340,"PA0002","J PARKER DUTCH BULB WS LTD",28/12/2020 00:00:00,31/1/2021 00:00:00,"P10-2021"
,"STANSTEAD RECHARGEABLE WORKS","SUPPLIES AND SERVICES","MATERIALS (TOOLS & PLANT)","4127","P110446-SERVICE-yard services",18/1/2021 00:00:00,"243679",638,"WA0251","M J MARINE SERVICES",28/12/2020 00:00:00,31/1/2021 00:00:00,"P10-2021"
,"STANSTEAD RECHARGEABLE WORKS","SUPPLIES AND SERVICES","MATERIALS (TOOLS & PLANT)","4127","P110622-SERVICE-marine services",31/1/2021 00:00:00,"244144",360,"WA0251","M J MARINE SERVICES",28/12/2020 00:00:00,31/1/2021 00:00:00,"P10-2021"
,"SPRINGFIELD RECHARGEABLE WORKS","SUPPLIES AND SERVICES","MATERIALS (ENG OTHER)","4130","P110093-SERVICE-To provide insurance @ 15%",18/1/2021 00:00:00,"243677",165,"BA0339","BALDWINS CRANE HIRE LTD",28/12/2020 00:00:00,31/1/2021 00:00:00,"P10-2021"
,"SPRINGFIELD RECHARGEABLE WORKS","SUPPLIES AND SERVICES","MATERIALS (ENG OTHER)","4130","P110093-SERVICE-Hire 110 ton crane on 16/12/2020",18/1/2021 00:00:00,"243677",1100,"BA0339","BALDWINS CRANE HIRE LTD",28/12/2020 00:00:00,31/1/2021 00:00:00,"P10-2021"
,"LEE VALLEY MARINA STANSTEAD","SUPPLIES AND SERVICES","MATERIALS (ENG OTHER)","4130","P110483-SERVICE-Timber supplies",31/1/2021 00:00:00,"244029",313.26,"TI0068","A10 TIMBER COMPANY",28/12/2020 00:00:00,31/1/2021 00:00:00,"P10-2021"
,"STANSTEAD RECHARGEABLE WORKS","SUPPLIES AND SERVICES","MATERIALS (ENG OTHER)","4130","P110202-SERVICE-refurbished Alternator-Oberon",11/1/2021 00:00:00,"243477",298.2,"EN0309","PRH ENGINEERING LIMITED",28/12/2020 00:00:00,31/1/2021 00:00:00,"P10-2021"
,"STANSTEAD RECHARGEABLE WORKS","SUPPLIES AND SERVICES","MATERIALS (ENG OTHER)","4130","P110575-SERVICE-To supply steel materials",31/1/2021 00:00:00,"244021",1011.2,"EN0309","PRH ENGINEERING LIMITED",28/12/2020 00:00:00,31/1/2021 00:00:00,"P10-2021"
,"LEE VALLEY CARAVAN PARK","SUPPLIES AND SERVICES","MATERIALS (ENG OTHER)","4130","P110574-SERVICE-Verminate",27/1/2021 00:00:00,"243522",70,"VE0006","VERMINATE CITY & RURAL PEST CONTROL LTD",28/12/2020 00:00:00,31/1/2021 00:00:00,"P10-2021"
,"LEE VALLEY ICE CENTRE","SUPPLIES AND SERVICES","MATERIALS (ENG OTHER)","4130","P110609-SERVICE-Radio Hire",31/1/2021 00:00:00,"243506",220.56,"LO0133","RADIOCOMS SYSTEMS LTD",28/12/2020 00:00:00,31/1/2021 00:00:00,"P10-2021"
,"LEE VALLEY WHITE WATER CENTRE","SUPPLIES AND SERVICES","MATERIALS (CHEMICALS)","4131","P110199-SERVICE-1000L Hypo",6/1/2021 00:00:00,"243191",232.5,"IN0182","INDUSTRIAL CHEMICALS LTD",28/12/2020 00:00:00,31/1/2021 00:00:00,"P10-2021"
,"LEE VALLEY WHITE WATER CENTRE","SUPPLIES AND SERVICES","MATERIALS (CHEMICALS)","4131","P110199-SERVICE-Pump over and delivery",6/1/2021 00:00:00,"243191",40,"IN0182","INDUSTRIAL CHEMICALS LTD",28/12/2020 00:00:00,31/1/2021 00:00:00,"P10-2021"
,"LEE VALLEY WHITE WATER CENTRE","SUPPLIES AND SERVICES","MATERIALS (CHEMICALS)","4131","P108185-SERVICE-Delivery",12/1/2021 00:00:00,"243320",20,"IN0182","INDUSTRIAL CHEMICALS LTD",28/12/2020 00:00:00,31/1/2021 00:00:00,"P10-2021"
,"LEE VALLEY WHITE WATER CENTRE","SUPPLIES AND SERVICES","MATERIALS (CHEMICALS)","4131","P108185-SERVICE-1000L Sodium hypo",12/1/2021 00:00:00,"243320",232.5,"IN0182","INDUSTRIAL CHEMICALS LTD",28/12/2020 00:00:00,31/1/2021 00:00:00,"P10-2021"
,"LEE VALLEY WHITE WATER CENTRE","SUPPLIES AND SERVICES","MATERIALS (CHEMICALS)","4131","P108185-SERVICE-Pump Over",12/1/2021 00:00:00,"243320",20,"IN0182","INDUSTRIAL CHEMICALS LTD",28/12/2020 00:00:00,31/1/2021 00:00:00,"P10-2021"
,"LEE VALLEY WHITE WATER CENTRE","SUPPLIES AND SERVICES","MATERIALS (CHEMICALS)","4131","P110364-SERVICE-1000L Sodium Hypo",19/1/2021 00:00:00,"243718",272.5,"IN0182","INDUSTRIAL CHEMICALS LTD",28/12/2020 00:00:00,31/1/2021 00:00:00,"P10-2021"
,"LEE VALLEY WHITE WATER CENTRE","SUPPLIES AND SERVICES","MATERIALS (CHEMICALS)","4131","P110364-SERVICE-Poly charge",19/1/2021 00:00:00,"243719",64,"IN0182","INDUSTRIAL CHEMICALS LTD",28/12/2020 00:00:00,31/1/2021 00:00:00,"P10-2021"
,"LEE VALLEY WHITE WATER CENTRE","SUPPLIES AND SERVICES","MATERIALS (CHEMICALS)","4131","P110364-SERVICE-16 units acid",19/1/2021 00:00:00,"243719",89.76,"IN0182","INDUSTRIAL CHEMICALS LTD",28/12/2020 00:00:00,31/1/2021 00:00:00,"P10-2021"
,"LEE VALLEY VELOPARK","SUPPLIES AND SERVICES","MATERIALS (MEDICAL)","4132","P110079-SERVICE-First Aid Supplies",27/1/2021 00:00:00,"243955",80.85,"FI0215","VALUE  PRODUCTS LTD",28/12/2020 00:00:00,31/1/2021 00:00:00,"P10-2021"
"P&V","LEE VALLEY FARM HOLYFIELDHALL","SUPPLIES AND SERVICES","FEED","4133","P110324-SERVICE-Maxcare Dairy",5/1/2021 00:00:00,"243187",606,"BO0246","FOR FARMERS UK LTD",28/12/2020 00:00:00,31/1/2021 00:00:00,"P10-2021"
"P&V","LEE VALLEY FARM HOLYFIELDHALL","SUPPLIES AND SERVICES","FEED","4133","P110326-SERVICE-Beef Grower/Optima/Translac/Intamix",5/1/2021 00:00:00,"243228",12137.3,"BO0246","FOR FARMERS UK LTD",28/12/2020 00:00:00,31/1/2021 00:00:00,"P10-2021"
,"LEE VALLEY FARM HAYES HILL","SUPPLIES AND SERVICES","FEED","4133","P109981-SERVICE-Frozen chicks",11/1/2021 00:00:00,"243162",11.5,"PE0253","PEREGRINE LIVEFOODS LTD",28/12/2020 00:00:00,31/1/2021 00:00:00,"P10-2021"
,"LEE VALLEY FARM HAYES HILL","SUPPLIES AND SERVICES","FEED","4133","P109981-SERVICE-Livefood",11/1/2021 00:00:00,"243162",78.6,"PE0253","PEREGRINE LIVEFOODS LTD",28/12/2020 00:00:00,31/1/2021 00:00:00,"P10-2021"
,"LEE VALLEY FARM HAYES HILL","SUPPLIES AND SERVICES","FEED","4133","P109982-SERVICE-Livefood",11/1/2021 00:00:00,"243213",61.5,"PE0253","PEREGRINE LIVEFOODS LTD",28/12/2020 00:00:00,31/1/2021 00:00:00,"P10-2021"
,"LEE VALLEY FARM HAYES HILL","SUPPLIES AND SERVICES","FEED","4133","P109984-SERVICE-Livefood",11/1/2021 00:00:00,"243238",34.6,"PE0253","PEREGRINE LIVEFOODS LTD",28/12/2020 00:00:00,31/1/2021 00:00:00,"P10-2021"
,"LEE VALLEY FARM HAYES HILL","SUPPLIES AND SERVICES","FEED","4133","P109982-SERVICE-Livefood",11/1/2021 00:00:00,"243422",18.5,"PE0253","PEREGRINE LIVEFOODS LTD",28/12/2020 00:00:00,31/1/2021 00:00:00,"P10-2021"
,"LEE VALLEY FARM HAYES HILL","SUPPLIES AND SERVICES","FEED","4133","P109979-SERVICE-Livefood",11/1/2021 00:00:00,"243422",8.45,"PE0253","PEREGRINE LIVEFOODS LTD",28/12/2020 00:00:00,31/1/2021 00:00:00,"P10-2021"
,"LEE VALLEY FARM HAYES HILL","SUPPLIES AND SERVICES","FEED","4133","P109984-SERVICE-Livefood",11/1/2021 00:00:00,"243422",40.4,"PE0253","PEREGRINE LIVEFOODS LTD",28/12/2020 00:00:00,31/1/2021 00:00:00,"P10-2021"
,"LEE VALLEY FARM HAYES HILL","SUPPLIES AND SERVICES","FEED","4133","P109981-SERVICE-Livefood",11/1/2021 00:00:00,"243422",1.4,"PE0253","PEREGRINE LIVEFOODS LTD",28/12/2020 00:00:00,31/1/2021 00:00:00,"P10-2021"
,"LEE VALLEY FARM HAYES HILL","SUPPLIES AND SERVICES","FEED","4133","P109981-SERVICE-Frozen chicks",11/1/2021 00:00:00,"243422",3.5,"PE0253","PEREGRINE LIVEFOODS LTD",28/12/2020 00:00:00,31/1/2021 00:00:00,"P10-2021"
,"LEE VALLEY FARM HAYES HILL","SUPPLIES AND SERVICES","FEED","4133","P110394-SERVICE-Goat mix x4",20/1/2021 00:00:00,"243517",39.6,"MO0003","J & M MONCUR",28/12/2020 00:00:00,31/1/2021 00:00:00,"P10-2021"
,"LEE VALLEY FARM HAYES HILL","SUPPLIES AND SERVICES","FEED","4133","P110394-SERVICE-Sow nuts x2",20/1/2021 00:00:00,"243517",15.6,"MO0003","J & M MONCUR",28/12/2020 00:00:00,31/1/2021 00:00:00,"P10-2021"
,"LEE VALLEY FARM HAYES HILL","SUPPLIES AND SERVICES","FEED","4133","P110523-SERVICE-150x straw bales",25/1/2021 00:00:00,"243635",337.5,"WI0053","J & D WILLIAMS",28/12/2020 00:00:00,31/1/2021 00:00:00,"P10-2021"
,"LEE VALLEY FARM HAYES HILL","SUPPLIES AND SERVICES","FEED","4133","P110523-SERVICE-100x hay bales",25/1/2021 00:00:00,"243635",400,"WI0053","J & D WILLIAMS",28/12/2020 00:00:00,31/1/2021 00:00:00,"P10-2021"
,"LEE VALLEY FARM HAYES HILL","SUPPLIES AND SERVICES","FEED","4133","P110475-SERVICE-Livefood order",20/1/2021 00:00:00,"243670",52.85,"PE0253","PEREGRINE LIVEFOODS LTD",28/12/2020 00:00:00,31/1/2021 00:00:00,"P10-2021"
,"LEE VALLEY FARM HAYES HILL","SUPPLIES AND SERVICES","FEED","4133","P110474-SERVICE-100 bales hay",20/1/2021 00:00:00,"243683",400,"WI0053","J & D WILLIAMS",28/12/2020 00:00:00,31/1/2021 00:00:00,"P10-2021"
,"LEE VALLEY FARM HAYES HILL","SUPPLIES AND SERVICES","FEED","4133","P110474-SERVICE-120 bales straw",20/1/2021 00:00:00,"243683",270,"WI0053","J & D WILLIAMS",28/12/2020 00:00:00,31/1/2021 00:00:00,"P10-2021"
,"LEE VALLEY FARM HAYES HILL","SUPPLIES AND SERVICES","FEED","4133","P110477-SERVICE-Livefood order",25/1/2021 00:00:00,"243887",61.5,"PE0253","PEREGRINE LIVEFOODS LTD",28/12/2020 00:00:00,31/1/2021 00:00:00,"P10-2021"
,"LEE VALLEY FARM HAYES HILL","SUPPLIES AND SERVICES","FEED","4133","P110299-SERVICE-10 bags sow pellets",25/1/2021 00:00:00,"243924",120,"TI0003","G J W TITMUSS LTD",28/12/2020 00:00:00,31/1/2021 00:00:00,"P10-2021"
,"LEE VALLEY FARM HAYES HILL","SUPPLIES AND SERVICES","FEED","4133","P110299-SERVICE-2 chinchilla",25/1/2021 00:00:00,"243924",6.08,"TI0003","G J W TITMUSS LTD",28/12/2020 00:00:00,31/1/2021 00:00:00,"P10-2021"
,"LEE VALLEY FARM HAYES HILL","SUPPLIES AND SERVICES","FEED","4133","P110299-SERVICE-10 bags layers pellets",25/1/2021 00:00:00,"243924",116.5,"TI0003","G J W TITMUSS LTD",28/12/2020 00:00:00,31/1/2021 00:00:00,"P10-2021"
,"LEE VALLEY FARM HAYES HILL","SUPPLIES AND SERVICES","FEED","4133","P110299-SERVICE-10 bags dry goat mix",25/1/2021 00:00:00,"243924",100,"TI0003","G J W TITMUSS LTD",28/12/2020 00:00:00,31/1/2021 00:00:00,"P10-2021"
,"LEE VALLEY FARM HAYES HILL","SUPPLIES AND SERVICES","FEED","4133","P110299-SERVICE-1 alpha-a original",25/1/2021 00:00:00,"243924",11.95,"TI0003","G J W TITMUSS LTD",28/12/2020 00:00:00,31/1/2021 00:00:00,"P10-2021"
,"LEE VALLEY FARM HAYES HILL","SUPPLIES AND SERVICES","FEED","4133","P110299-SERVICE-10 bags goat mix",25/1/2021 00:00:00,"243924",100,"TI0003","G J W TITMUSS LTD",28/12/2020 00:00:00,31/1/2021 00:00:00,"P10-2021"
,"LEE VALLEY FARM HAYES HILL","SUPPLIES AND SERVICES","FEED","4133","P110299-SERVICE-1 donkey diet",25/1/2021 00:00:00,"243924",10.7,"TI0003","G J W TITMUSS LTD",28/12/2020 00:00:00,31/1/2021 00:00:00,"P10-2021"
,"LEE VALLEY FARM HAYES HILL","SUPPLIES AND SERVICES","FEED","4133","P110299-SERVICE-2 mixed corn",25/1/2021 00:00:00,"243924",13,"TI0003","G J W TITMUSS LTD",28/12/2020 00:00:00,31/1/2021 00:00:00,"P10-2021"
,"LEE VALLEY FARM HAYES HILL","SUPPLIES AND SERVICES","FEED","4133","P110299-SERVICE-1 gerbil",25/1/2021 00:00:00,"243924",2.4,"TI0003","G J W TITMUSS LTD",28/12/2020 00:00:00,31/1/2021 00:00:00,"P10-2021"
,"LEE VALLEY FARM HAYES HILL","SUPPLIES AND SERVICES","FEED","4133","P110299-SERVICE-4 bales sawdust",25/1/2021 00:00:00,"243924",25,"TI0003","G J W TITMUSS LTD",28/12/2020 00:00:00,31/1/2021 00:00:00,"P10-2021"
,"LEE VALLEY FARM HAYES HILL","SUPPLIES AND SERVICES","FEED","4133","P110299-SERVICE-1 l-mix",25/1/2021 00:00:00,"243924",11.62,"TI0003","G J W TITMUSS LTD",28/12/2020 00:00:00,31/1/2021 00:00:00,"P10-2021"
,"LEE VALLEY FARM HAYES HILL","SUPPLIES AND SERVICES","FEED","4133","P110554-SERVICE-Livefood",31/1/2021 00:00:00,"244001",62.5,"PE0253","PEREGRINE LIVEFOODS LTD",28/12/2020 00:00:00,31/1/2021 00:00:00,"P10-2021"
,"LEE VALLEY RIDING CENTRE","SUPPLIES AND SERVICES","FEED","4133","P110354-SERVICE-feed",11/1/2021 00:00:00,"242785",1971.82,"DO0029","M C DOWLING & SONS",28/12/2020 00:00:00,31/1/2021 00:00:00,"P10-2021"
,"LEE VALLEY RIDING CENTRE","SUPPLIES AND SERVICES","FEED","4133","P110354-SERVICE-feed",11/1/2021 00:00:00,"243174",150.9,"DO0029","M C DOWLING & SONS",28/12/2020 00:00:00,31/1/2021 00:00:00,"P10-2021"
,"LEE VALLEY RIDING CENTRE","SUPPLIES AND SERVICES","FEED","4133","P110354-SERVICE-feed",11/1/2021 00:00:00,"243270",1505.4,"DO0029","M C DOWLING & SONS",28/12/2020 00:00:00,31/1/2021 00:00:00,"P10-2021"
,"LEE VALLEY RIDING CENTRE","SUPPLIES AND SERVICES","FEED","4133","P110354-SERVICE-feed",11/1/2021 00:00:00,"243455",1259.9,"DO0029","M C DOWLING & SONS",28/12/2020 00:00:00,31/1/2021 00:00:00,"P10-2021"
,"LEE VALLEY RIDING CENTRE","SUPPLIES AND SERVICES","FEED","4133","P110354-SERVICE-feed",19/1/2021 00:00:00,"243519",111.98,"DO0029","M C DOWLING & SONS",28/12/2020 00:00:00,31/1/2021 00:00:00,"P10-2021"
,"LEE VALLEY RIDING CENTRE","SUPPLIES AND SERVICES","FEED","4133","P110620-SERVICE-feed",31/1/2021 00:00:00,"243727",2113.55,"DO0029","M C DOWLING & SONS",28/12/2020 00:00:00,31/1/2021 00:00:00,"P10-2021"
,"LEE VALLEY RIDING CENTRE","SUPPLIES AND SERVICES","FEED","4133","P110620-SERVICE-feed",31/1/2021 00:00:00,"244143",915.4,"DO0029","M C DOWLING & SONS",28/12/2020 00:00:00,31/1/2021 00:00:00,"P10-2021"
,"LEE VALLEY RIDING CENTRE","SUPPLIES AND SERVICES","BEDDING","4134","P110066-SERVICE-bedding",4/1/2021 00:00:00,"242735",677.75,"DO0029","M C DOWLING & SONS",28/12/2020 00:00:00,31/1/2021 00:00:00,"P10-2021"
,"LEE VALLEY RIDING CENTRE","SUPPLIES AND SERVICES","BEDDING","4134","P110354-SERVICE-bedding",11/1/2021 00:00:00,"243174",1890,"DO0029","M C DOWLING & SONS",28/12/2020 00:00:00,31/1/2021 00:00:00,"P10-2021"
,"LEE VALLEY RIDING CENTRE","SUPPLIES AND SERVICES","BEDDING","4134","P110066-SERVICE-bedding",4/1/2021 00:00:00,"243175",1505.4,"DO0029","M C DOWLING & SONS",28/12/2020 00:00:00,31/1/2021 00:00:00,"P10-2021"
,"LEE VALLEY RIDING CENTRE","SUPPLIES AND SERVICES","BEDDING","4134","P110354-SERVICE-bedding",19/1/2021 00:00:00,"243519",1023.22,"DO0029","M C DOWLING & SONS",28/12/2020 00:00:00,31/1/2021 00:00:00,"P10-2021"
,"LEE VALLEY RIDING CENTRE","SUPPLIES AND SERVICES","BEDDING","4134","P110354-SERVICE-bedding",19/1/2021 00:00:00,"243650",1043.45,"DO0029","M C DOWLING & SONS",28/12/2020 00:00:00,31/1/2021 00:00:00,"P10-2021"
,"LEE VALLEY RIDING CENTRE","SUPPLIES AND SERVICES","BEDDING","4134","P110620-SERVICE-bedding",31/1/2021 00:00:00,"243726",4032,"DO0029","M C DOWLING & SONS",28/12/2020 00:00:00,31/1/2021 00:00:00,"P10-2021"
,"LEE VALLEY RIDING CENTRE","SUPPLIES AND SERVICES","BEDDING","4134","M C DOWLING & SONS",19/1/2021 00:00:00,"243728",-613,"DO0029","M C DOWLING & SONS",28/12/2020 00:00:00,31/1/2021 00:00:00,"P10-2021"
,"LEE VALLEY RIDING CENTRE","SUPPLIES AND SERVICES","BEDDING","4134","M C DOWLING & SONS",19/1/2021 00:00:00,"243728",87.5,"DO0029","M C DOWLING & SONS",28/12/2020 00:00:00,31/1/2021 00:00:00,"P10-2021"
,"LEE VALLEY RIDING CENTRE","SUPPLIES AND SERVICES","BEDDING","4134","M C DOWLING & SONS",19/1/2021 00:00:00,"243728",525.5,"DO0029","M C DOWLING & SONS",28/12/2020 00:00:00,31/1/2021 00:00:00,"P10-2021"
,"LEE VALLEY RIDING CENTRE","SUPPLIES AND SERVICES","BEDDING","4134","P110354-SERVICE-bedding",19/1/2021 00:00:00,"243728",613,"DO0029","M C DOWLING & SONS",28/12/2020 00:00:00,31/1/2021 00:00:00,"P10-2021"
,"LEE VALLEY RIDING CENTRE","SUPPLIES AND SERVICES","BEDDING","4134","P110620-SERVICE-bedding",31/1/2021 00:00:00,"244143",968,"DO0029","M C DOWLING & SONS",28/12/2020 00:00:00,31/1/2021 00:00:00,"P10-2021"
"P&V","LEE VALLEY FARM HOLYFIELDHALL","SUPPLIES AND SERVICES","DAIRY SUNDRIES","4138","P110325-SERVICE-Beeline Materials/Labour",5/1/2021 00:00:00,"243223",879.95,"MI0023","MILL DAIRY SERVICES",28/12/2020 00:00:00,31/1/2021 00:00:00,"P10-2021"
"P&V","LEE VALLEY FARM HOLYFIELDHALL","SUPPLIES AND SERVICES","DAIRY SUNDRIES","4138","P110260-SERVICE-200 Ear Tags",12/1/2021 00:00:00,"243322",300.2,"SH0440","SHEARWELL DATA LIMITED",28/12/2020 00:00:00,31/1/2021 00:00:00,"P10-2021"
"P&V","LEE VALLEY FARM HOLYFIELDHALL","SUPPLIES AND SERVICES","DAIRY SUNDRIES","4138","P109586-SERVICE-Dairy Sundries",19/1/2021 00:00:00,"243534",39.4,"MI0023","MILL DAIRY SERVICES",28/12/2020 00:00:00,31/1/2021 00:00:00,"P10-2021"
"P&V","LEE VALLEY FARM HOLYFIELDHALL","SUPPLIES AND SERVICES","DAIRY SUNDRIES","4138","P109342-SERVICE-Dead Animal Removal",19/1/2021 00:00:00,"243703",48,"MA0074","W MARTIN & SON LIMITED",28/12/2020 00:00:00,31/1/2021 00:00:00,"P10-2021"
"P&V","LEE VALLEY FARM HOLYFIELDHALL","SUPPLIES AND SERVICES","DAIRY SUNDRIES","4138","P107858-SERVICE-Slurry Machine Spares",19/1/2021 00:00:00,"243709",108.75,"ST0237","STORTH LTD",28/12/2020 00:00:00,31/1/2021 00:00:00,"P10-2021"
"P&V","LEE VALLEY FARM HOLYFIELDHALL","SUPPLIES AND SERVICES","DAIRY SUNDRIES","4138","P110582-SERVICE-Dead Animal Removal",26/1/2021 00:00:00,"243933",140,"MA0074","W MARTIN & SON LIMITED",28/12/2020 00:00:00,31/1/2021 00:00:00,"P10-2021"
"P&V","SOUTH AREA RANGERS","SUPPLIES AND SERVICES","CLOTHING & UNIFORMS","4225","P110349-SERVICE-10x Cotton Lined Gloves XL",6/1/2021 00:00:00,"243307",6,"PA0342","PMTECH (ANGLIA LIMITED)",28/12/2020 00:00:00,31/1/2021 00:00:00,"P10-2021"
"P&V","SOUTH AREA RANGERS","SUPPLIES AND SERVICES","CLOTHING & UNIFORMS","4225","P110349-SERVICE-Delivery - Gloves",6/1/2021 00:00:00,"243307",8.5,"PA0342","PMTECH (ANGLIA LIMITED)",28/12/2020 00:00:00,31/1/2021 00:00:00,"P10-2021"
"P&V","SOUTH AREA RANGERS","SUPPLIES AND SERVICES","CLOTHING & UNIFORMS","4225","PMTECH (ANGLIA LIMITED)",11/1/2021 00:00:00,"243463",0,"PA0342","PMTECH (ANGLIA LIMITED)",28/12/2020 00:00:00,31/1/2021 00:00:00,"P10-2021"
"P&V","RIVER LEE COUNTRY PARK","SUPPLIES AND SERVICES","CLOTHING & UNIFORMS","4225","P109244-SERVICE-4x Peru Trousers - 14390",6/1/2021 00:00:00,"243310",36,"IL0177","KEELA INTERNATION LTD",28/12/2020 00:00:00,31/1/2021 00:00:00,"P10-2021"
"P&V","RIVER LEE COUNTRY PARK","SUPPLIES AND SERVICES","CLOTHING & UNIFORMS","4225","P109244-SERVICE-Delivery",6/1/2021 00:00:00,"243310",6.5,"IL0177","KEELA INTERNATION LTD",28/12/2020 00:00:00,31/1/2021 00:00:00,"P10-2021"
"P&V","VOLUNTEERS (L&E)","SUPPLIES AND SERVICES","CLOTHING & UNIFORMS","4225","P110017-SERVICE-50 x Glove Keepsafe Canadian Rigger Chrome Sp",12/1/2021 00:00:00,"243449",123,"GR0020","GREENHAM TRADING LIMITED",28/12/2020 00:00:00,31/1/2021 00:00:00,"P10-2021"
,"LEE VALLEY MARINA SPRINGFIELD","SUPPLIES AND SERVICES","OFFICE EXPENSES","4311","P109551-SERVICE-Removable peelable labels",18/1/2021 00:00:00,"243721",28,"TH0008","JKL SOLUTIONS LTD",28/12/2020 00:00:00,31/1/2021 00:00:00,"P10-2021"
,"LEE VALLEY MARINA SPRINGFIELD","SUPPLIES AND SERVICES","OFFICE EXPENSES","4311","P110183-SERVICE-to supply items as requested",18/1/2021 00:00:00,"243722",81.92,"TH0008","JKL SOLUTIONS LTD",28/12/2020 00:00:00,31/1/2021 00:00:00,"P10-2021"
"P&V","RIVER LEE COUNTRY PARK","SUPPLIES AND SERVICES","OFFICE EXPENSES","4311","P110487-SERVICE-1x Year Planner 2021 - SY60496",27/1/2021 00:00:00,"243874",14.05,"TH0008","JKL SOLUTIONS LTD",28/12/2020 00:00:00,31/1/2021 00:00:00,"P10-2021"
"R&B","INFORMATION TECHNOLOGY","SUPPLIES AND SERVICES","PHOTOCOPYING","4314","KONICA MINOLTA BUSINESS SOLUTI",27/1/2021 00:00:00,"242013",42.49,"KO0071","KONICA MINOLTA BUSINESS SOLUTIONS ( UK) LTD",28/12/2020 00:00:00,31/1/2021 00:00:00,"P10-2021"
"R&B","INFORMATION TECHNOLOGY","SUPPLIES AND SERVICES","PHOTOCOPYING","4314","KONICA MINOLTA BUSINESS SOLUTI",19/1/2021 00:00:00,"243647",144.78,"KO0071","KONICA MINOLTA BUSINESS SOLUTIONS ( UK) LTD",28/12/2020 00:00:00,31/1/2021 00:00:00,"P10-2021"
"R&B","INFORMATION TECHNOLOGY","SUPPLIES AND SERVICES","PHOTOCOPYING","4314","KONICA MINOLTA BUSINESS SOLUTI",19/1/2021 00:00:00,"243741",459.6,"KO0071","KONICA MINOLTA BUSINESS SOLUTIONS ( UK) LTD",28/12/2020 00:00:00,31/1/2021 00:00:00,"P10-2021"
"CEO","CHIEF EXECUTIVE","SUPPLIES AND SERVICES","SUBSCRIPTIONS","4334","P110530-SERVICE-Membership Fee 2021",25/1/2021 00:00:00,"243888",336.23,"IN0192","INTERNATIONAL ASSOCIATION FOR SPORTS",28/12/2020 00:00:00,31/1/2021 00:00:00,"P10-2021"
"P&V","LEE VALLEY FARM HOLYFIELDHALL","SUPPLIES AND SERVICES","SUBSCRIPTIONS","4334","P110583-SERVICE-Subscription",26/1/2021 00:00:00,"243706",338.54,"NA0005","NATIONAL MILK RECORDS PLC",28/12/2020 00:00:00,31/1/2021 00:00:00,"P10-2021"
,"LEE VALLEY FARM HAYES HILL","SUPPLIES AND SERVICES","SUBSCRIPTIONS","4334","P110295-SERVICE-2021 Membership subscription",12/1/2021 00:00:00,"243473",137.5,"NA0121","NFAN ( NATIONAL FARM ATTRTACTIONS NETWORK)",28/12/2020 00:00:00,31/1/2021 00:00:00,"P10-2021"
"R&B","REVENUE SUSPENSE (AUTHORITY)","SUPPLIES AND SERVICES","TELEPHONES (MOBILE)","4484","VODAFONE  LIMITED (CORPORATE)",11/1/2021 00:00:00,"243234",570.51,"VO0010","VODAFONE  LIMITED (CORPORATE)",28/12/2020 00:00:00,31/1/2021 00:00:00,"P10-2021"
"R&B","REVENUE SUSPENSE (AUTHORITY)","SUPPLIES AND SERVICES","TELEPHONES (MOBILE)","4484","VODAFONE  LIMITED (CORPORATE)",31/1/2021 00:00:00,"243954",556.53,"VO0010","VODAFONE  LIMITED (CORPORATE)",28/12/2020 00:00:00,31/1/2021 00:00:00,"P10-2021"
"P&V","FISHERIES MANAGEMENT","SUPPLIES AND SERVICES","MARKETING","4603","P107479-SERVICE-Portacabin Cleaning",11/1/2021 00:00:00,"243423",337.5,"GA0431","GARDENS MADE SIMPLE",28/12/2020 00:00:00,31/1/2021 00:00:00,"P10-2021"
,"LEE VALLEY CAMPSITE","SUPPLIES AND SERVICES","MARKETING","4603","P109544-SERVICE-Alan rogers travel",11/1/2021 00:00:00,"243282",125,"AL0030","ALAN ROGERS TRAVEL LTD",28/12/2020 00:00:00,31/1/2021 00:00:00,"P10-2021"
,"LEE VALLEY CAMPSITE","SUPPLIES AND SERVICES","MARKETING","4603","P110432-SERVICE-Advertising",18/1/2021 00:00:00,"243549",109.23,"NE0195","NEDCAMP",28/12/2020 00:00:00,31/1/2021 00:00:00,"P10-2021"
,"LEE VALLEY CARAVAN PARK","SUPPLIES AND SERVICES","MARKETING","4603","P109616-SERVICE-Alan Rodgers Travil group",11/1/2021 00:00:00,"243282",150,"AL0030","ALAN ROGERS TRAVEL LTD",28/12/2020 00:00:00,31/1/2021 00:00:00,"P10-2021"
"P&V","ALMOST WILD CAMPSITE","SUPPLIES AND SERVICES","MARKETING","4603","P109546-SERVICE-Marketing Advert",11/1/2021 00:00:00,"243282",125,"AL0030","ALAN ROGERS TRAVEL LTD",28/12/2020 00:00:00,31/1/2021 00:00:00,"P10-2021"
,"LV LEISURE CENTRE CAMPSITE","SUPPLIES AND SERVICES","MARKETING","4603","P109542-SERVICE-Marketing",11/1/2021 00:00:00,"243282",125,"AL0030","ALAN ROGERS TRAVEL LTD",28/12/2020 00:00:00,31/1/2021 00:00:00,"P10-2021"
,"LEE VALLEY FARM HAYES HILL","SUPPLIES AND SERVICES","PEST CONTROL","4625","P110476-SERVICE-Ecoguard pest control contract- first quarter",20/1/2021 00:00:00,"243514",234,"EC0330","ECOGUARD PEST SOLUTIONS LTD",28/12/2020 00:00:00,31/1/2021 00:00:00,"P10-2021"
"P&V","NORTH AREA RANGERS","SUPPLIES AND SERVICES","PEST CONTROL","4625","P107709-SERVICE-Pest Control - Ware Town Centre",18/1/2021 00:00:00,"243523",53.34,"VE0006","VERMINATE CITY & RURAL PEST CONTROL LTD",28/12/2020 00:00:00,31/1/2021 00:00:00,"P10-2021"
"P&V","NORTH AREA RANGERS","SUPPLIES AND SERVICES","PEST CONTROL","4625","P107159-SERVICE-Pest Control - North Sites",18/1/2021 00:00:00,"243525",200,"VE0006","VERMINATE CITY & RURAL PEST CONTROL LTD",28/12/2020 00:00:00,31/1/2021 00:00:00,"P10-2021"
"P&V","NORTH AREA RANGERS","SUPPLIES AND SERVICES","PEST CONTROL","4625","P107709-SERVICE-Pest Control - Ware Town Centre",31/1/2021 00:00:00,"244015",53.34,"VE0006","VERMINATE CITY & RURAL PEST CONTROL LTD",28/12/2020 00:00:00,31/1/2021 00:00:00,"P10-2021"
"P&V","NORTH AREA RANGERS","SUPPLIES AND SERVICES","PEST CONTROL","4625","P107159-SERVICE-Pest Control - North Sites",31/1/2021 00:00:00,"244018",200,"VE0006","VERMINATE CITY & RURAL PEST CONTROL LTD",28/12/2020 00:00:00,31/1/2021 00:00:00,"P10-2021"
"P&V","SOUTH AREA RANGERS","SUPPLIES AND SERVICES","PEST CONTROL","4625","P107158-SERVICE-Pest Control - Tottenham Marshes",18/1/2021 00:00:00,"243524",46.67,"VE0006","VERMINATE CITY & RURAL PEST CONTROL LTD",28/12/2020 00:00:00,31/1/2021 00:00:00,"P10-2021"
"P&V","SOUTH AREA RANGERS","SUPPLIES AND SERVICES","PEST CONTROL","4625","P107158-SERVICE-Pest Control - Tottenham Marshes",31/1/2021 00:00:00,"244014",46.67,"VE0006","VERMINATE CITY & RURAL PEST CONTROL LTD",28/12/2020 00:00:00,31/1/2021 00:00:00,"P10-2021"
,"LEE VALLEY WHITE WATER CENTRE","SUPPLIES AND SERVICES","PEST CONTROL","4625","P110359-SERVICE-WWC Pest control 2010/21 - 19/4/21",11/1/2021 00:00:00,"243272",751.62,"RE0014","RENTOKIL INITIAL PEST CONTROL",28/12/2020 00:00:00,31/1/2021 00:00:00,"P10-2021"
,"LEE VALLEY MARINA SPRINGFIELD","SUPPLIES AND SERVICES","MERCHANT PROCESSING CHARGES","4641","WORLDPAY",4/1/2021 00:00:00,"242980",100,"WO0338","WORLDPAY",28/12/2020 00:00:00,31/1/2021 00:00:00,"P10-2021"
,"LEE VALLEY MARINA SPRINGFIELD","SUPPLIES AND SERVICES","MERCHANT PROCESSING CHARGES","4641","WORLDPAY",11/1/2021 00:00:00,"243269",15,"WO0338","WORLDPAY",28/12/2020 00:00:00,31/1/2021 00:00:00,"P10-2021"
,"LEE VALLEY MARINA STANSTEAD","SUPPLIES AND SERVICES","MERCHANT PROCESSING CHARGES","4641","WORLDPAY",4/1/2021 00:00:00,"242980",100,"WO0338","WORLDPAY",28/12/2020 00:00:00,31/1/2021 00:00:00,"P10-2021"
,"LEE VALLEY MARINA STANSTEAD","SUPPLIES AND SERVICES","MERCHANT PROCESSING CHARGES","4641","WORLDPAY",11/1/2021 00:00:00,"243269",15,"WO0338","WORLDPAY",28/12/2020 00:00:00,31/1/2021 00:00:00,"P10-2021"
"P&V","NORTH AREA RANGERS","SUPPLIES AND SERVICES","SECURITY","4650","P107669-SERVICE-Security - North of the Park",5/1/2021 00:00:00,"243160",4299.69,"PA0059","PARKGUARD LTD",28/12/2020 00:00:00,31/1/2021 00:00:00,"P10-2021"
"P&V","SOUTH AREA RANGERS","SUPPLIES AND SERVICES","SECURITY","4650","P107671-SERVICE-Security - South of the Park",4/1/2021 00:00:00,"243159",6356,"PA0059","PARKGUARD LTD",28/12/2020 00:00:00,31/1/2021 00:00:00,"P10-2021"
"P&V","SOUTH AREA RANGERS","SUPPLIES AND SERVICES","SECURITY","4650","P108499-SERVICE-50x Staff Warrant Cards + PVC Wallets",18/1/2021 00:00:00,"243424",247.5,"ED0343","THE EDGE (SYSTEMS) LTD",28/12/2020 00:00:00,31/1/2021 00:00:00,"P10-2021"
"P&V","ABBEY GARDENS","SUPPLIES AND SERVICES","SECURITY","4650","P110271-SERVICE-Repair Height Barrier at Cornmill Meadows",31/1/2021 00:00:00,"243979",350,"LW0268","LWC ENGINEERING LIMITED",28/12/2020 00:00:00,31/1/2021 00:00:00,"P10-2021"
"P&V","THREE MILLS","SUPPLIES AND SERVICES","SECURITY","4650","P107671-SERVICE-Security - South of the Park",4/1/2021 00:00:00,"243159",1525.9,"PA0059","PARKGUARD LTD",28/12/2020 00:00:00,31/1/2021 00:00:00,"P10-2021"
,"LEE VALLEY ICE CENTRE","SUPPLIES AND SERVICES","SECURITY","4650","P110311-SERVICE-Intruder Alarm",4/1/2021 00:00:00,"243186",369.48,"CH0088","CHUBB FIRE & SECURITY",28/12/2020 00:00:00,31/1/2021 00:00:00,"P10-2021"
"CEO","PR/COMMUNICATIONS","SUPPLIES AND SERVICES","SPECIAL MARKETING PROJECTS","4652","P110179-SERVICE-To produce banner from artwork supplied with",4/1/2021 00:00:00,"242996",29.65,"MA0167","MARTIN DANNELL & CO LTD",28/12/2020 00:00:00,31/1/2021 00:00:00,"P10-2021"
"CEO","PR/COMMUNICATIONS","SUPPLIES AND SERVICES","MEDIA MONITORING","4660","P110511-SERVICE-12 month subscription to media clip monitorin",20/1/2021 00:00:00,"243652",9500,"GO0202","CISION (formerly Gorkana Group)",28/12/2020 00:00:00,31/1/2021 00:00:00,"P10-2021"
"R&B","PERFORMANCE MANAGEMENT","SUPPLIES AND SERVICES","OFFSITE ARCHIVED STORAGE","4667","P110423-SERVICE-Off Site archiving Dec 2020",18/1/2021 00:00:00,"243486",292.53,"DA0154","RESTORE PLC",28/12/2020 00:00:00,31/1/2021 00:00:00,"P10-2021"
,"LEE VALLEY WHITE WATER CENTRE","SUPPLIES AND SERVICES","ENTERTAINMENT & OTHER LICENCES","4711","P110454-SERVICE-TV licence November 2020",19/1/2021 00:00:00,"243680",157.5,"TV0065","TV LICENSING",28/12/2020 00:00:00,31/1/2021 00:00:00,"P10-2021"
,"LEE VALLEY FARM HAYES HILL","THIRD PARTY PAYMENTS","VETERINARY SERVICES","4718","P110224-SERVICE-Accomodation and mileage",11/1/2021 00:00:00,"242796",190.03,"CH0262","CHAPMAN ZOO CONSULTANCY",28/12/2020 00:00:00,31/1/2021 00:00:00,"P10-2021"
,"LEE VALLEY FARM HAYES HILL","THIRD PARTY PAYMENTS","VETERINARY SERVICES","4718","P110224-SERVICE-Zoo consultancy visit",11/1/2021 00:00:00,"242796",650,"CH0262","CHAPMAN ZOO CONSULTANCY",28/12/2020 00:00:00,31/1/2021 00:00:00,"P10-2021"
,"LEE VALLEY FARM HAYES HILL","THIRD PARTY PAYMENTS","VETERINARY SERVICES","4718","P110224-SERVICE-Document prep 8 hours",11/1/2021 00:00:00,"242796",480,"CH0262","CHAPMAN ZOO CONSULTANCY",28/12/2020 00:00:00,31/1/2021 00:00:00,"P10-2021"
,"LEE VALLEY FARM HAYES HILL","THIRD PARTY PAYMENTS","VETERINARY SERVICES","4718","P110294-SERVICE-Guinness pick up and cremation",12/1/2021 00:00:00,"243215",395,"HO0033","HOLTS ABATTOIR LTD",28/12/2020 00:00:00,31/1/2021 00:00:00,"P10-2021"
,"LEE VALLEY FARM HAYES HILL","THIRD PARTY PAYMENTS","VETERINARY SERVICES","4718","P110393-SERVICE-23rd December",12/1/2021 00:00:00,"243288",180.04,"RO0188","ROSSDALES HERTFORDSHIRE",28/12/2020 00:00:00,31/1/2021 00:00:00,"P10-2021"
,"LEE VALLEY FARM HAYES HILL","THIRD PARTY PAYMENTS","VETERINARY SERVICES","4718","P110393-SERVICE-24th December (2)",12/1/2021 00:00:00,"243289",186.87,"RO0188","ROSSDALES HERTFORDSHIRE",28/12/2020 00:00:00,31/1/2021 00:00:00,"P10-2021"
,"LEE VALLEY FARM HAYES HILL","THIRD PARTY PAYMENTS","VETERINARY SERVICES","4718","P110393-SERVICE-24th December (1)",12/1/2021 00:00:00,"243290",169.49,"RO0188","ROSSDALES HERTFORDSHIRE",28/12/2020 00:00:00,31/1/2021 00:00:00,"P10-2021"
,"LEE VALLEY FARM HAYES HILL","THIRD PARTY PAYMENTS","VETERINARY SERVICES","4718","P110553-SERVICE-December lab tests x7",31/1/2021 00:00:00,"243990",304,"PI0397","PINMOORE ANIMAL LABORATORY SERVICES LTD",28/12/2020 00:00:00,31/1/2021 00:00:00,"P10-2021"
,"LEE VALLEY RIDING CENTRE","THIRD PARTY PAYMENTS","VETERINARY SERVICES","4718","P110374-SERVICE-disposal of Snowy",11/1/2021 00:00:00,"243425",360,"HO0033","HOLTS ABATTOIR LTD",28/12/2020 00:00:00,31/1/2021 00:00:00,"P10-2021"
,"LEE VALLEY RIDING CENTRE","THIRD PARTY PAYMENTS","VETERINARY SERVICES","4718","P107321-SERVICE-Veterinary services 2020",19/1/2021 00:00:00,"243664",70.71,"BA0566","BALLINGER EQUINE LTD",28/12/2020 00:00:00,31/1/2021 00:00:00,"P10-2021"
,"LEE VALLEY RIDING CENTRE","THIRD PARTY PAYMENTS","VETERINARY SERVICES","4718","P107321-SERVICE-Veterinary services 2020",19/1/2021 00:00:00,"243665",358.8,"BA0566","BALLINGER EQUINE LTD",28/12/2020 00:00:00,31/1/2021 00:00:00,"P10-2021"
,"LEE VALLEY RIDING CENTRE","THIRD PARTY PAYMENTS","VETERINARY SERVICES","4718","P107321-SERVICE-Veterinary services 2020",19/1/2021 00:00:00,"243666",253.41,"BA0566","BALLINGER EQUINE LTD",28/12/2020 00:00:00,31/1/2021 00:00:00,"P10-2021"
,"LEE VALLEY RIDING CENTRE","THIRD PARTY PAYMENTS","VETERINARY SERVICES","4718","P107321-SERVICE-Veterinary services 2020",19/1/2021 00:00:00,"243667",142.48,"BA0566","BALLINGER EQUINE LTD",28/12/2020 00:00:00,31/1/2021 00:00:00,"P10-2021"
,"LEE VALLEY RIDING CENTRE","THIRD PARTY PAYMENTS","VETERINARY SERVICES","4718","P107321-SERVICE-Veterinary services 2020",31/1/2021 00:00:00,"243959",182.02,"BA0566","BALLINGER EQUINE LTD",28/12/2020 00:00:00,31/1/2021 00:00:00,"P10-2021"
,"LEE VALLEY RIDING CENTRE","THIRD PARTY PAYMENTS","VETERINARY SERVICES","4718","P107321-SERVICE-Veterinary services 2020",31/1/2021 00:00:00,"243960",329.41,"BA0566","BALLINGER EQUINE LTD",28/12/2020 00:00:00,31/1/2021 00:00:00,"P10-2021"
,"LEE VALLEY RIDING CENTRE","THIRD PARTY PAYMENTS","VETERINARY SERVICES","4718","P107321-SERVICE-Veterinary services 2020",31/1/2021 00:00:00,"243961",236.67,"BA0566","BALLINGER EQUINE LTD",28/12/2020 00:00:00,31/1/2021 00:00:00,"P10-2021"
,"LEE VALLEY RIDING CENTRE","THIRD PARTY PAYMENTS","VETERINARY SERVICES","4718","P110659-SERVICE-Vet services Jan - M ar 2021",31/1/2021 00:00:00,"243962",236.67,"BA0566","BALLINGER EQUINE LTD",28/12/2020 00:00:00,31/1/2021 00:00:00,"P10-2021"
,"LEE VALLEY RIDING CENTRE","THIRD PARTY PAYMENTS","VETERINARY SERVICES","4718","P107321-SERVICE-Veterinary services 2020",31/1/2021 00:00:00,"243963",153.19,"BA0566","BALLINGER EQUINE LTD",28/12/2020 00:00:00,31/1/2021 00:00:00,"P10-2021"
,"LEE VALLEY RIDING CENTRE","THIRD PARTY PAYMENTS","VETERINARY SERVICES","4718","P107321-SERVICE-Veterinary services 2020",31/1/2021 00:00:00,"243964",196.93,"BA0566","BALLINGER EQUINE LTD",28/12/2020 00:00:00,31/1/2021 00:00:00,"P10-2021"
,"LEE VALLEY RIDING CENTRE","THIRD PARTY PAYMENTS","VETERINARY SERVICES","4718","P107321-SERVICE-Veterinary services 2020",31/1/2021 00:00:00,"243965",233.57,"BA0566","BALLINGER EQUINE LTD",28/12/2020 00:00:00,31/1/2021 00:00:00,"P10-2021"
,"LEE VALLEY RIDING CENTRE","THIRD PARTY PAYMENTS","VETERINARY SERVICES","4718","P110659-SERVICE-Vet services Jan - M ar 2021",31/1/2021 00:00:00,"243966",696.11,"BA0566","BALLINGER EQUINE LTD",28/12/2020 00:00:00,31/1/2021 00:00:00,"P10-2021"
,"LEE VALLEY RIDING CENTRE","THIRD PARTY PAYMENTS","VETERINARY SERVICES","4718","P110659-SERVICE-Vet services Jan - M ar 2021",31/1/2021 00:00:00,"243967",372.12,"BA0566","BALLINGER EQUINE LTD",28/12/2020 00:00:00,31/1/2021 00:00:00,"P10-2021"
,"LEE VALLEY RIDING CENTRE","THIRD PARTY PAYMENTS","VETERINARY SERVICES","4718","P110659-SERVICE-Vet services Jan - M ar 2021",31/1/2021 00:00:00,"243968",406.74,"BA0566","BALLINGER EQUINE LTD",28/12/2020 00:00:00,31/1/2021 00:00:00,"P10-2021"
,"LEE VALLEY RIDING CENTRE","THIRD PARTY PAYMENTS","VETERINARY SERVICES","4718","P110659-SERVICE-Vet services Jan - M ar 2021",31/1/2021 00:00:00,"243969",546.06,"BA0566","BALLINGER EQUINE LTD",28/12/2020 00:00:00,31/1/2021 00:00:00,"P10-2021"
,"LEE VALLEY RIDING CENTRE","THIRD PARTY PAYMENTS","VETERINARY SERVICES","4718","P107321-SERVICE-Veterinary services 2020",31/1/2021 00:00:00,"243970",190.82,"BA0566","BALLINGER EQUINE LTD",28/12/2020 00:00:00,31/1/2021 00:00:00,"P10-2021"
,"LEE VALLEY RIDING CENTRE","THIRD PARTY PAYMENTS","VETERINARY SERVICES","4718","P110659-SERVICE-Vet services Jan - M ar 2021",31/1/2021 00:00:00,"243971",283.4,"BA0566","BALLINGER EQUINE LTD",28/12/2020 00:00:00,31/1/2021 00:00:00,"P10-2021"
,"LEE VALLEY RIDING CENTRE","THIRD PARTY PAYMENTS","VETERINARY SERVICES","4718","P107321-SERVICE-Veterinary services 2020",31/1/2021 00:00:00,"243972",132.16,"BA0566","BALLINGER EQUINE LTD",28/12/2020 00:00:00,31/1/2021 00:00:00,"P10-2021"
,"LEE VALLEY VELOPARK","SUPPLIES AND SERVICES","EVENTS","4724","P110019-SERVICE-Track Paints x5",19/1/2021 00:00:00,"243512",5750,"LI0343","LINEMARK (UK) LTD-HD SIGNOLOGY",28/12/2020 00:00:00,31/1/2021 00:00:00,"P10-2021"
"P&V","YOUTH AND SCHOOLS","SUPPLIES AND SERVICES","ACTIVITIES (SCHOOLS)","4725","P110155-SERVICE-IOL membership - Simon Hunt",27/1/2021 00:00:00,"243906",68,"IN0090","INSTITUTE FOR OUTDOOR LEARNING",28/12/2020 00:00:00,31/1/2021 00:00:00,"P10-2021"
"P&V","FISHERIES MANAGEMENT","SUPPLIES AND SERVICES","FISHERIES (MATERIALS)","4803","P107792-SERVICE-Blanket Order",4/1/2021 00:00:00,"243274",71.5,"JW0004","J & W FENCING LIMITED",28/12/2020 00:00:00,31/1/2021 00:00:00,"P10-2021"
,"LEE VALLEY MARINA SPRINGFIELD","SUPPLIES AND SERVICES","TRADING AC - EXTERNAL PURCHASE","4875","P110126-SERVICE-Chandlery Stock  WSO0214764",4/1/2021 00:00:00,"243204",-8.28,"CE0510","CENTURION EUROPE LIMITED",28/12/2020 00:00:00,31/1/2021 00:00:00,"P10-2021"
,"LEE VALLEY MARINA SPRINGFIELD","SUPPLIES AND SERVICES","TRADING AC - EXTERNAL PURCHASE","4875","P109726-SERVICE-Chandlery Stock  64533",5/1/2021 00:00:00,"243273",6.77,"AS0036","ASAP SUPPLIES",28/12/2020 00:00:00,31/1/2021 00:00:00,"P10-2021"
,"LEE VALLEY MARINA SPRINGFIELD","SUPPLIES AND SERVICES","TRADING AC - EXTERNAL PURCHASE","4875","P110332-SERVICE-Chandlery Stock",11/1/2021 00:00:00,"243440",196.49,"AQ0033","AQUAFAX LIMITED",28/12/2020 00:00:00,31/1/2021 00:00:00,"P10-2021"
,"LEE VALLEY MARINA SPRINGFIELD","SUPPLIES AND SERVICES","TRADING AC - EXTERNAL PURCHASE","4875","P110126-SERVICE-Chandlery Stock  WSO0214764",13/1/2021 00:00:00,"243453",8.28,"CE0510","CENTURION EUROPE LIMITED",28/12/2020 00:00:00,31/1/2021 00:00:00,"P10-2021"
,"LEE VALLEY MARINA SPRINGFIELD","SUPPLIES AND SERVICES","TRADING AC - EXTERNAL PURCHASE","4875","P110350-SERVICE-Chandlery Stock  642059",11/1/2021 00:00:00,"243481",456.13,"MI0200","MIDLAND CHANDLERS LIMITED",28/12/2020 00:00:00,31/1/2021 00:00:00,"P10-2021"
,"LEE VALLEY MARINA SPRINGFIELD","SUPPLIES AND SERVICES","TRADING AC - EXTERNAL PURCHASE","4875","P109933-SERVICE-Chandlery Stock (Coal)",11/1/2021 00:00:00,"243490",1010,"HI0076","W.G. HILL & SON",28/12/2020 00:00:00,31/1/2021 00:00:00,"P10-2021"
,"LEE VALLEY MARINA SPRINGFIELD","SUPPLIES AND SERVICES","TRADING AC - EXTERNAL PURCHASE","4875","P110233-SERVICE-Chandlery Stock (coal)",11/1/2021 00:00:00,"243491",800,"HI0076","W.G. HILL & SON",28/12/2020 00:00:00,31/1/2021 00:00:00,"P10-2021"
,"LEE VALLEY MARINA SPRINGFIELD","SUPPLIES AND SERVICES","TRADING AC - EXTERNAL PURCHASE","4875","P110377-SERVICE-Chandlery Stock  642815",18/1/2021 00:00:00,"243505",504.32,"MI0200","MIDLAND CHANDLERS LIMITED",28/12/2020 00:00:00,31/1/2021 00:00:00,"P10-2021"
,"LEE VALLEY MARINA SPRINGFIELD","SUPPLIES AND SERVICES","TRADING AC - EXTERNAL PURCHASE","4875","P110352-SERVICE-Chandlery Stock  73463",18/1/2021 00:00:00,"243520",309.8,"AS0036","ASAP SUPPLIES",28/12/2020 00:00:00,31/1/2021 00:00:00,"P10-2021"
,"LEE VALLEY MARINA SPRINGFIELD","SUPPLIES AND SERVICES","TRADING AC - EXTERNAL PURCHASE","4875","P110064-SERVICE-Chandlery Stock 31227",19/1/2021 00:00:00,"243657",7.57,"AQ0033","AQUAFAX LIMITED",28/12/2020 00:00:00,31/1/2021 00:00:00,"P10-2021"
,"LEE VALLEY MARINA SPRINGFIELD","SUPPLIES AND SERVICES","TRADING AC - EXTERNAL PURCHASE","4875","P110301-SERVICE-Chandlery Stock",19/1/2021 00:00:00,"243705",259.36,"CA0660","CALFIRE SPARELINE LIMITED",28/12/2020 00:00:00,31/1/2021 00:00:00,"P10-2021"
,"LEE VALLEY MARINA SPRINGFIELD","SUPPLIES AND SERVICES","TRADING AC - EXTERNAL PURCHASE","4875","P110441-SERVICE-Chandlery Stock  WSO0216199",19/1/2021 00:00:00,"243732",31.4,"CE0510","CENTURION EUROPE LIMITED",28/12/2020 00:00:00,31/1/2021 00:00:00,"P10-2021"
,"LEE VALLEY MARINA SPRINGFIELD","SUPPLIES AND SERVICES","TRADING AC - EXTERNAL PURCHASE","4875","P110436-SERVICE-Chandlery Stock",19/1/2021 00:00:00,"243733",96.36,"CE0510","CENTURION EUROPE LIMITED",28/12/2020 00:00:00,31/1/2021 00:00:00,"P10-2021"
,"LEE VALLEY MARINA SPRINGFIELD","SUPPLIES AND SERVICES","TRADING AC - EXTERNAL PURCHASE","4875","P110429-SERVICE-Chandlery Stock  34295",19/1/2021 00:00:00,"243743",9.12,"AQ0033","AQUAFAX LIMITED",28/12/2020 00:00:00,31/1/2021 00:00:00,"P10-2021"
,"LEE VALLEY MARINA SPRINGFIELD","SUPPLIES AND SERVICES","TRADING AC - EXTERNAL PURCHASE","4875","P110429-SERVICE-Chandlery Stock  34295",19/1/2021 00:00:00,"243744",105.98,"AQ0033","AQUAFAX LIMITED",28/12/2020 00:00:00,31/1/2021 00:00:00,"P10-2021"
,"LEE VALLEY MARINA SPRINGFIELD","SUPPLIES AND SERVICES","TRADING AC - EXTERNAL PURCHASE","4875","P110445-SERVICE-Chandlery Stock",25/1/2021 00:00:00,"243746",365.91,"MI0200","MIDLAND CHANDLERS LIMITED",28/12/2020 00:00:00,31/1/2021 00:00:00,"P10-2021"
,"LEE VALLEY MARINA SPRINGFIELD","SUPPLIES AND SERVICES","TRADING AC - EXTERNAL PURCHASE","4875","P110492-SERVICE-Chandlery Stock  75351",26/1/2021 00:00:00,"243789",10.4,"AS0036","ASAP SUPPLIES",28/12/2020 00:00:00,31/1/2021 00:00:00,"P10-2021"
,"LEE VALLEY MARINA SPRINGFIELD","SUPPLIES AND SERVICES","TRADING AC - EXTERNAL PURCHASE","4875","P110492-SERVICE-Chandlery Stock  75351",26/1/2021 00:00:00,"243790",51.31,"AS0036","ASAP SUPPLIES",28/12/2020 00:00:00,31/1/2021 00:00:00,"P10-2021"
,"LEE VALLEY MARINA SPRINGFIELD","SUPPLIES AND SERVICES","TRADING AC - EXTERNAL PURCHASE","4875","P109598-SERVICE-4 x Buffalo Baord",27/1/2021 00:00:00,"243797",188,"RO0323","E ROBERT TIMBER LTD",28/12/2020 00:00:00,31/1/2021 00:00:00,"P10-2021"
,"LEE VALLEY MARINA SPRINGFIELD","SUPPLIES AND SERVICES","TRADING AC - EXTERNAL PURCHASE","4875","P110491-SERVICE-Chandlery Stock  645056",26/1/2021 00:00:00,"243878",238.01,"MI0200","MIDLAND CHANDLERS LIMITED",28/12/2020 00:00:00,31/1/2021 00:00:00,"P10-2021"
,"LEE VALLEY MARINA SPRINGFIELD","SUPPLIES AND SERVICES","TRADING AC - EXTERNAL PURCHASE","4875","P110469-SERVICE-Chandlery Stock (Diesel)",26/1/2021 00:00:00,"243883",4720.11,"SP0543","SPEEDY FUELS AND LUBRICANTS LLP",28/12/2020 00:00:00,31/1/2021 00:00:00,"P10-2021"
,"LEE VALLEY MARINA SPRINGFIELD","SUPPLIES AND SERVICES","TRADING AC - EXTERNAL PURCHASE","4875","P110289-SERVICE-Chandlery Stock (calor gas)",26/1/2021 00:00:00,"243928",700.25,"CA0006","CALOR GAS LIMITED",28/12/2020 00:00:00,31/1/2021 00:00:00,"P10-2021"
,"STANSTEAD RECHARGEABLE WORKS","SUPPLIES AND SERVICES","TRADING AC - EXTERNAL PURCHASE","4875","P110013-SERVICE-Calor gas",4/1/2021 00:00:00,"242961",454.3,"CA0006","CALOR GAS LIMITED",28/12/2020 00:00:00,31/1/2021 00:00:00,"P10-2021"
,"STANSTEAD RECHARGEABLE WORKS","SUPPLIES AND SERVICES","TRADING AC - EXTERNAL PURCHASE","4875","P110013-SERVICE-Calor gas",4/1/2021 00:00:00,"242962",106.41,"CA0006","CALOR GAS LIMITED",28/12/2020 00:00:00,31/1/2021 00:00:00,"P10-2021"
,"STANSTEAD RECHARGEABLE WORKS","SUPPLIES AND SERVICES","TRADING AC - EXTERNAL PURCHASE","4875","P110247-SERVICE-20  bags of logs",11/1/2021 00:00:00,"242974",170,"HA0371","HARTS OF OAK",28/12/2020 00:00:00,31/1/2021 00:00:00,"P10-2021"
,"STANSTEAD RECHARGEABLE WORKS","SUPPLIES AND SERVICES","TRADING AC - EXTERNAL PURCHASE","4875","P110188-SERVICE-chandlery stock",11/1/2021 00:00:00,"242990",5.93,"AQ0033","AQUAFAX LIMITED",28/12/2020 00:00:00,31/1/2021 00:00:00,"P10-2021"
,"STANSTEAD RECHARGEABLE WORKS","SUPPLIES AND SERVICES","TRADING AC - EXTERNAL PURCHASE","4875","P110124-SERVICE-calor gas",11/1/2021 00:00:00,"243257",585.67,"CA0006","CALOR GAS LIMITED",28/12/2020 00:00:00,31/1/2021 00:00:00,"P10-2021"
,"STANSTEAD RECHARGEABLE WORKS","SUPPLIES AND SERVICES","TRADING AC - EXTERNAL PURCHASE","4875","P110129-SERVICE-calorifier",11/1/2021 00:00:00,"243437",-414.96,"MI0200","MIDLAND CHANDLERS LIMITED",28/12/2020 00:00:00,31/1/2021 00:00:00,"P10-2021"
,"STANSTEAD RECHARGEABLE WORKS","SUPPLIES AND SERVICES","TRADING AC - EXTERNAL PURCHASE","4875","P109450-SERVICE-chandlery stock",11/1/2021 00:00:00,"243438",1.08,"MI0200","MIDLAND CHANDLERS LIMITED",28/12/2020 00:00:00,31/1/2021 00:00:00,"P10-2021"
,"STANSTEAD RECHARGEABLE WORKS","SUPPLIES AND SERVICES","TRADING AC - EXTERNAL PURCHASE","4875","P110317-SERVICE-chandler stock",11/1/2021 00:00:00,"243439",830.55,"MI0200","MIDLAND CHANDLERS LIMITED",28/12/2020 00:00:00,31/1/2021 00:00:00,"P10-2021"
,"STANSTEAD RECHARGEABLE WORKS","SUPPLIES AND SERVICES","TRADING AC - EXTERNAL PURCHASE","4875","P110112-SERVICE-coal",11/1/2021 00:00:00,"243476",5475.54,"HI0076","W.G. HILL & SON",28/12/2020 00:00:00,31/1/2021 00:00:00,"P10-2021"
,"STANSTEAD RECHARGEABLE WORKS","SUPPLIES AND SERVICES","TRADING AC - EXTERNAL PURCHASE","4875","P110340-SERVICE-chandlery stock",11/1/2021 00:00:00,"243479",147.3,"CE0510","CENTURION EUROPE LIMITED",28/12/2020 00:00:00,31/1/2021 00:00:00,"P10-2021"
,"STANSTEAD RECHARGEABLE WORKS","SUPPLIES AND SERVICES","TRADING AC - EXTERNAL PURCHASE","4875","P110345-SERVICE-chandlery stock",11/1/2021 00:00:00,"243480",498.61,"AQ0033","AQUAFAX LIMITED",28/12/2020 00:00:00,31/1/2021 00:00:00,"P10-2021"
,"STANSTEAD RECHARGEABLE WORKS","SUPPLIES AND SERVICES","TRADING AC - EXTERNAL PURCHASE","4875","P110339-SERVICE-logs",11/1/2021 00:00:00,"243484",215,"HA0371","HARTS OF OAK",28/12/2020 00:00:00,31/1/2021 00:00:00,"P10-2021"
,"STANSTEAD RECHARGEABLE WORKS","SUPPLIES AND SERVICES","TRADING AC - EXTERNAL PURCHASE","4875","P110431-SERVICE-logs",18/1/2021 00:00:00,"243655",170,"HA0371","HARTS OF OAK",28/12/2020 00:00:00,31/1/2021 00:00:00,"P10-2021"
,"STANSTEAD RECHARGEABLE WORKS","SUPPLIES AND SERVICES","TRADING AC - EXTERNAL PURCHASE","4875","P110391-SERVICE-chandlery stock #34062",18/1/2021 00:00:00,"243656",221.78,"AQ0033","AQUAFAX LIMITED",28/12/2020 00:00:00,31/1/2021 00:00:00,"P10-2021"
,"STANSTEAD RECHARGEABLE WORKS","SUPPLIES AND SERVICES","TRADING AC - EXTERNAL PURCHASE","4875","P110204-SERVICE-chandlery stock",18/1/2021 00:00:00,"243704",131.88,"CA0660","CALFIRE SPARELINE LIMITED",28/12/2020 00:00:00,31/1/2021 00:00:00,"P10-2021"
,"STANSTEAD RECHARGEABLE WORKS","SUPPLIES AND SERVICES","TRADING AC - EXTERNAL PURCHASE","4875","P110255-SERVICE-2200l red diesel @ .495ppl",19/1/2021 00:00:00,"243708",1089,"HA0400","WATSON FUELS",28/12/2020 00:00:00,31/1/2021 00:00:00,"P10-2021"
,"STANSTEAD RECHARGEABLE WORKS","SUPPLIES AND SERVICES","TRADING AC - EXTERNAL PURCHASE","4875","P110013-SERVICE-Calor gas",20/1/2021 00:00:00,"243711",-560.71,"CA0006","CALOR GAS LIMITED",28/12/2020 00:00:00,31/1/2021 00:00:00,"P10-2021"
,"STANSTEAD RECHARGEABLE WORKS","SUPPLIES AND SERVICES","TRADING AC - EXTERNAL PURCHASE","4875","P110124-SERVICE-calor gas",20/1/2021 00:00:00,"243711",-585.67,"CA0006","CALOR GAS LIMITED",28/12/2020 00:00:00,31/1/2021 00:00:00,"P10-2021"
,"STANSTEAD RECHARGEABLE WORKS","SUPPLIES AND SERVICES","TRADING AC - EXTERNAL PURCHASE","4875","P110013-SERVICE-Calor gas",20/1/2021 00:00:00,"243712",106.41,"CA0006","CALOR GAS LIMITED",28/12/2020 00:00:00,31/1/2021 00:00:00,"P10-2021"
,"STANSTEAD RECHARGEABLE WORKS","SUPPLIES AND SERVICES","TRADING AC - EXTERNAL PURCHASE","4875","P110013-SERVICE-Calor gas",20/1/2021 00:00:00,"243713",454.3,"CA0006","CALOR GAS LIMITED",28/12/2020 00:00:00,31/1/2021 00:00:00,"P10-2021"
,"STANSTEAD RECHARGEABLE WORKS","SUPPLIES AND SERVICES","TRADING AC - EXTERNAL PURCHASE","4875","P110124-SERVICE-calor gas",25/1/2021 00:00:00,"243714",585.67,"CA0006","CALOR GAS LIMITED",28/12/2020 00:00:00,31/1/2021 00:00:00,"P10-2021"
,"STANSTEAD RECHARGEABLE WORKS","SUPPLIES AND SERVICES","TRADING AC - EXTERNAL PURCHASE","4875","P110371-SERVICE-DELIVERY FEE",25/1/2021 00:00:00,"243734",15,"CH0333","CAMAC LIMITED",28/12/2020 00:00:00,31/1/2021 00:00:00,"P10-2021"
,"STANSTEAD RECHARGEABLE WORKS","SUPPLIES AND SERVICES","TRADING AC - EXTERNAL PURCHASE","4875","P110371-SERVICE-toilet chemicals",25/1/2021 00:00:00,"243734",235.94,"CH0333","CAMAC LIMITED",28/12/2020 00:00:00,31/1/2021 00:00:00,"P10-2021"
,"STANSTEAD RECHARGEABLE WORKS","SUPPLIES AND SERVICES","TRADING AC - EXTERNAL PURCHASE","4875","P110370-SERVICE-red diesel 2000l @ 47.64ppl",19/1/2021 00:00:00,"243737",952.8,"TE0052","TEAM FLITWICK",28/12/2020 00:00:00,31/1/2021 00:00:00,"P10-2021"
,"STANSTEAD RECHARGEABLE WORKS","SUPPLIES AND SERVICES","TRADING AC - EXTERNAL PURCHASE","4875","P110440-SERVICE-chandlery stock",25/1/2021 00:00:00,"243745",258.05,"MI0200","MIDLAND CHANDLERS LIMITED",28/12/2020 00:00:00,31/1/2021 00:00:00,"P10-2021"
,"STANSTEAD RECHARGEABLE WORKS","SUPPLIES AND SERVICES","TRADING AC - EXTERNAL PURCHASE","4875","MIDLAND CHANDLERS LIMITED",25/1/2021 00:00:00,"243745",23.34,"MI0200","MIDLAND CHANDLERS LIMITED",28/12/2020 00:00:00,31/1/2021 00:00:00,"P10-2021"
,"STANSTEAD RECHARGEABLE WORKS","SUPPLIES AND SERVICES","TRADING AC - EXTERNAL PURCHASE","4875","MIDLAND CHANDLERS LIMITED",25/1/2021 00:00:00,"243745",234.71,"MI0200","MIDLAND CHANDLERS LIMITED",28/12/2020 00:00:00,31/1/2021 00:00:00,"P10-2021"
,"STANSTEAD RECHARGEABLE WORKS","SUPPLIES AND SERVICES","TRADING AC - EXTERNAL PURCHASE","4875","MIDLAND CHANDLERS LIMITED",25/1/2021 00:00:00,"243745",-258.05,"MI0200","MIDLAND CHANDLERS LIMITED",28/12/2020 00:00:00,31/1/2021 00:00:00,"P10-2021"
,"STANSTEAD RECHARGEABLE WORKS","SUPPLIES AND SERVICES","TRADING AC - EXTERNAL PURCHASE","4875","P109119-SERVICE-barrus spares",18/1/2021 00:00:00,"243753",146.03,"EP0353","E P BARRUS LTD",28/12/2020 00:00:00,31/1/2021 00:00:00,"P10-2021"
,"STANSTEAD RECHARGEABLE WORKS","SUPPLIES AND SERVICES","TRADING AC - EXTERNAL PURCHASE","4875","P110488-SERVICE-chandlery stock #645052",25/1/2021 00:00:00,"243877",5.4,"MI0200","MIDLAND CHANDLERS LIMITED",28/12/2020 00:00:00,31/1/2021 00:00:00,"P10-2021"
,"STANSTEAD RECHARGEABLE WORKS","SUPPLIES AND SERVICES","TRADING AC - EXTERNAL PURCHASE","4875","P110488-SERVICE-chandlery stock #645052",25/1/2021 00:00:00,"243879",543.95,"MI0200","MIDLAND CHANDLERS LIMITED",28/12/2020 00:00:00,31/1/2021 00:00:00,"P10-2021"
,"STANSTEAD RECHARGEABLE WORKS","SUPPLIES AND SERVICES","TRADING AC - EXTERNAL PURCHASE","4875","P110538-SERVICE-chandlery stock",31/1/2021 00:00:00,"243901",245.85,"MI0200","MIDLAND CHANDLERS LIMITED",28/12/2020 00:00:00,31/1/2021 00:00:00,"P10-2021"
,"STANSTEAD RECHARGEABLE WORKS","SUPPLIES AND SERVICES","TRADING AC - EXTERNAL PURCHASE","4875","P110356-SERVICE-calor gas",31/1/2021 00:00:00,"243925",578,"CA0006","CALOR GAS LIMITED",28/12/2020 00:00:00,31/1/2021 00:00:00,"P10-2021"
,"STANSTEAD RECHARGEABLE WORKS","SUPPLIES AND SERVICES","TRADING AC - EXTERNAL PURCHASE","4875","P107395-SERVICE-calor cage rental 11 months",25/1/2021 00:00:00,"243926",13,"CA0006","CALOR GAS LIMITED",28/12/2020 00:00:00,31/1/2021 00:00:00,"P10-2021"
,"STANSTEAD RECHARGEABLE WORKS","SUPPLIES AND SERVICES","TRADING AC - EXTERNAL PURCHASE","4875","P110539-SERVICE-chandlery stock",31/1/2021 00:00:00,"243989",98.75,"AQ0033","AQUAFAX LIMITED",28/12/2020 00:00:00,31/1/2021 00:00:00,"P10-2021"
,"STANSTEAD RECHARGEABLE WORKS","SUPPLIES AND SERVICES","TRADING AC - EXTERNAL PURCHASE","4875","P110578-SERVICE-chandlery stock #646923",31/1/2021 00:00:00,"243999",202.79,"MI0200","MIDLAND CHANDLERS LIMITED",28/12/2020 00:00:00,31/1/2021 00:00:00,"P10-2021"
,"STANSTEAD RECHARGEABLE WORKS","SUPPLIES AND SERVICES","TRADING AC - EXTERNAL PURCHASE","4875","P110488-SERVICE-chandlery stock #645052",31/1/2021 00:00:00,"244000",12.43,"MI0200","MIDLAND CHANDLERS LIMITED",28/12/2020 00:00:00,31/1/2021 00:00:00,"P10-2021"
,"STANSTEAD RECHARGEABLE WORKS","SUPPLIES AND SERVICES","TRADING AC - EXTERNAL PURCHASE","4875","P110457-SERVICE-2050L RED DIESEL @ 49.94PPL",31/1/2021 00:00:00,"244002",1023.77,"TE0052","TEAM FLITWICK",28/12/2020 00:00:00,31/1/2021 00:00:00,"P10-2021"
,"STANSTEAD RECHARGEABLE WORKS","SUPPLIES AND SERVICES","TRADING AC - EXTERNAL PURCHASE","4875","P110577-SERVICE-chandlery stock #76525",31/1/2021 00:00:00,"244019",141.07,"AS0036","ASAP SUPPLIES",28/12/2020 00:00:00,31/1/2021 00:00:00,"P10-2021"
,"STANSTEAD RECHARGEABLE WORKS","SUPPLIES AND SERVICES","TRADING AC - EXTERNAL PURCHASE","4875","P110589-SERVICE-logs",31/1/2021 00:00:00,"244027",158,"HA0371","HARTS OF OAK",28/12/2020 00:00:00,31/1/2021 00:00:00,"P10-2021"
,"STANSTEAD RECHARGEABLE WORKS","SUPPLIES AND SERVICES","TRADING AC - EXTERNAL PURCHASE","4875","P110603-SERVICE-chandlery stock #647660",31/1/2021 00:00:00,"244128",74.37,"MI0200","MIDLAND CHANDLERS LIMITED",28/12/2020 00:00:00,31/1/2021 00:00:00,"P10-2021"
,"STANSTEAD RECHARGEABLE WORKS","SUPPLIES AND SERVICES","TRADING AC - EXTERNAL PURCHASE","4875","P110547-SERVICE-chandlery stock",31/1/2021 00:00:00,"244137",257.05,"MA0442","MARINE AND INDUSTRIAL LLP",28/12/2020 00:00:00,31/1/2021 00:00:00,"P10-2021"
,"LEE VALLEY CAMPSITE","SUPPLIES AND SERVICES","BOTTLED GAS","4877","P109579-SERVICE-47 kg bottles x 8",5/1/2021 00:00:00,"243249",450.4,"FL0147","FLOGAS BRITAIN LIMITED",28/12/2020 00:00:00,31/1/2021 00:00:00,"P10-2021"
,"LEE VALLEY CAMPSITE","SUPPLIES AND SERVICES","BOTTLED GAS","4877","P109671-SERVICE-8 x 47kg Gas Bottles",5/1/2021 00:00:00,"243250",450.4,"FL0147","FLOGAS BRITAIN LIMITED",28/12/2020 00:00:00,31/1/2021 00:00:00,"P10-2021"
,"LEE VALLEY CAMPSITE","SUPPLIES AND SERVICES","BOTTLED GAS","4877","P109972-SERVICE-8 x 47kg Gas Bottles",5/1/2021 00:00:00,"243251",450.4,"FL0147","FLOGAS BRITAIN LIMITED",28/12/2020 00:00:00,31/1/2021 00:00:00,"P10-2021"
,"LEE VALLEY CAMPSITE","SUPPLIES AND SERVICES","BOTTLED GAS","4877","P110053-SERVICE-8 x 47kg Gas Bottles",5/1/2021 00:00:00,"243252",450.4,"FL0147","FLOGAS BRITAIN LIMITED",28/12/2020 00:00:00,31/1/2021 00:00:00,"P10-2021"
,"LEE VALLEY CAMPSITE","SUPPLIES AND SERVICES","BOTTLED GAS","4877","P110147-SERVICE-8 x 47kg Gas Bottles",5/1/2021 00:00:00,"243253",450.4,"FL0147","FLOGAS BRITAIN LIMITED",28/12/2020 00:00:00,31/1/2021 00:00:00,"P10-2021"
,"LEE VALLEY CAMPSITE","SUPPLIES AND SERVICES","BOTTLED GAS","4877","P110211-SERVICE-10x47kg gas cylinders",5/1/2021 00:00:00,"243254",563,"FL0147","FLOGAS BRITAIN LIMITED",28/12/2020 00:00:00,31/1/2021 00:00:00,"P10-2021"
,"LEE VALLEY CAMPSITE","SUPPLIES AND SERVICES","BOTTLED GAS","4877","P110363-SERVICE-10x47kg gas",18/1/2021 00:00:00,"243661",563,"FL0147","FLOGAS BRITAIN LIMITED",28/12/2020 00:00:00,31/1/2021 00:00:00,"P10-2021"
"CEO","COMMERCIAL ACCOMMODATION","SUPPLIES AND SERVICES","OTHER EXPENSES","4899","P107554-SERVICE-Land Registry Fees",18/1/2021 00:00:00,"243766",12,"HM0032","HM LAND REGISTRY",28/12/2020 00:00:00,31/1/2021 00:00:00,"P10-2021"
"P&V","LEE VALLEY FARM HOLYFIELDHALL","SUPPLIES AND SERVICES","OTHER EXPENSES","4899","P110323-SERVICE-PAT",5/1/2021 00:00:00,"243155",249,"BR0018","BRADSHAW ELECTRICAL LIMITED",28/12/2020 00:00:00,31/1/2021 00:00:00,"P10-2021"
"P&V","LEE VALLEY FARM HOLYFIELDHALL","SUPPLIES AND SERVICES","OTHER EXPENSES","4899","P110343-SERVICE-Annual Fire Extinguisher Service",19/1/2021 00:00:00,"243673",250.74,"TJ0009","T.J.FIRE & SECURITY",28/12/2020 00:00:00,31/1/2021 00:00:00,"P10-2021"
"P&V","LEE VALLEY FARM HOLYFIELDHALL","SUPPLIES AND SERVICES","OTHER EXPENSES","4899","P110581-SERVICE-Membership for Richard Waddington",31/1/2021 00:00:00,"243974",29,"CI0669","CITY & GUILDS OF LONDON INSTITUTE",28/12/2020 00:00:00,31/1/2021 00:00:00,"P10-2021"
"P&V","COMMUNITY ACCESS FUND","SUPPLIES AND SERVICES","OTHER EXPENSES","4899","P110672-SERVICE-All ability bike sesions",31/1/2021 00:00:00,"244114",562.5,"BI0470","BIKE WORKS",28/12/2020 00:00:00,31/1/2021 00:00:00,"P10-2021"
"P&V","COMMUNITY ACCESS FUND","SUPPLIES AND SERVICES","OTHER EXPENSES","4899","P110672-SERVICE-All ability bike sesions",31/1/2021 00:00:00,"244115",562.5,"BI0470","BIKE WORKS",28/12/2020 00:00:00,31/1/2021 00:00:00,"P10-2021"
"P&V","CAR PARK INCOME","SUPPLIES AND SERVICES","OTHER EXPENSES","4899","P107493-SERVICE-Car Park Mangament Fees Cornmill Meadows",11/1/2021 00:00:00,"243324",475,"PA0372","PARKINGEYE LIMITED",28/12/2020 00:00:00,31/1/2021 00:00:00,"P10-2021"
"P&V","CAR PARK INCOME","SUPPLIES AND SERVICES","OTHER EXPENSES","4899","P107492-SERVICE-Car Park Mangament Fees Clayton Hill",11/1/2021 00:00:00,"243325",475,"PA0372","PARKINGEYE LIMITED",28/12/2020 00:00:00,31/1/2021 00:00:00,"P10-2021"
"P&V","ASSET PROTECTION, MAINT, DEVEL","CAPITAL EXPENDITURE","CAPITAL EXPENDITURE","4990","KENDALL & SONS LIMITED",31/1/2021 00:00:00,"238610",2240.78,"KE0023","KENDALL & SONS LIMITED",28/12/2020 00:00:00,31/1/2021 00:00:00,"P10-2021"
"P&V","ASSET PROTECTION, MAINT, DEVEL","CAPITAL EXPENDITURE","CAPITAL EXPENDITURE","4990","KENDALL & SONS LIMITED",31/1/2021 00:00:00,"238610",450,"KE0023","KENDALL & SONS LIMITED",28/12/2020 00:00:00,31/1/2021 00:00:00,"P10-2021"
"P&V","ASSET PROTECTION, MAINT, DEVEL","CAPITAL EXPENDITURE","CAPITAL EXPENDITURE","4990","KENDALL & SONS LIMITED",31/1/2021 00:00:00,"238610",-2690.78,"KE0023","KENDALL & SONS LIMITED",28/12/2020 00:00:00,31/1/2021 00:00:00,"P10-2021"
"P&V","ASSET PROTECTION, MAINT, DEVEL","CAPITAL EXPENDITURE","CAPITAL EXPENDITURE","4990","P108521-SERVICE-VeloPark resin works",31/1/2021 00:00:00,"238610",2690.78,"KE0023","KENDALL & SONS LIMITED",28/12/2020 00:00:00,31/1/2021 00:00:00,"P10-2021"
"P&V","ASSET PROTECTION, MAINT, DEVEL","CAPITAL EXPENDITURE","CAPITAL EXPENDITURE","4990","P110514-SERVICE-Concourse steps",31/1/2021 00:00:00,"239441",950,"RE0094","REACT 2 IT (BUILDING & REFURBISHMENT) LTD",28/12/2020 00:00:00,31/1/2021 00:00:00,"P10-2021"
"P&V","ASSET PROTECTION, MAINT, DEVEL","CAPITAL EXPENDITURE","CAPITAL EXPENDITURE","4990","P110514-SERVICE-Works to far wall at HTC",25/1/2021 00:00:00,"242547",5130,"RE0094","REACT 2 IT (BUILDING & REFURBISHMENT) LTD",28/12/2020 00:00:00,31/1/2021 00:00:00,"P10-2021"
"P&V","ASSET PROTECTION, MAINT, DEVEL","CAPITAL EXPENDITURE","CAPITAL EXPENDITURE","4990","P109987-SERVICE-Investigate and remedy faulty lighting at LV",12/1/2021 00:00:00,"243150",80,"BR0018","BRADSHAW ELECTRICAL LIMITED",28/12/2020 00:00:00,31/1/2021 00:00:00,"P10-2021"
"P&V","ASSET PROTECTION, MAINT, DEVEL","CAPITAL EXPENDITURE","CAPITAL EXPENDITURE","4990","P109326-SERVICE-Pathway repairs as required by rangers",26/1/2021 00:00:00,"243176",21042.19,"HE0297","HENDERSON & TAYLOR (PUBLIC WORKS LIMITED)",28/12/2020 00:00:00,31/1/2021 00:00:00,"P10-2021"
"P&V","ASSET PROTECTION, MAINT, DEVEL","CAPITAL EXPENDITURE","CAPITAL EXPENDITURE","4990","P109326-SERVICE-Additional works",26/1/2021 00:00:00,"243176",2372,"HE0297","HENDERSON & TAYLOR (PUBLIC WORKS LIMITED)",28/12/2020 00:00:00,31/1/2021 00:00:00,"P10-2021"
"P&V","ASSET PROTECTION, MAINT, DEVEL","CAPITAL EXPENDITURE","CAPITAL EXPENDITURE","4990","P109326-SERVICE-Additional Works",26/1/2021 00:00:00,"243176",5665.75,"HE0297","HENDERSON & TAYLOR (PUBLIC WORKS LIMITED)",28/12/2020 00:00:00,31/1/2021 00:00:00,"P10-2021"
"P&V","ASSET PROTECTION, MAINT, DEVEL","CAPITAL EXPENDITURE","CAPITAL EXPENDITURE","4990","P110284-SERVICE-Scaffolding at White Water Center",11/1/2021 00:00:00,"243454",1390,"RE0094","REACT 2 IT (BUILDING & REFURBISHMENT) LTD",28/12/2020 00:00:00,31/1/2021 00:00:00,"P10-2021"
"P&V","ASSET PROTECTION, MAINT, DEVEL","CAPITAL EXPENDITURE","CAPITAL EXPENDITURE","4990","P110285-SERVICE-Clear Debris at Velo Park",12/1/2021 00:00:00,"243466",500,"MO0041","CAPSER",28/12/2020 00:00:00,31/1/2021 00:00:00,"P10-2021"
"P&V","ASSET PROTECTION, MAINT, DEVEL","CAPITAL EXPENDITURE","CAPITAL EXPENDITURE","4990","CAPSER",12/1/2021 00:00:00,"243466",-500,"MO0041","CAPSER",28/12/2020 00:00:00,31/1/2021 00:00:00,"P10-2021"
"P&V","ASSET PROTECTION, MAINT, DEVEL","CAPITAL EXPENDITURE","CAPITAL EXPENDITURE","4990","CAPSER",12/1/2021 00:00:00,"243466",250,"MO0041","CAPSER",28/12/2020 00:00:00,31/1/2021 00:00:00,"P10-2021"
"P&V","ASSET PROTECTION, MAINT, DEVEL","CAPITAL EXPENDITURE","CAPITAL EXPENDITURE","4990","CAPSER",12/1/2021 00:00:00,"243466",250,"MO0041","CAPSER",28/12/2020 00:00:00,31/1/2021 00:00:00,"P10-2021"
"P&V","ASSET PROTECTION, MAINT, DEVEL","CAPITAL EXPENDITURE","CAPITAL EXPENDITURE","4990","KENDALL & SONS LIMITED",12/1/2021 00:00:00,"243485",-2796.8,"KE0023","KENDALL & SONS LIMITED",28/12/2020 00:00:00,31/1/2021 00:00:00,"P10-2021"
"P&V","ASSET PROTECTION, MAINT, DEVEL","CAPITAL EXPENDITURE","CAPITAL EXPENDITURE","4990","KENDALL & SONS LIMITED",12/1/2021 00:00:00,"243485",4542.6,"KE0023","KENDALL & SONS LIMITED",28/12/2020 00:00:00,31/1/2021 00:00:00,"P10-2021"
"P&V","ASSET PROTECTION, MAINT, DEVEL","CAPITAL EXPENDITURE","CAPITAL EXPENDITURE","4990","KENDALL & SONS LIMITED",12/1/2021 00:00:00,"243485",-4542.6,"KE0023","KENDALL & SONS LIMITED",28/12/2020 00:00:00,31/1/2021 00:00:00,"P10-2021"
"P&V","ASSET PROTECTION, MAINT, DEVEL","CAPITAL EXPENDITURE","CAPITAL EXPENDITURE","4990","P108482-SERVICE-Residential Repair Tender",12/1/2021 00:00:00,"243485",4542.6,"KE0023","KENDALL & SONS LIMITED",28/12/2020 00:00:00,31/1/2021 00:00:00,"P10-2021"
"P&V","ASSET PROTECTION, MAINT, DEVEL","CAPITAL EXPENDITURE","CAPITAL EXPENDITURE","4990","P108482-SERVICE-Additional charges",12/1/2021 00:00:00,"243485",2796.8,"KE0023","KENDALL & SONS LIMITED",28/12/2020 00:00:00,31/1/2021 00:00:00,"P10-2021"
"P&V","ASSET PROTECTION, MAINT, DEVEL","CAPITAL EXPENDITURE","CAPITAL EXPENDITURE","4990","KENDALL & SONS LIMITED",12/1/2021 00:00:00,"243485",1395,"KE0023","KENDALL & SONS LIMITED",28/12/2020 00:00:00,31/1/2021 00:00:00,"P10-2021"
"P&V","ASSET PROTECTION, MAINT, DEVEL","CAPITAL EXPENDITURE","CAPITAL EXPENDITURE","4990","KENDALL & SONS LIMITED",12/1/2021 00:00:00,"243485",1401.8,"KE0023","KENDALL & SONS LIMITED",28/12/2020 00:00:00,31/1/2021 00:00:00,"P10-2021"
"P&V","ASSET PROTECTION, MAINT, DEVEL","CAPITAL EXPENDITURE","CAPITAL EXPENDITURE","4990","P105278-SERVICE-LVIC Chiller Rental",19/1/2021 00:00:00,"243487",2105,"TR0160","TRANE UK LIMITED",28/12/2020 00:00:00,31/1/2021 00:00:00,"P10-2021"
"P&V","ASSET PROTECTION, MAINT, DEVEL","CAPITAL EXPENDITURE","CAPITAL EXPENDITURE","4990","P109457-SERVICE-Repair Leak T Bar on Decking at White Water C",31/1/2021 00:00:00,"243500",895,"VO0119","Voland Roofing",28/12/2020 00:00:00,31/1/2021 00:00:00,"P10-2021"
"P&V","ASSET PROTECTION, MAINT, DEVEL","CAPITAL EXPENDITURE","CAPITAL EXPENDITURE","4990","P109779-SERVICE-BMS upgrade at LVAC",20/1/2021 00:00:00,"243751",9893,"IN0197","INTEGRATED BUILDING MANAGEMENT SYSTEMS LTD",28/12/2020 00:00:00,31/1/2021 00:00:00,"P10-2021"
"P&V","ASSET PROTECTION, MAINT, DEVEL","CAPITAL EXPENDITURE","CAPITAL EXPENDITURE","4990","KENDALL & SONS LIMITED",31/1/2021 00:00:00,"244121",50,"KE0023","KENDALL & SONS LIMITED",28/12/2020 00:00:00,31/1/2021 00:00:00,"P10-2021"
"P&V","ASSET PROTECTION, MAINT, DEVEL","CAPITAL EXPENDITURE","CAPITAL EXPENDITURE","4990","KENDALL & SONS LIMITED",31/1/2021 00:00:00,"244121",297,"KE0023","KENDALL & SONS LIMITED",28/12/2020 00:00:00,31/1/2021 00:00:00,"P10-2021"
"P&V","ASSET PROTECTION, MAINT, DEVEL","CAPITAL EXPENDITURE","CAPITAL EXPENDITURE","4990","KENDALL & SONS LIMITED",31/1/2021 00:00:00,"244121",-347,"KE0023","KENDALL & SONS LIMITED",28/12/2020 00:00:00,31/1/2021 00:00:00,"P10-2021"
"P&V","ASSET PROTECTION, MAINT, DEVEL","CAPITAL EXPENDITURE","CAPITAL EXPENDITURE","4990","P109885-SERVICE-Fence Repairs at Ice Centre",31/1/2021 00:00:00,"244121",347,"KE0023","KENDALL & SONS LIMITED",28/12/2020 00:00:00,31/1/2021 00:00:00,"P10-2021"
